Workbook

Sheet Accueil
G1: Nouveaux Critères pour la Victoire
B5: Course du vendredi le 22 mai 2020
B8: Vendredi : Saint-Galmier (Genybet) (R5)
B9: 9ème course - Prix de la Ville de la Fouillouse
B10: Départ 17h30
B12: Attelé - Course G (trot) - 3 000€ - 2050m - 14 partants - Pouzzolane - corde : à droite - - Amateurs
B14: N° | C14: Cheval | D14: SA | E14: Dist. | F14: Driver | G14: Entraîneur | H14: Musique | I14: Gains | J14: Cotes références | K14: Dernières cotes | L14: Oeil. | M14: Déf. | N14: Courues | O14: Victoires | P14: Places | Q14: Gains
B15: 1 | C15: Daika Vikland | D15: F7 | E15: 2025 | F15: T. Clairet | G15: A. Bonnefoy | H15: (19)6a7a9a8a0a0a | I15: 23570 | J15: - | K15: 14.4 | M15: D4 | N15: 32 | O15: 1 | P15: 7 | Q15: 23570
B16: 2 | C16: Dalhium de Grez | D16: H7 | E16: 2025 | F16: B. Jay | G16: B. Fedry | H16: 0m(19)0a7aDa0a(18)Da | I16: 30770 | J16: - | K16: 20 | N16: 36 | O16: 3 | P16: 2 | Q16: 30770
B17: 3 | C17: Espion Volsin | D17: H6 | E17: 2025 | F17: J-P. Brechet | G17: Mlle N. Desprès | H17: 6a0aDa(19)5a0a9a | I17: 32830 | J17: - | K17: 8.3 | M17: DP | N17: 40 | O17: 1 | P17: 8 | Q17: 32830
B18: 4 | C18: Duchesse Fouteau | D18: F7 | E18: 2025 | F18: C. Ducroux | G18: B. Cury | H18: 0a(19)0a9a4a0a7a | I18: 45690 | J18: - | K18: 14.3 | M18: D4 | N18: 42 | O18: 3 | P18: 4 | Q18: 45690
B19: 5 | C19: Chef des Plaines | D19: H8 | E19: 2025 | F19: L. Viricel | G19: P. Callier | H19: 0aDa5a6a(19)Da(18)Da | I19: 51300 | J19: - | K19: 7.4 | N19: 49 | O19: 3 | P19: 7 | Q19: 51300
B20: 6 | C20: Cool Gahn | D20: H8 | E20: 2025 | F20: R. Duport | G20: M. Messager | H20: 0a3a7m(19)Da1a9a | I20: 55345 | J20: - | K20: 48.3 | N20: 78 | O20: 5 | P20: 7 | Q20: 55345
B21: 7 | C21: Elton Magic | D21: H6 | E21: 2050 | F21: Mlle M. Callier | G21: J.-L. Verrière | H21: (19)DaDa0a7a2a0a | I21: 39450 | J21: - | K21: 5.8 | M21: DP | N21: 29 | O21: 2 | P21: 6 | Q21: 39450
B22: 8 | C22: Charly de Yor | D22: H8 | E22: 2050 | F22: M. Monier | G22: R. Mourlon | H22: 0a(19)DaDa2a9a2a | I22: 42080 | J22: - | K22: 23.2 | M22: D4 | N22: 38 | O22: 4 | P22: 7 | Q22: 42080
B23: 9 | C23: Chamar d'Ici (E1) | D23: H8 | E23: 2050 | F23: T. Valvo | G23: F. Carpentier | H23: 7aDa8a(19)6a9a0a | I23: 42840 | J23: - | K23: 28.4 | M23: D4 | N23: 64 | O23: 2 | P23: 13 | Q23: 42840
B24: 10 | C24: Conflit (E1) | D24: H8 | E24: 2050 | F24: S. Zeghouani | G24: F. Carpentier | H24: 8aDaDa(19)5a5a0a | I24: 48675 | J24: - | K24: 35.3 | N24: 72 | O24: 2 | P24: 13 | Q24: 48675
B25: 11 | C25: Daryl Impey | D25: H7 | E25: 2050 | F25: A. Gaudin | G25: E. Bouyer | H25: 4a7aDa4a(19)2a3a | I25: 53330 | J25: - | K25: 30.9 | N25: 75 | O25: 3 | P25: 12 | Q25: 53330
B26: 12 | C26: Carla de Flosaille | D26: F8 | E26: 2050 | F26: Mme C. Huguet | G26: G. R. Huguet | H26: 5a2a0a(19)4a8aDa | I26: 54290 | J26: - | K26: 4.5 | M26: DP | N26: 47 | O26: 3 | P26: 10 | Q26: 54290
B27: 13 | C27: Elverina Devavian | D27: F6 | E27: 2050 | F27: J. Lasselin | G27: M. Busset | H27: 1a0a8a(19)Da3a1a | I27: 62580 | J27: - | K27: 6 | N27: 32 | O27: 6 | P27: 5 | Q27: 62580
B28: 14 | C28: Cisa du Mouchel | D28: F8 | E28: 2050 | F28: P. F. Monier | G28: S. Dumont | H28: 8aDa7a(19)0aDa0a | I28: 62980 | J28: - | K28: 40.2 | M28: D4 | N28: 77 | O28: 4 | P28: 17 | Q28: 62980
B36: Pour 6, 7 et 8 ans, n'ayant pas gagné 63.000. - Avance de 25 m. aux chevaux drivés par des personnes n'ayant pas gagné deux courses.

Sheet Performances
A1: daika-vikland
A2: Date | B2: Hippodrome | C2: Dist. | D2: Par. | E2: Corde | F2: Aut. | G2: Spé. | H2: Course | I2: Q+ | J2: Alloc. | K2: Rang | L2: Réd. km | M2: Déferré | N2: Cotes | O2: Partants
A3: 20/10/19 | B3: Agen-Le Passage | C3: 2575 | E3: D | F3: A | G3: Attelé | J3: 3 000€ | K3: 6 | L3: 1'17''2 | M3: D4 | N3: 15 | O3: 16 | P3: Cote Fictive
A4: 07/10/19 | B4: Castéra-Verduzan | C4: 2150 | E4: D | F4: A | G4: Attelé | H4: A Réc. | J4: 5 000€ | K4: 7 | L4: 1'19''6 | M4: D4 | N4: 15 | O4: 14 | P4: Cote Fictive
A5: 25/08/19 | B5: Jullianges | C5: 2425 | E5: D | G5: Attelé | J5: 13 000€ | K5: 9 | L5: 1'18''0 | M5: D4 | N5: 12 | O5: 13 | P5: Cote Fictive
A6: 15/08/19 | B6: Gémozac | C6: 2625 | E6: D | G6: Attelé | J6: 4 000€ | K6: 8 | L6: 1'24''3 | M6: D4 | N6: 15 | O6: 11 | P6: Cote Fictive
A7: 29/07/19 | B7: Gabarret | C7: 2550 | E7: G | G7: Attelé | J7: 13 000€ | K7: 0 | M7: DP | N7: 12 | O7: 15 | P7: Cote Fictive
A11: dalhium-de-grez
A12: Date | B12: Hippodrome | C12: Dist. | D12: Par. | E12: Corde | F12: Aut. | G12: Spé. | H12: Course | I12: Q+ | J12: Alloc. | K12: Rang | L12: Réd. km | M12: Déferré | N12: Cotes | O12: Partants
A13: 12/03/20 | B13: Lyon-La Soie | C13: 2700 | E13: D | G13: Monté | J13: 17 000€ | K13: 12 | L13: 1'20''8 | N13: 155 | O13: 16
A14: 30/09/19 | B14: L'Isle-sur-la-Sorgue | C14: 2650 | E14: D | G14: Attelé | J14: 5 000€ | K14: 11 | L14: 1'23''8 | M14: DP | N14: 12 | O14: 13 | P14: Cote Fictive
A15: 15/09/19 | B15: Carpentras | C15: 2650 | E15: D | G15: Attelé | J15: 4 000€ | K15: 7 | L15: 1'22''1 | M15: DP | N15: 15 | O15: 9 | P15: Cote Fictive
A16: 25/08/19 | B16: Vittel | C16: 2700 | E16: D | G16: Attelé | J16: 4 000€ | K16: Dai | N16: 7 | O16: 12 | P16: Cote Fictive
A17: 06/08/19 | B17: Aix-les-Bains | C17: 2725 | E17: D | G17: Attelé | J17: 4 000€ | K17: 11 | N17: 12 | O17: 12 | P17: Cote Fictive
A21: espion-volsin
A22: Date | B22: Hippodrome | C22: Dist. | D22: Par. | E22: Corde | F22: Aut. | G22: Spé. | H22: Course | I22: Q+ | J22: Alloc. | K22: Rang | L22: Réd. km | M22: Déferré | N22: Cotes | O22: Partants
A23: 18/05/20 | B23: Lyon-Parilly | C23: 2875 | E23: G | G23: Attelé | H23: A Réc. | J23: 9 000€ | K23: 6 | L23: 1'17''3 | M23: D4 | N23: 15 | O23: 17 | P23: Cote Fictive
A24: 19/02/20 | B24: Saint-Galmier | C24: 2650 | E24: D | G24: Attelé | J24: 17 000€ | K24: 14 | L24: 1'17''6 | M24: D4 | N24: 31 | O24: 18
A25: 10/02/20 | B25: Lyon-La Soie | C25: 2700 | E25: D | G25: Attelé | J25: 17 000€ | K25: Dai | M25: D4 | N25: 65 | O25: 17
A26: 01/12/19 | B26: Lyon-Parilly | C26: 2875 | E26: G | G26: Attelé | H26: A Réc. | J26: 10 000€ | K26: 5 | L26: 1'18''4 | M26: D4 | N26: 15 | O26: 15 | P26: Cote Fictive
A27: 24/11/19 | B27: Agen-Le Passage | C27: 2575 | E27: D | F27: A | G27: Attelé | H27: A Réc. | J27: 10 000€ | K27: 11 | L27: 1'17''4 | M27: D4 | N27: 12 | O27: 14 | P27: Cote Fictive
A31: duchesse-fouteau
A32: Date | B32: Hippodrome | C32: Dist. | D32: Par. | E32: Corde | F32: Aut. | G32: Spé. | H32: Course | I32: Q+ | J32: Alloc. | K32: Rang | L32: Réd. km | M32: Déferré | N32: Cotes | O32: Partants
A33: 13/01/20 | B33: Toulouse | C33: 2950 | E33: D | G33: Attelé | J33: 18 000€ | K33: 13 | L33: 1'20''2 | M33: D4 | N33: 62 | O33: 14
A34: 28/12/19 | B34: Bordeaux-Le Bouscat | C34: 2650 | E34: D | G34: Attelé | J34: 6 000€ | K34: 12 | L34: 1'17''6 | M34: D4 | N34: 57 | O34: 16
A35: 15/12/19 | B35: Grenade-sur-Garonne | C35: 2725 | E35: G | G35: Attelé | J35: 13 000€ | K35: 9 | L35: 1'18''6 | M35: D4 | N35: 12 | O35: 15 | P35: Cote Fictive
A36: 17/11/19 | B36: Bordeaux-Le Bouscat | C36: 2650 | E36: D | G36: Attelé | J36: 5 000€ | K36: 4 | L36: 1'19''1 | M36: D4 | N36: 10 | O36: 16 | P36: Cote Fictive
A37: 28/10/19 | B37: Toulouse | C37: 2750 | E37: D | F37: A | G37: Attelé | J37: 20 000€ | K37: 14 | L37: 1'19''4 | M37: D4 | N37: 140 | O37: 16
A41: chef-des-plaines
A42: Date | B42: Hippodrome | C42: Dist. | D42: Par. | E42: Corde | F42: Aut. | G42: Spé. | H42: Course | I42: Q+ | J42: Alloc. | K42: Rang | L42: Réd. km | M42: Déferré | N42: Cotes | O42: Partants
A43: 07/03/20 | B43: Cagnes-sur-Mer | C43: 1609 | E43: G | F43: A | G43: Attelé | J43: 5 000€ | K43: 11 | L43: 1'20''2 | N43: 12 | O43: 11 | P43: Cote Fictive
A44: 01/03/20 | B44: Paray-le-Monial | C44: 2025 | E44: D | G44: Attelé | J44: 4 000€ | K44: Dai | N44: 7 | O44: 14 | P44: Cote Fictive
A45: 17/02/20 | B45: Saint-Galmier | C45: 2000 | E45: D | F45: A | G45: Attelé | J45: 6 000€ | K45: 5 | L45: 1'16''1 | N45: 13 | O45: 16
A46: 19/01/20 | B46: Cagnes-sur-Mer | C46: 2150 | E46: G | F46: A | G46: Attelé | J46: 5 000€ | K46: 6 | L46: 1'16''4 | N46: 15 | O46: 9 | P46: Cote Fictive
A47: 24/01/19 | B47: Lyon-La Soie | C47: 2700 | E47: D | G47: Attelé | J47: 18 000€ | K47: Dai | N47: 112 | O47: 18
A51: cool-gahn
A52: Date | B52: Hippodrome | C52: Dist. | D52: Par. | E52: Corde | F52: Aut. | G52: Spé. | H52: Course | I52: Q+ | J52: Alloc. | K52: Rang | L52: Réd. km | M52: Déferré | N52: Cotes | O52: Partants
A53: 17/05/20 | B53: L'Isle-sur-la-Sorgue | C53: 2675 | E53: D | G53: Attelé | H53: A Réc. | J53: 9 000€ | K53: 11 | L53: 1'19''2 | N53: 12 | O53: 16 | P53: Cote Fictive
A54: 17/02/20 | B54: Montauban | C54: 2400 | E54: D | G54: Attelé | H54: A Réc. | J54: 4 000€ | K54: 3 | L54: 1'18''1 | N54: 10 | O54: 13 | P54: Cote Fictive
A55: 25/01/20 | B55: Saint-Galmier | C55: 3200 | E55: D | G55: Monté | H55: Européenne | J55: 26 000€ | K55: 7 | L55: 1'21''4 | N55: 38 | O55: 12
A56: 08/12/19 | B56: Grenade-sur-Garonne | C56: 2750 | E56: G | G56: Attelé | J56: 5 000€ | K56: Dai | N56: 7 | O56: 16 | P56: Cote Fictive
A57: 24/11/19 | B57: Agen-Le Passage | C57: 2575 | E57: D | F57: A | G57: Attelé | H57: A Réc. | J57: 4 000€ | K57: 1 | L57: 1'16''1 | M57: DA | N57: 5 | O57: 11 | P57: Cote Fictive
A61: elton-magic
A62: Date | B62: Hippodrome | C62: Dist. | D62: Par. | E62: Corde | F62: Aut. | G62: Spé. | H62: Course | I62: Q+ | J62: Alloc. | K62: Rang | L62: Réd. km | M62: Déferré | N62: Cotes | O62: Partants
A63: 11/11/19 | B63: Lyon-La Soie | C63: 2050 | E63: D | F63: A | G63: Attelé | J63: 17 000€ | K63: Dai | M63: D4 | N63: 20 | O63: 14
A64: 16/10/19 | B64: Feurs | C64: 2850 | E64: G | G64: Attelé | H64: Nationale | J64: 19 000€ | K64: Dai | N64: 130 | O64: 16
A65: 22/09/19 | B65: Lyon-Parilly | C65: 2850 | E65: G | G65: Attelé | J65: 15 000€ | K65: 13 | L65: 1'19''8 | N65: 12 | O65: 17 | P65: Cote Fictive
A66: 29/07/19 | B66: Aix-les-Bains | C66: 2000 | E66: D | G66: Attelé | J66: 13 000€ | K66: 7 | M66: D4 | N66: 15 | O66: 12 | P66: Cote Fictive
A67: 04/07/19 | B67: Vichy | C67: 1609 | E67: D | F67: A | G67: Attelé | J67: 20 000€ | K67: 2 | L67: 1'12''7 | M67: D4 | N67: 5 | O67: 13
A71: charly-de-yor
A72: Date | B72: Hippodrome | C72: Dist. | D72: Par. | E72: Corde | F72: Aut. | G72: Spé. | H72: Course | I72: Q+ | J72: Alloc. | K72: Rang | L72: Réd. km | M72: Déferré | N72: Cotes | O72: Partants
A73: 15/03/20 | B73: Feurs | C73: 2850 | E73: G | G73: Attelé | J73: 3 000€ | K73: 11 | L73: 1'18''5 | N73: 12 | O73: 16 | P73: Cote Fictive
A74: 24/11/19 | B74: Lyon-Parilly | C74: 2850 | E74: G | G74: Attelé | J74: 5 000€ | K74: Dai | M74: D4 | N74: 7 | O74: 12 | P74: Cote Fictive
A75: 11/11/19 | B75: Lyon-La Soie | C75: 2700 | E75: D | G75: Attelé | J75: 6 000€ | K75: Dai | M75: D4 | N75: 18 | O75: 11
A76: 13/10/19 | B76: Lyon-Parilly | C76: 2850 | E76: G | G76: Attelé | J76: 5 000€ | K76: 2 | L76: 1'20''7 | M76: D4 | N76: 5 | O76: 14 | P76: Cote Fictive
A77: 16/09/19 | B77: L'Isle-sur-la-Sorgue | C77: 2650 | E77: D | G77: Attelé | J77: 5 000€ | K77: 9 | L77: 1'19''7 | M77: D4 | N77: 12 | O77: 13 | P77: Cote Fictive
A81: chamar-d-ici
A82: Date | B82: Hippodrome | C82: Dist. | D82: Par. | E82: Corde | F82: Aut. | G82: Spé. | H82: Course | I82: Q+ | J82: Alloc. | K82: Rang | L82: Réd. km | M82: Déferré | N82: Cotes | O82: Partants
A83: 15/03/20 | B83: Feurs | C83: 2850 | E83: G | G83: Attelé | J83: 3 000€ | K83: 7 | L83: 1'18''0 | M83: D4 | N83: 15 | O83: 16 | P83: Cote Fictive
A84: 24/02/20 | B84: Châtillon-sur-Chalaronne | C84: 2600 | E84: G | F84: A | G84: Attelé | J84: 5 000€ | K84: Dai | M84: D4 | N84: 7 | O84: 14 | P84: Cote Fictive
A85: 17/02/20 | B85: Saint-Galmier | C85: 2000 | E85: D | F85: A | G85: Attelé | J85: 6 000€ | K85: 8 | L85: 1'16''3 | M85: D4 | N85: 38 | O85: 16
A86: 24/11/19 | B86: Lyon-Parilly | C86: 2850 | E86: G | G86: Attelé | J86: 5 000€ | K86: 6 | L86: 1'18''2 | M86: D4 | N86: 15 | O86: 12 | P86: Cote Fictive
A87: 08/11/19 | B87: Saint-Galmier | C87: 2600 | E87: D | F87: A | G87: Attelé | J87: 5 000€ | K87: 9 | L87: 1'17''9 | M87: D4 | N87: 12 | O87: 15 | P87: Cote Fictive
A91: conflit
A92: Date | B92: Hippodrome | C92: Dist. | D92: Par. | E92: Corde | F92: Aut. | G92: Spé. | H92: Course | I92: Q+ | J92: Alloc. | K92: Rang | L92: Réd. km | M92: Déferré | N92: Cotes | O92: Partants
A93: 24/02/20 | B93: Châtillon-sur-Chalaronne | C93: 2600 | E93: G | F93: A | G93: Attelé | J93: 5 000€ | K93: 8 | L93: 1'18''4 | N93: 15 | O93: 14 | P93: Cote Fictive
A94: 25/01/20 | B94: Saint-Galmier | C94: 2600 | E94: D | F94: A | G94: Attelé | J94: 6 000€ | K94: Dai | N94: 70 | O94: 15
A95: 15/01/20 | B95: Marseille-Vivaux | C95: 2650 | E95: G | G95: Attelé | J95: 6 000€ | K95: Dai | M95: DP | N95: 48 | O95: 12
A96: 01/12/19 | B96: Lyon-Parilly | C96: 2850 | E96: G | G96: Attelé | J96: 5 000€ | K96: 5 | L96: 1'18''5 | M96: DP | N96: 15 | O96: 16 | P96: Cote Fictive
A97: 08/11/19 | B97: Saint-Galmier | C97: 2600 | E97: D | F97: A | G97: Attelé | J97: 5 000€ | K97: 5 | L97: 1'16''3 | M97: DP | N97: 15 | O97: 15 | P97: Cote Fictive
A101: daryl-impey
A102: Date | B102: Hippodrome | C102: Dist. | D102: Par. | E102: Corde | F102: Aut. | G102: Spé. | H102: Course | I102: Q+ | J102: Alloc. | K102: Rang | L102: Réd. km | M102: Déferré | N102: Cotes | O102: Partants
A103: 12/03/20 | B103: Lyon-La Soie | C103: 2700 | E103: D | G103: Attelé | J103: 6 000€ | K103: 4 | L103: 1'18''5 | M103: DP | N103: 15 | O103: 14
A104: 20/02/20 | B104: Lyon-La Soie | C104: 2700 | E104: D | G104: Attelé | J104: 22 000€ | K104: 7 | L104: 1'16''4 | M104: DP | N104: 8.1 | O104: 18
A105: 17/02/20 | B105: Saint-Galmier | C105: 2000 | E105: D | F105: A | G105: Attelé | J105: 6 000€ | K105: Dai | N105: 2.8 | O105: 16
A106: 30/01/20 | B106: Lyon-La Soie | C106: 2700 | E106: D | G106: Attelé | J106: 23 000€ | K106: 4 | L106: 1'18''4 | M106: DP | N106: 8.6 | O106: 18
A107: 15/12/19 | B107: Grenade-sur-Garonne | C107: 2725 | E107: G | G107: Attelé | J107: 13 000€ | K107: 2 | L107: 1'17''3 | M107: DP | N107: 5 | O107: 15 | P107: Cote Fictive
A111: carla-de-flosaille
A112: Date | B112: Hippodrome | C112: Dist. | D112: Par. | E112: Corde | F112: Aut. | G112: Spé. | H112: Course | I112: Q+ | J112: Alloc. | K112: Rang | L112: Réd. km | M112: Déferré | N112: Cotes | O112: Partants
A113: 12/03/20 | B113: Lyon-La Soie | C113: 2700 | E113: D | G113: Attelé | J113: 6 000€ | K113: 5 | L113: 1'18''5 | M113: DP | N113: 12 | O113: 14
A114: 17/02/20 | B114: Saint-Galmier | C114: 2000 | E114: D | F114: A | G114: Attelé | J114: 6 000€ | K114: 2 | L114: 1'15''9 | M114: DP | N114: 6.6 | O114: 16
A115: 20/01/20 | B115: Marseille-Vivaux | C115: 2650 | E115: G | G115: Attelé | J115: 6 000€ | K115: 10 | L115: 1'17''6 | N115: 78 | O115: 13
A116: 14/10/19 | B116: Salon-de-Provence | C116: 2950 | E116: D | G116: Attelé | J116: 19 000€ | K116: 4 | L116: 1'18''6 | M116: DP | N116: 10 | O116: 16 | P116: Cote Fictive
A117: 07/10/19 | B117: Salon-de-Provence | C117: 2950 | E117: D | G117: Attelé | J117: 5 000€ | K117: 8 | L117: 1'19''3 | M117: DP | N117: 15 | O117: 11 | P117: Cote Fictive
A121: elverina-devavian
A122: Date | B122: Hippodrome | C122: Dist. | D122: Par. | E122: Corde | F122: Aut. | G122: Spé. | H122: Course | I122: Q+ | J122: Alloc. | K122: Rang | L122: Réd. km | M122: Déferré | N122: Cotes | O122: Partants
A123: 20/02/20 | B123: Lyon-La Soie | C123: 2700 | E123: D | G123: Attelé | J123: 22 000€ | K123: 1 | L123: 1'15''5 | M123: D4 | N123: 6 | O123: 18
A124: 10/02/20 | B124: Lyon-La Soie | C124: 2700 | E124: D | G124: Attelé | J124: 17 000€ | K124: 14 | L124: 1'17''8 | N124: 40 | O124: 17
A125: 25/01/20 | B125: Saint-Galmier | C125: 2650 | E125: D | G125: Attelé | J125: 17 000€ | K125: 8 | L125: 1'17''0 | N125: 24 | O125: 18
A126: 08/12/19 | B126: Lyon-Parilly | C126: 2850 | E126: G | G126: Attelé | J126: 15 000€ | K126: Dai | M126: DP | N126: 7 | O126: 18 | P126: Cote Fictive
A127: 24/11/19 | B127: Lyon-Parilly | C127: 2850 | E127: G | G127: Attelé | J127: 15 000€ | K127: 3 | L127: 1'16''5 | M127: DP | N127: 10 | O127: 18 | P127: Cote Fictive
A131: cisa-du-mouchel
A132: Date | B132: Hippodrome | C132: Dist. | D132: Par. | E132: Corde | F132: Aut. | G132: Spé. | H132: Course | I132: Q+ | J132: Alloc. | K132: Rang | L132: Réd. km | M132: Déferré | N132: Cotes | O132: Partants
A133: 15/03/20 | B133: Feurs | C133: 2850 | E133: G | G133: Attelé | J133: 5 000€ | K133: 8 | L133: 1'20''4 | M133: D4 | N133: 15 | O133: 12 | P133: Cote Fictive
A134: 19/02/20 | B134: Saint-Galmier | C134: 2000 | E134: D | F134: A | G134: Attelé | J134: 6 000€ | K134: Di | M134: D4 | N134: 116 | O134: 16
A135: 20/01/20 | B135: Marseille-Vivaux | C135: 2650 | E135: G | G135: Attelé | J135: 22 000€ | K135: 7 | L135: 1'17''8 | M135: D4 | N135: 48 | O135: 13
A136: 08/12/19 | B136: Lyon-Parilly | C136: 2600 | E136: G | F136: A | G136: Attelé | J136: 5 000€ | K136: 10 | L136: 1'16''6 | M136: D4 | N136: 12 | O136: 16 | P136: Cote Fictive
A137: 15/08/19 | B137: La Clayette | C137: 2650 | E137: D | G137: Attelé | J137: 4 000€ | K137: Dai | M137: D4 | N137: 7 | O137: 12 | P137: Cote Fictive

Sheet NCV
H4: 1 | I4: 2 | J4: 3 | K4: 4 | L4: 5 | M4: 1 | N4: 2 | O4: 3 | P4: 4 | Q4: 5 | R4: 1 | S4: 2 | T4: 3 | U4: 4 | V4: 5 | W4: 1 | X4: 2 | Y4: 3 | Z4: 4 | AA4: 5
C5: LTP | F5: SYO | H5: Cotes | M5: Rang | R5: Nbre Partants | W5: Allocation
B6: 1 | H6: 154 | I6: 36 | J6: 11 | K6: 15 | L6: 65 | M6: 14 | N6: 10 | O6: 7 | P6: 5 | Q6: 7 | R6: 14 | S6: 13 | T6: 11 | U6: 9 | V6: 8 | W6: 100 000€ | X6: 55 000€ | Y6: 35 000€ | Z6: 57 000€ | AA6: 100 000€
B7: 2 | H7: 106 | I7: 4.9 | J7: 3 | K7: 1.9 | L7: 2 | M7: 11 | N7: 2 | O7: 4 | P7: 1 | Q7: 2 | R7: 15 | S7: 16 | T7: 14 | U7: 16 | V7: 13 | W7: 90 000€ | X7: 80 000€ | Y7: 11 000€ | Z7: 80 000€ | AA7: 80 000€
B8: 3 | H8: 25 | I8: 84 | J8: 21 | K8: 18 | L8: 5 | M8: 8 | N8: 14 | O8: 15 | P8: 3 | Q8: 1 | R8: 10 | S8: 17 | T8: 18 | U8: 15 | V8: 13 | W8: 80 000€ | X8: 110 000€ | Y8: 110 000€ | Z8: 130 000€ | AA8: 80 000€
B9: 4 | H9: 131 | I9: 8.2 | J9: 14 | K9: 7.8 | L9: 4.5 | M9: 14 | N9: 7 | O9: 5 | P9: 4 | Q9: 3 | R9: 15 | S9: 13 | T9: 10 | U9: 18 | V9: 18 | W9: 49 000€ | X9: 85 000€ | Y9: 90 000€ | Z9: 64 000€ | AA9: 64 000€
B10: 5 | H10: 25 | I10: 61 | J10: 35 | K10: 8.9 | L10: 21 | M10: 5 | N10: 8 | O10: 7 | P10: 3 | Q10: 3 | R10: 16 | S10: 13 | T10: 16 | U10: 18 | V10: 18 | W10: 80 000€ | X10: 90 000€ | Y10: 80 000€ | Z10: 60 000€ | AA10: 65 000€
B11: 6 | H11: 31 | I11: 50 | J11: 13 | K11: 119 | L11: 10 | M11: 9 | N11: 4 | O11: 7 | P11: Dai | Q11: 11 | R11: 10 | S11: 16 | T11: 13 | U11: 16 | V11: 13 | W11: 80 000€ | X11: 80 000€ | Y11: 55 000€ | Z11: 80 000€ | AA11: 120 000€
B12: 7 | H12: 3.7 | I12: 9.4 | J12: 162 | K12: 22 | L12: 5.7 | M12: 1 | N12: 3 | O12: 10 | P12: 11 | Q12: 11 | R12: 12 | S12: 11 | T12: 16 | U12: 18 | V12: 12 | W12: 53 000€ | X12: 35 000€ | Y12: 85 000€ | Z12: 40 000€ | AA12: 53 000€
B13: 8 | H13: 56 | I13: 21 | J13: 51 | K13: 59 | L13: 41 | M13: 7 | N13: 2 | O13: 9 | P13: 4 | Q13: 2 | R13: 16 | S13: 13 | T13: 16 | U13: 8 | V13: 13 | W13: 80 000€ | X13: 55 000€ | Y13: 80 000€ | Z13: 80 000€ | AA13: 120 000€
B14: 9 | H14: 132 | I14: 87 | J14: 129 | K14: 49 | L14: 80 | M14: 7 | N14: 6 | O14: 8 | P14: 6 | Q14: 6 | R14: 10 | S14: 8 | T14: 13 | U14: 7 | V14: 8 | W14: 100 000€ | X14: 90 000€ | Y14: 80 000€ | Z14: 100 000€ | AA14: 90 000€
B15: 10 | H15: 20 | I15: 24 | J15: 9.4 | K15: 4.8 | L15: 6.1 | M15: 6 | N15: 6 | O15: 5 | P15: 5 | Q15: 1 | R15: 15 | S15: 16 | T15: 9 | U15: 18 | V15: 11 | W15: 90 000€ | X15: 80 000€ | Y15: 67 000€ | Z15: 65 000€ | AA15: 67 000€
B16: 11 | H16: 62 | I16: 22 | J16: 64 | K16: 49 | L16: 74 | M16: 4 | N16: Dai | O16: 3 | P16: 11 | Q16: 11 | R16: 15 | S16: 16 | T16: 11 | U16: 11 | V16: 16 | W16: 90 000€ | X16: 80 000€ | Y16: 80 000€ | Z16: 35 000€ | AA16: 39 000€
B17: 12 | H17: 9.1 | I17: 6.6 | J17: 16 | K17: 22 | L17: 1.7 | M17: 13 | N17: 8 | O17: 6 | P17: 3 | Q17: 1 | R17: 15 | S17: 15 | T17: 10 | U17: 16 | V17: 16 | W17: 36 000€ | X17: 90 000€ | Y17: 80 000€ | Z17: 80 000€ | AA17: 67 000€
B18: 13 | H18: 10 | I18: 65 | J18: 25 | K18: 3.3 | L18: 171 | M18: 3 | N18: 12 | O18: 5 | P18: 4 | Q18: 0 | R18: 12 | S18: 16 | T18: 13 | U18: 9 | V18: 18 | W18: 53 000€ | X18: 80 000€ | Y18: 80 000€ | Z18: 67 000€ | AA18: 65 000€
B19: 14 | H19: 98 | I19: 6.3 | J19: 15 | K19: 7.7 | L19: 47 | M19: 10 | N19: 10 | O19: 11 | P19: 8 | Q19: 6 | R19: 16 | S19: 12 | T19: 13 | U19: 15 | V19: 16 | W19: 67 000€ | X19: 53 000€ | Y19: 55 000€ | Z19: 44 000€ | AA19: 80 000€
B20: 15 | H20: 9.4 | I20: 16 | J20: 25 | K20: 91 | L20: 4.1 | M20: 1 | N20: 2 | O20: 4 | P20: 6 | Q20: 5 | R20: 16 | S20: 16 | T20: 16 | U20: 16 | V20: 14 | W20: 67 000€ | X20: 67 000€ | Y20: 64 000€ | Z20: 85 000€ | AA20: 36 000€
B21: 16 | H21: 19 | I21: 178 | J21: 105 | K21: 166 | L21: 25 | M21: 2 | N21: 11 | O21: 12 | P21: 0 | Q21: 13 | R21: 12 | S21: 15 | T21: 13 | U21: 18 | V21: 15 | W21: 53 000€ | X21: 80 000€ | Y21: 80 000€ | Z21: 49 000€ | AA21: 45 000€
B22: 17
B23: 18
B24: 19
B25: 20
BT30: 12 | BU30: 15 | BV30: 12 | BW30: 15 | BX30: 12 | BY30: 15 | BZ30: 12 | CA30: 15 | CB30: 12 | CC30: 15 | CD30: 12 | CE30: 15 | CF30: 12 | CG30: 15 | CH30: 12 | CI30: 15 | CJ30: 12 | CK30: 15 | CL30: 12 | CM30: 15 | CN30: 12 | CO30: 15 | CP30: 12 | CQ30: 15 | CR30: 12 | CS30: 15 | CT30: 12 | CU30: 15 | CV30: 12 | CW30: 15 | CX30: 12 | CY30: 15 | CZ30: 12 | DA30: 15 | DB30: 12 | DC30: 15 | DD30: 12 | DE30: 15 | DF30: 12 | DG30: 15 | DH30: 12 | DI30: 15 | DJ30: 12 | DK30: 15 | DL30: 12 | DM30: 15 | DN30: 12 | DO30: 15 | DP30: 12 | DQ30: 15 | DR30: 12 | DS30: 15 | DT30: 12 | DU30: 15 | DV30: 12 | DW30: 15 | DX30: 12 | DY30: 15 | DZ30: 12 | EA30: 15 | EB30: 12 | EC30: 15 | ED30: 12 | EE30: 15 | EF30: 12 | EG30: 15 | EH30: 12 | EI30: 15 | EJ30: 12 | EK30: 15 | EL30: 12 | EM30: 15 | EN30: 12 | EO30: 15 | EP30: 12 | EQ30: 15 | ER30: 12 | ES30: 15 | ET30: 12 | EU30: 15 | EV30: 12 | EW30: 15 | EX30: 12 | EY30: 15 | EZ30: 12 | FA30: 15 | FB30: 12 | FC30: 15 | FD30: 12 | FE30: 15 | FF30: 12 | FG30: 15 | FH30: 12 | FI30: 15 | FJ30: 12 | FK30: 15 | FL30: 12 | FM30: 15 | FN30: 12 | FO30: 15 | FP30: 12 | FQ30: 15 | FR30: 12 | FS30: 15 | FT30: 12 | FU30: 15 | FV30: 12 | FW30: 15 | FX30: 12 | FY30: 15 | FZ30: 12 | GA30: 15 | GB30: 12 | GC30: 15 | GD30: 12 | GE30: 15 | GF30: 12 | GG30: 15 | GH30: 12 | GI30: 15 | GJ30: 12 | GK30: 15 | GL30: 12 | GM30: 15 | GN30: 12 | GO30: 15 | GP30: 12 | GQ30: 15 | GR30: 12 | GS30: 15 | GT30: 12 | GU30: 15 | GV30: 12 | GW30: 15 | GX30: 12 | GY30: 15 | GZ30: 12 | HA30: 15 | HB30: 12 | HC30: 15 | HD30: 12 | HE30: 15 | HF30: 12 | HG30: 15 | HH30: 12 | HI30: 15 | HJ30: 12 | HK30: 15 | HL30: 12 | HM30: 15 | HN30: 12 | HO30: 15 | HP30: 12 | HQ30: 15 | HR30: 12 | HS30: 15 | HT30: 12 | HU30: 15 | HV30: 12 | HW30: 15 | HX30: 12 | HY30: 15 | HZ30: 12 | IA30: 15 | IB30: 12 | IC30: 15 | ID30: 12 | IE30: 15 | IF30: 12 | IG30: 15 | IH30: 12 | II30: 15 | IJ30: 12 | IK30: 15 | IL30: 12 | IM30: 15 | IN30: 12 | IO30: 15 | IP30: 12 | IQ30: 15 | IR30: 12 | IS30: 15 | IT30: 12 | IU30: 15

Sheet Cotes
B4: Musique | C4: P1 | D4: P2 | E4: P3 | F4: P4 | G4: P5 | H4: P6 | I4: N° PMU | J4: P1 | K4: P2 | L4: P3 | M4: P4 | N4: P5 | O4: P6 | P4: Nbre courses | Q4: Nbre courses dans l'année | R4: Cotes PMU | S4: % Cotes | T4: Valeur Cotes | U4: Courses | V4: Victoires | W4: Places | X4: Gains | Y4: Moy. Gains
B5: =IF(Accueil!B15<>"",MusiqueEpuree(Accueil!H15),"") -> 679800 | C5: =IF(ISERROR((IF(B5="","",ABS(LEFT(B5,1))))),"",(IF(B5="","",ABS(LEFT(B5,1))))) -> 6 | D5: =IF(ISERROR((IF(B5="","",IF(LEN(B5)<2,0,ABS(RIGHT((LEFT(B5,2)),1)))))),"",(IF(B5="","",IF(LEN(B5)<2,0,ABS(RIGHT((LEFT(B5,2)),1)))))) -> 7 | E5: =IF(ISERROR((IF(B5="","",IF(LEN(B5)<3,0,ABS(RIGHT((LEFT(B5,3)),1)))))),"",(IF(B5="","",IF(LEN(B5)<3,0,ABS(RIGHT((LEFT(B5,3)),1)))))) -> 9 | F5: =IF(ISERROR((IF(B5="","",IF(LEN(B5)<4,0,ABS(RIGHT((LEFT(B5,4)),1)))))),"",(IF(B5="","",IF(LEN(B5)<4,0,ABS(RIGHT((LEFT(B5,4)),1)))))) -> 8 | G5: =IF(ISERROR((IF(B5="","",IF(LEN(B5)<5,0,ABS(RIGHT((LEFT(B5,5)),1)))))),"",(IF(B5="","",IF(LEN(B5)<5,0,ABS(RIGHT((LEFT(B5,5)),1)))))) -> 0 | H5: =IF(ISERROR((IF(B5="","",IF(LEN(B5)<6,0,ABS(RIGHT((LEFT(B5,6)),1)))))),"",(IF(B5="","",IF(LEN(B5)<6,0,ABS(RIGHT((LEFT(B5,6)),1)))))) -> 0 | I5: =IF(Accueil!B15<>"",Accueil!B15,"") -> 1 | J5: =IF($B5="","",IF(C5=0,10,C5)) -> 6 | K5: =IF($B5="","",IF(D5=0,10,D5)) -> 7 | L5: 9 | M5: 8 | N5: 10 | O5: 10 | P5: =IF(B5<>"",IFERROR(INT(LEN(MID(Accueil!N15,1,SEARCH("("&RIGHT(YEAR(TODAY()),2)-1&")",Accueil!N15)-1))/2),LEN(B5)),"") -> 6 | Q5: =IF(B5<>"",IFERROR(INT(LEN(MID(Accueil!N15,1,SEARCH("("&RIGHT(YEAR(TODAY()),2)-1&")",Accueil!N15)-1))/2),LEN(B5)),"") -> 6 | R5: =IF(I5<>"",IF(Accueil!K15="-","",Accueil!K15),"") -> 14.4 | S5: =IF(AND(R5<>0,R5<>"",R5<>"-"),(1/R5)*100,"") -> 6.944444444 | T5: =IF(OR(S5="",$S$26=0,$S$25=0),"",(S5/$S$26)*100) -> 81.639002 | U5: =IF(I5<>"",Accueil!N15,"") -> 32 | V5: =IF(J5<>"",Accueil!O15,"") -> 1 | W5: =IF(K5<>"",Accueil!P15,"") -> 7 | X5: =IF(L5<>"",Accueil!Q15,"") -> 23570 | Y5: =IF(OR(X5<>0,X5<>""),IF(OR(U5=0,U5=""),"",X5/U5),"") -> 736.5625
B6: =IF(Accueil!B16<>"",MusiqueEpuree(Accueil!H16),"") -> 007000 | C6: 0 | D6: 0 | E6: 7 | F6: 0 | G6: 0 | H6: =IF(ISERROR((IF(B6="","",IF(LEN(B6)<6,0,ABS(RIGHT((LEFT(B6,6)),1)))))),"",(IF(B6="","",IF(LEN(B6)<6,0,ABS(RIGHT((LEFT(B6,6)),1)))))) -> 0 | I6: =IF(Accueil!B16<>"",Accueil!B16,"") -> 2 | J6: =IF($B6="","",IF(C6=0,10,C6)) -> 10 | K6: 10 | L6: 7 | M6: 10 | N6: 10 | O6: 10 | P6: =IF(B6<>"",IFERROR(INT(LEN(MID(Accueil!N16,1,SEARCH("("&RIGHT(YEAR(TODAY()),2)-1&")",Accueil!N16)-1))/2),LEN(B6)),"") -> 6 | Q6: =IF(B6<>"",IFERROR(INT(LEN(MID(Accueil!N16,1,SEARCH("("&RIGHT(YEAR(TODAY()),2)-1&")",Accueil!N16)-1))/2),LEN(B6)),"") -> 6 | R6: =IF(I6<>"",IF(Accueil!K16="-","",Accueil!K16),"") -> 20 | S6: 5 | T6: =IF(OR(S6="",$S$26=0,$S$25=0),"",(S6/$S$26)*100) -> 58.78008144 | U6: =IF(I6<>"",Accueil!N16,"") -> 36 | V6: =IF(J6<>"",Accueil!O16,"") -> 3 | W6: =IF(K6<>"",Accueil!P16,"") -> 2 | X6: =IF(L6<>"",Accueil!Q16,"") -> 30770 | Y6: =IF(OR(X6<>0,X6<>""),IF(OR(U6=0,U6=""),"",X6/U6),"") -> 854.7222222
B7: =IF(Accueil!B17<>"",MusiqueEpuree(Accueil!H17),"") -> 600509 | C7: 6 | D7: 0 | E7: 0 | F7: 5 | G7: 0 | H7: 9 | I7: =IF(Accueil!B17<>"",Accueil!B17,"") -> 3 | J7: 6 | K7: 10 | L7: 10 | M7: 5 | N7: 10 | O7: 9 | P7: =IF(B7<>"",IFERROR(INT(LEN(MID(Accueil!N17,1,SEARCH("("&RIGHT(YEAR(TODAY()),2)-1&")",Accueil!N17)-1))/2),LEN(B7)),"") -> 6 | Q7: =IF(B7<>"",IFERROR(INT(LEN(MID(Accueil!N17,1,SEARCH("("&RIGHT(YEAR(TODAY()),2)-1&")",Accueil!N17)-1))/2),LEN(B7)),"") -> 6 | R7: =IF(I7<>"",IF(Accueil!K17="-","",Accueil!K17),"") -> 8.3 | S7: 12.04819277 | T7: 141.6387505 | U7: =IF(I7<>"",Accueil!N17,"") -> 40 | V7: =IF(J7<>"",Accueil!O17,"") -> 1 | W7: =IF(K7<>"",Accueil!P17,"") -> 8 | X7: =IF(L7<>"",Accueil!Q17,"") -> 32830 | Y7: 820.75
B8: =IF(Accueil!B18<>"",MusiqueEpuree(Accueil!H18),"") -> 009407 | C8: 0 | D8: 0 | E8: 9 | F8: 4 | G8: 0 | H8: 7 | I8: =IF(Accueil!B18<>"",Accueil!B18,"") -> 4 | J8: 10 | K8: 10 | L8: 9 | M8: 4 | N8: 10 | O8: 7 | P8: =IF(B8<>"",IFERROR(INT(LEN(MID(Accueil!N18,1,SEARCH("("&RIGHT(YEAR(TODAY()),2)-1&")",Accueil!N18)-1))/2),LEN(B8)),"") -> 6 | Q8: =IF(B8<>"",IFERROR(INT(LEN(MID(Accueil!N18,1,SEARCH("("&RIGHT(YEAR(TODAY()),2)-1&")",Accueil!N18)-1))/2),LEN(B8)),"") -> 6 | R8: =IF(I8<>"",IF(Accueil!K18="-","",Accueil!K18),"") -> 14.3 | S8: =IF(AND(R8<>0,R8<>"",R8<>"-"),(1/R8)*100,"") -> 6.993006993 | T8: 82.20990411 | U8: =IF(I8<>"",Accueil!N18,"") -> 42 | V8: =IF(J8<>"",Accueil!O18,"") -> 3 | W8: =IF(K8<>"",Accueil!P18,"") -> 4 | X8: =IF(L8<>"",Accueil!Q18,"") -> 45690 | Y8: 1087.857143
B9: =IF(Accueil!B19<>"",MusiqueEpuree(Accueil!H19),"") -> 005600 | C9: 0 | D9: 0 | E9: 5 | F9: 6 | G9: 0 | H9: 0 | I9: =IF(Accueil!B19<>"",Accueil!B19,"") -> 5 | J9: 10 | K9: 10 | L9: 5 | M9: 6 | N9: 10 | O9: 10 | P9: =IF(B9<>"",IFERROR(INT(LEN(MID(Accueil!N19,1,SEARCH("("&RIGHT(YEAR(TODAY()),2)-1&")",Accueil!N19)-1))/2),LEN(B9)),"") -> 6 | Q9: =IF(B9<>"",IFERROR(INT(LEN(MID(Accueil!N19,1,SEARCH("("&RIGHT(YEAR(TODAY()),2)-1&")",Accueil!N19)-1))/2),LEN(B9)),"") -> 6 | R9: =IF(I9<>"",IF(Accueil!K19="-","",Accueil!K19),"") -> 7.4 | S9: =IF(AND(R9<>0,R9<>"",R9<>"-"),(1/R9)*100,"") -> 13.51351351 | T9: 158.865085 | U9: =IF(I9<>"",Accueil!N19,"") -> 49 | V9: =IF(J9<>"",Accueil!O19,"") -> 3 | W9: =IF(K9<>"",Accueil!P19,"") -> 7 | X9: =IF(L9<>"",Accueil!Q19,"") -> 51300 | Y9: 1046.938776
B10: =IF(Accueil!B20<>"",MusiqueEpuree(Accueil!H20),"") -> 037019 | C10: 0 | D10: 3 | E10: 7 | F10: 0 | G10: 1 | H10: 9 | I10: =IF(Accueil!B20<>"",Accueil!B20,"") -> 6 | J10: 10 | K10: 3 | L10: 7 | M10: 10 | N10: 1 | O10: 9 | P10: =IF(B10<>"",IFERROR(INT(LEN(MID(Accueil!N20,1,SEARCH("("&RIGHT(YEAR(TODAY()),2)-1&")",Accueil!N20)-1))/2),LEN(B10)),"") -> 6 | Q10: =IF(B10<>"",IFERROR(INT(LEN(MID(Accueil!N20,1,SEARCH("("&RIGHT(YEAR(TODAY()),2)-1&")",Accueil!N20)-1))/2),LEN(B10)),"") -> 6 | R10: =IF(I10<>"",IF(Accueil!K20="-","",Accueil!K20),"") -> 48.3 | S10: 2.070393375 | T10: 24.33957824 | U10: =IF(I10<>"",Accueil!N20,"") -> 78 | V10: =IF(J10<>"",Accueil!O20,"") -> 5 | W10: =IF(K10<>"",Accueil!P20,"") -> 7 | X10: =IF(L10<>"",Accueil!Q20,"") -> 55345 | Y10: 709.5512821
B11: =IF(Accueil!B21<>"",MusiqueEpuree(Accueil!H21),"") -> 000720 | C11: 0 | D11: 0 | E11: 0 | F11: 7 | G11: 2 | H11: 0 | I11: =IF(Accueil!B21<>"",Accueil!B21,"") -> 7 | J11: 10 | K11: 10 | L11: 10 | M11: 7 | N11: 2 | O11: 10 | P11: =IF(B11<>"",IFERROR(INT(LEN(MID(Accueil!N21,1,SEARCH("("&RIGHT(YEAR(TODAY()),2)-1&")",Accueil!N21)-1))/2),LEN(B11)),"") -> 6 | Q11: =IF(B11<>"",IFERROR(INT(LEN(MID(Accueil!N21,1,SEARCH("("&RIGHT(YEAR(TODAY()),2)-1&")",Accueil!N21)-1))/2),LEN(B11)),"") -> 6 | R11: =IF(I11<>"",IF(Accueil!K21="-","",Accueil!K21),"") -> 5.8 | S11: 17.24137931 | T11: 202.689936 | U11: =IF(I11<>"",Accueil!N21,"") -> 29 | V11: =IF(J11<>"",Accueil!O21,"") -> 2 | W11: =IF(K11<>"",Accueil!P21,"") -> 6 | X11: =IF(L11<>"",Accueil!Q21,"") -> 39450 | Y11: 1360.344828
B12: =IF(Accueil!B22<>"",MusiqueEpuree(Accueil!H22),"") -> 000292 | C12: 0 | D12: 0 | E12: 0 | F12: 2 | G12: 9 | H12: 2 | I12: =IF(Accueil!B22<>"",Accueil!B22,"") -> 8 | J12: 10 | K12: 10 | L12: 10 | M12: 2 | N12: 9 | O12: 2 | P12: =IF(B12<>"",IFERROR(INT(LEN(MID(Accueil!N22,1,SEARCH("("&RIGHT(YEAR(TODAY()),2)-1&")",Accueil!N22)-1))/2),LEN(B12)),"") -> 6 | Q12: =IF(B12<>"",IFERROR(INT(LEN(MID(Accueil!N22,1,SEARCH("("&RIGHT(YEAR(TODAY()),2)-1&")",Accueil!N22)-1))/2),LEN(B12)),"") -> 6 | R12: =IF(I12<>"",IF(Accueil!K22="-","",Accueil!K22),"") -> 23.2 | S12: 4.310344828 | T12: 50.672484 | U12: =IF(I12<>"",Accueil!N22,"") -> 38 | V12: =IF(J12<>"",Accueil!O22,"") -> 4 | W12: =IF(K12<>"",Accueil!P22,"") -> 7 | X12: =IF(L12<>"",Accueil!Q22,"") -> 42080 | Y12: 1107.368421
B13: =IF(Accueil!B23<>"",MusiqueEpuree(Accueil!H23),"") -> 708690 | C13: 7 | D13: 0 | E13: 8 | F13: 6 | G13: 9 | H13: 0 | I13: =IF(Accueil!B23<>"",Accueil!B23,"") -> 9 | J13: 7 | K13: 10 | L13: 8 | M13: 6 | N13: 9 | O13: 10 | P13: =IF(B13<>"",IFERROR(INT(LEN(MID(Accueil!N23,1,SEARCH("("&RIGHT(YEAR(TODAY()),2)-1&")",Accueil!N23)-1))/2),LEN(B13)),"") -> 6 | Q13: =IF(B13<>"",IFERROR(INT(LEN(MID(Accueil!N23,1,SEARCH("("&RIGHT(YEAR(TODAY()),2)-1&")",Accueil!N23)-1))/2),LEN(B13)),"") -> 6 | R13: =IF(I13<>"",IF(Accueil!K23="-","",Accueil!K23),"") -> 28.4 | S13: 3.521126761 | T13: 41.39442355 | U13: =IF(I13<>"",Accueil!N23,"") -> 64 | V13: =IF(J13<>"",Accueil!O23,"") -> 2 | W13: =IF(K13<>"",Accueil!P23,"") -> 13 | X13: =IF(L13<>"",Accueil!Q23,"") -> 42840 | Y13: 669.375
B14: =IF(Accueil!B24<>"",MusiqueEpuree(Accueil!H24),"") -> 800550 | C14: 8 | D14: 0 | E14: 0 | F14: 5 | G14: 5 | H14: 0 | I14: =IF(Accueil!B24<>"",Accueil!B24,"") -> 10 | J14: 8 | K14: 10 | L14: 10 | M14: 5 | N14: 5 | O14: 10 | P14: =IF(B14<>"",IFERROR(INT(LEN(MID(Accueil!N24,1,SEARCH("("&RIGHT(YEAR(TODAY()),2)-1&")",Accueil!N24)-1))/2),LEN(B14)),"") -> 6 | Q14: =IF(B14<>"",IFERROR(INT(LEN(MID(Accueil!N24,1,SEARCH("("&RIGHT(YEAR(TODAY()),2)-1&")",Accueil!N24)-1))/2),LEN(B14)),"") -> 6 | R14: =IF(I14<>"",IF(Accueil!K24="-","",Accueil!K24),"") -> 35.3 | S14: 2.83286119 | T14: 33.30316229 | U14: =IF(I14<>"",Accueil!N24,"") -> 72 | V14: =IF(J14<>"",Accueil!O24,"") -> 2 | W14: =IF(K14<>"",Accueil!P24,"") -> 13 | X14: =IF(L14<>"",Accueil!Q24,"") -> 48675 | Y14: 676.0416667
B15: =IF(Accueil!B25<>"",MusiqueEpuree(Accueil!H25),"") -> 470423 | C15: 4 | D15: 7 | E15: 0 | F15: 4 | G15: 2 | H15: 3 | I15: =IF(Accueil!B25<>"",Accueil!B25,"") -> 11 | J15: 4 | K15: 7 | L15: 10 | M15: 4 | N15: 2 | O15: 3 | P15: =IF(B15<>"",IFERROR(INT(LEN(MID(Accueil!N25,1,SEARCH("("&RIGHT(YEAR(TODAY()),2)-1&")",Accueil!N25)-1))/2),LEN(B15)),"") -> 6 | Q15: =IF(B15<>"",IFERROR(INT(LEN(MID(Accueil!N25,1,SEARCH("("&RIGHT(YEAR(TODAY()),2)-1&")",Accueil!N25)-1))/2),LEN(B15)),"") -> 6 | R15: =IF(I15<>"",IF(Accueil!K25="-","",Accueil!K25),"") -> 30.9 | S15: 3.236245955 | T15: 38.04536015 | U15: =IF(I15<>"",Accueil!N25,"") -> 75 | V15: =IF(J15<>"",Accueil!O25,"") -> 3 | W15: =IF(K15<>"",Accueil!P25,"") -> 12 | X15: =IF(L15<>"",Accueil!Q25,"") -> 53330 | Y15: 711.0666667
B16: =IF(Accueil!B26<>"",MusiqueEpuree(Accueil!H26),"") -> 520480 | C16: 5 | D16: 2 | E16: 0 | F16: 4 | G16: 8 | H16: 0 | I16: =IF(Accueil!B26<>"",Accueil!B26,"") -> 12 | J16: 5 | K16: 2 | L16: 10 | M16: 4 | N16: 8 | O16: 10 | P16: =IF(B16<>"",IFERROR(INT(LEN(MID(Accueil!N26,1,SEARCH("("&RIGHT(YEAR(TODAY()),2)-1&")",Accueil!N26)-1))/2),LEN(B16)),"") -> 6 | Q16: =IF(B16<>"",IFERROR(INT(LEN(MID(Accueil!N26,1,SEARCH("("&RIGHT(YEAR(TODAY()),2)-1&")",Accueil!N26)-1))/2),LEN(B16)),"") -> 6 | R16: =IF(I16<>"",IF(Accueil!K26="-","",Accueil!K26),"") -> 4.5 | S16: 22.22222222 | T16: 261.2448064 | U16: =IF(I16<>"",Accueil!N26,"") -> 47 | V16: =IF(J16<>"",Accueil!O26,"") -> 3 | W16: =IF(K16<>"",Accueil!P26,"") -> 10 | X16: =IF(L16<>"",Accueil!Q26,"") -> 54290 | Y16: 1155.106383
B17: =IF(Accueil!B27<>"",MusiqueEpuree(Accueil!H27),"") -> 108031 | C17: 1 | D17: 0 | E17: 8 | F17: 0 | G17: 3 | H17: 1 | I17: =IF(Accueil!B27<>"",Accueil!B27,"") -> 13 | J17: 1 | K17: 10 | L17: 8 | M17: 10 | N17: 3 | O17: 1 | P17: =IF(B17<>"",IFERROR(INT(LEN(MID(Accueil!N27,1,SEARCH("("&RIGHT(YEAR(TODAY()),2)-1&")",Accueil!N27)-1))/2),LEN(B17)),"") -> 6 | Q17: =IF(B17<>"",IFERROR(INT(LEN(MID(Accueil!N27,1,SEARCH("("&RIGHT(YEAR(TODAY()),2)-1&")",Accueil!N27)-1))/2),LEN(B17)),"") -> 6 | R17: =IF(I17<>"",IF(Accueil!K27="-","",Accueil!K27),"") -> 6 | S17: 16.66666667 | T17: 195.9336048 | U17: =IF(I17<>"",Accueil!N27,"") -> 32 | V17: =IF(J17<>"",Accueil!O27,"") -> 6 | W17: =IF(K17<>"",Accueil!P27,"") -> 5 | X17: =IF(L17<>"",Accueil!Q27,"") -> 62580 | Y17: 1955.625
B18: =IF(Accueil!B28<>"",MusiqueEpuree(Accueil!H28),"") -> 807000 | C18: 8 | D18: 0 | E18: 7 | F18: 0 | G18: 0 | H18: 0 | I18: =IF(Accueil!B28<>"",Accueil!B28,"") -> 14 | J18: 8 | K18: 10 | L18: 7 | M18: 10 | N18: 10 | O18: 10 | P18: =IF(B18<>"",IFERROR(INT(LEN(MID(Accueil!N28,1,SEARCH("("&RIGHT(YEAR(TODAY()),2)-1&")",Accueil!N28)-1))/2),LEN(B18)),"") -> 6 | Q18: =IF(B18<>"",IFERROR(INT(LEN(MID(Accueil!N28,1,SEARCH("("&RIGHT(YEAR(TODAY()),2)-1&")",Accueil!N28)-1))/2),LEN(B18)),"") -> 6 | R18: =IF(I18<>"",IF(Accueil!K28="-","",Accueil!K28),"") -> 40.2 | S18: 2.487562189 | T18: 29.24382161 | U18: =IF(I18<>"",Accueil!N28,"") -> 77 | V18: =IF(J18<>"",Accueil!O28,"") -> 4 | W18: =IF(K18<>"",Accueil!P28,"") -> 17 | X18: =IF(L18<>"",Accueil!Q28,"") -> 62980 | Y18: 817.9220779
B19: =IF(Accueil!B29<>"",MusiqueEpuree(Accueil!H29),"") ->  | I19: =IF(Accueil!B29<>"",Accueil!B29,"") ->  | P19: =IF(B19<>"",IFERROR(INT(LEN(MID(Accueil!N29,1,SEARCH("("&RIGHT(YEAR(TODAY()),2)-1&")",Accueil!N29)-1))/2),LEN(B19)),"") ->  | Q19: =IF(B19<>"",IFERROR(INT(LEN(MID(Accueil!N29,1,SEARCH("("&RIGHT(YEAR(TODAY()),2)-1&")",Accueil!N29)-1))/2),LEN(B19)),"") ->  | R19: =IF(I19<>"",IF(Accueil!K29="-","",Accueil!K29),"") ->  | U19: =IF(I19<>"",Accueil!N29,"") ->  | V19: =IF(J19<>"",Accueil!O29,"") ->  | W19: =IF(K19<>"",Accueil!P29,"") ->  | X19: =IF(L19<>"",Accueil!Q29,"") -> 
B20: =IF(Accueil!B30<>"",MusiqueEpuree(Accueil!H30),"") ->  | I20: =IF(Accueil!B30<>"",Accueil!B30,"") ->  | P20: =IF(B20<>"",IFERROR(INT(LEN(MID(Accueil!N30,1,SEARCH("("&RIGHT(YEAR(TODAY()),2)-1&")",Accueil!N30)-1))/2),LEN(B20)),"") ->  | Q20: =IF(B20<>"",IFERROR(INT(LEN(MID(Accueil!N30,1,SEARCH("("&RIGHT(YEAR(TODAY()),2)-1&")",Accueil!N30)-1))/2),LEN(B20)),"") ->  | R20: =IF(I20<>"",IF(Accueil!K30="-","",Accueil!K30),"") ->  | U20: =IF(I20<>"",Accueil!N30,"") ->  | V20: =IF(J20<>"",Accueil!O30,"") ->  | W20: =IF(K20<>"",Accueil!P30,"") ->  | X20: =IF(L20<>"",Accueil!Q30,"") -> 
B21: =IF(Accueil!B31<>"",MusiqueEpuree(Accueil!H31),"") ->  | I21: =IF(Accueil!B31<>"",Accueil!B31,"") ->  | P21: =IF(B21<>"",IFERROR(INT(LEN(MID(Accueil!N31,1,SEARCH("("&RIGHT(YEAR(TODAY()),2)-1&")",Accueil!N31)-1))/2),LEN(B21)),"") ->  | Q21: =IF(B21<>"",IFERROR(INT(LEN(MID(Accueil!N31,1,SEARCH("("&RIGHT(YEAR(TODAY()),2)-1&")",Accueil!N31)-1))/2),LEN(B21)),"") ->  | R21: =IF(I21<>"",IF(Accueil!K31="-","",Accueil!K31),"") ->  | U21: =IF(I21<>"",Accueil!N31,"") ->  | V21: =IF(J21<>"",Accueil!O31,"") ->  | W21: =IF(K21<>"",Accueil!P31,"") ->  | X21: =IF(L21<>"",Accueil!Q31,"") -> 
B22: =IF(Accueil!B32<>"",MusiqueEpuree(Accueil!H32),"") ->  | I22: =IF(Accueil!B32<>"",Accueil!B32,"") ->  | P22: =IF(B22<>"",IFERROR(INT(LEN(MID(Accueil!N32,1,SEARCH("("&RIGHT(YEAR(TODAY()),2)-1&")",Accueil!N32)-1))/2),LEN(B22)),"") ->  | Q22: =IF(B22<>"",IFERROR(INT(LEN(MID(Accueil!N32,1,SEARCH("("&RIGHT(YEAR(TODAY()),2)-1&")",Accueil!N32)-1))/2),LEN(B22)),"") ->  | R22: =IF(I22<>"",IF(Accueil!K32="-","",Accueil!K32),"") ->  | U22: =IF(I22<>"",Accueil!N32,"") ->  | V22: =IF(J22<>"",Accueil!O32,"") ->  | W22: =IF(K22<>"",Accueil!P32,"") ->  | X22: =IF(L22<>"",Accueil!Q32,"") -> 
B23: =IF(Accueil!B33<>"",MusiqueEpuree(Accueil!H33),"") ->  | I23: =IF(Accueil!B33<>"",Accueil!B33,"") ->  | P23: =IF(B23<>"",IFERROR(INT(LEN(MID(Accueil!N33,1,SEARCH("("&RIGHT(YEAR(TODAY()),2)-1&")",Accueil!N33)-1))/2),LEN(B23)),"") ->  | Q23: =IF(B23<>"",IFERROR(INT(LEN(MID(Accueil!N33,1,SEARCH("("&RIGHT(YEAR(TODAY()),2)-1&")",Accueil!N33)-1))/2),LEN(B23)),"") ->  | R23: =IF(I23<>"",IF(Accueil!K33="-","",Accueil!K33),"") ->  | U23: =IF(I23<>"",Accueil!N33,"") ->  | V23: =IF(J23<>"",Accueil!O33,"") ->  | W23: =IF(K23<>"",Accueil!P33,"") ->  | X23: =IF(L23<>"",Accueil!Q33,"") -> 
B24: =IF(Accueil!B34<>"",MusiqueEpuree(Accueil!H34),"") ->  | I24: =IF(Accueil!B34<>"",Accueil!B34,"") ->  | P24: =IF(B24<>"",IFERROR(INT(LEN(MID(Accueil!N34,1,SEARCH("("&RIGHT(YEAR(TODAY()),2)-1&")",Accueil!N34)-1))/2),LEN(B24)),"") ->  | Q24: =IF(B24<>"",IFERROR(INT(LEN(MID(Accueil!N34,1,SEARCH("("&RIGHT(YEAR(TODAY()),2)-1&")",Accueil!N34)-1))/2),LEN(B24)),"") ->  | R24: =IF(I24<>"",IF(Accueil!K34="-","",Accueil!K34),"") ->  | U24: =IF(I24<>"",Accueil!N34,"") ->  | V24: =IF(J24<>"",Accueil!O34,"") ->  | W24: =IF(K24<>"",Accueil!P34,"") ->  | X24: =IF(L24<>"",Accueil!Q34,"") -> 
S25: =SUM(S5:S24) -> 119.0879602
C26: Nb Partants | E26: =MAX(I5:I24) -> 14 | S26: =S25/E26 -> 8.506282873
T28: Valeur Cotes
R29: =I5 -> 1 | S29: =IF(R29<>"",T5,"") -> 81.639002 | T29: =IF(U29="","",LARGE(IF(S$29:S$48=U29,R$29:R$48),COUNTIF(U$29:U29,U29))) -> 12 | U29: =IFERROR(LARGE($S$29:$S$48,ROWS($32:32)),"") -> 261.2448064
R30: 2 | S30: 58.78008144 | T30: =IF(U30="","",LARGE(IF(S$29:S$48=U30,R$29:R$48),COUNTIF(U$29:U30,U30))) -> 7 | U30: =IFERROR(LARGE($S$29:$S$48,ROWS($32:33)),"") -> 202.689936
R31: 3 | S31: 141.6387505 | T31: =IF(U31="","",LARGE(IF(S$29:S$48=U31,R$29:R$48),COUNTIF(U$29:U31,U31))) -> 13 | U31: =IFERROR(LARGE($S$29:$S$48,ROWS($32:34)),"") -> 195.9336048
R32: 4 | S32: 82.20990411 | T32: =IF(U32="","",LARGE(IF(S$29:S$48=U32,R$29:R$48),COUNTIF(U$29:U32,U32))) -> 5 | U32: =IFERROR(LARGE($S$29:$S$48,ROWS($32:35)),"") -> 158.865085
R33: 5 | S33: 158.865085 | T33: =IF(U33="","",LARGE(IF(S$29:S$48=U33,R$29:R$48),COUNTIF(U$29:U33,U33))) -> 3 | U33: =IFERROR(LARGE($S$29:$S$48,ROWS($32:36)),"") -> 141.6387505
R34: 6 | S34: 24.33957824 | T34: =IF(U34="","",LARGE(IF(S$29:S$48=U34,R$29:R$48),COUNTIF(U$29:U34,U34))) -> 4 | U34: =IFERROR(LARGE($S$29:$S$48,ROWS($32:37)),"") -> 82.20990411
R35: 7 | S35: 202.689936 | T35: =IF(U35="","",LARGE(IF(S$29:S$48=U35,R$29:R$48),COUNTIF(U$29:U35,U35))) -> 1 | U35: =IFERROR(LARGE($S$29:$S$48,ROWS($32:38)),"") -> 81.639002
R36: 8 | S36: 50.672484 | T36: =IF(U36="","",LARGE(IF(S$29:S$48=U36,R$29:R$48),COUNTIF(U$29:U36,U36))) -> 2 | U36: =IFERROR(LARGE($S$29:$S$48,ROWS($32:39)),"") -> 58.78008144
R37: 9 | S37: 41.39442355 | T37: =IF(U37="","",LARGE(IF(S$29:S$48=U37,R$29:R$48),COUNTIF(U$29:U37,U37))) -> 8 | U37: =IFERROR(LARGE($S$29:$S$48,ROWS($32:40)),"") -> 50.672484
R38: 10 | S38: 33.30316229 | T38: =IF(U38="","",LARGE(IF(S$29:S$48=U38,R$29:R$48),COUNTIF(U$29:U38,U38))) -> 9 | U38: =IFERROR(LARGE($S$29:$S$48,ROWS($32:41)),"") -> 41.39442355
R39: 11 | S39: 38.04536015 | T39: =IF(U39="","",LARGE(IF(S$29:S$48=U39,R$29:R$48),COUNTIF(U$29:U39,U39))) -> 11 | U39: =IFERROR(LARGE($S$29:$S$48,ROWS($32:42)),"") -> 38.04536015
R40: 12 | S40: 261.2448064 | T40: =IF(U40="","",LARGE(IF(S$29:S$48=U40,R$29:R$48),COUNTIF(U$29:U40,U40))) -> 10 | U40: =IFERROR(LARGE($S$29:$S$48,ROWS($32:43)),"") -> 33.30316229
R41: 13 | S41: 195.9336048 | T41: =IF(U41="","",LARGE(IF(S$29:S$48=U41,R$29:R$48),COUNTIF(U$29:U41,U41))) -> 14 | U41: =IFERROR(LARGE($S$29:$S$48,ROWS($32:44)),"") -> 29.24382161
R42: 14 | S42: 29.24382161 | T42: =IF(U42="","",LARGE(IF(S$29:S$48=U42,R$29:R$48),COUNTIF(U$29:U42,U42))) -> 6 | U42: =IFERROR(LARGE($S$29:$S$48,ROWS($32:45)),"") -> 24.33957824
T43: =IF(U43="","",LARGE(IF(S$29:S$48=U43,R$29:R$48),COUNTIF(U$29:U43,U43))) ->  | U43: =IFERROR(LARGE($S$29:$S$48,ROWS($32:46)),"") -> 
T44: =IF(U44="","",LARGE(IF(S$29:S$48=U44,R$29:R$48),COUNTIF(U$29:U44,U44))) ->  | U44: =IFERROR(LARGE($S$29:$S$48,ROWS($32:47)),"") -> 
T45: =IF(U45="","",LARGE(IF(S$29:S$48=U45,R$29:R$48),COUNTIF(U$29:U45,U45))) ->  | U45: =IFERROR(LARGE($S$29:$S$48,ROWS($32:48)),"") -> 
T46: =IF(U46="","",LARGE(IF(S$29:S$48=U46,R$29:R$48),COUNTIF(U$29:U46,U46))) ->  | U46: =IFERROR(LARGE($S$29:$S$48,ROWS($32:49)),"") -> 
T47: =IF(U47="","",LARGE(IF(S$29:S$48=U47,R$29:R$48),COUNTIF(U$29:U47,U47))) ->  | U47: =IFERROR(LARGE($R$29:$R$48,ROWS($32:50)),"") -> 
T48: =IF(U48="","",LARGE(IF(S$29:S$48=U48,R$29:R$48),COUNTIF(U$29:U48,U48))) ->  | U48: =IFERROR(LARGE($R$29:$R$48,ROWS($32:51)),"") -> 

Sheet Résumé
A1: 1 | K1: Rang | N1: Nbre de partants | Q1: Adversaires battus | T1: Total | V1: Rang
A2: Alloc. | D2: Cotes | F2: Rang | J2: =IF(Cotes!I5<>"",Cotes!I5,"") -> 1 | K2: =IF(J2<>"",IF(ISERROR(MATCH(NCV!M6,{"A","D","Dai","Di","T","Db"},0)),NCV!M6,NCV!R6),"") -> 14 | L2: =IF(K2<>"",IF(ISERROR(MATCH(NCV!N6,{"A","D","Dai","Di","T","Db"},0)),NCV!N6,NCV!S6),"") -> 10 | M2: =IF(L2<>"",IF(ISERROR(MATCH(NCV!O6,{"A","D","Dai","Di","T","Db"},0)),NCV!O6,NCV!T6),"") -> 7 | N2: =IF(J2<>"",NCV!R6,"") -> 14 | O2: =IF(K2<>"",NCV!S6,"") -> 13 | P2: =IF(L2<>"",NCV!T6,"") -> 11 | Q2: =IF(J2<>"",N2-V2,"") -> 0 | R2: =IF(K2<>"",O2-W2,"") -> 3 | S2: =IF(L2<>"",P2-X2,"") -> 4 | T2: =IF(J2<>"",SUM(Q2:S2),"") -> 7 | V2: =IF(OR(K2=0,NOT(ISNUMBER(K2))),N2,K2) -> 14 | W2: =IF(OR(L2=0,NOT(ISNUMBER(L2))),O2,L2) -> 10 | X2: 7
A3: 100 000€ | B3: =SUM(A3/1000) ->  | D3: 154 | E3: =MIN(D3:D5) -> 11 | F3: 14 | G3: =IF(F3:F5=0,"",F3:F5) -> 14 | H3: =MIN(G3:G5) -> 7 | J3: =IF(Cotes!I6<>"",Cotes!I6,"") -> 2 | K3: =IF(J3<>"",IF(ISERROR(MATCH(NCV!M7,{"A","D","Dai","Di","T","Db"},0)),NCV!M7,NCV!R7),"") -> 11 | L3: =IF(K3<>"",IF(ISERROR(MATCH(NCV!N7,{"A","D","Dai","Di","T","Db"},0)),NCV!N7,NCV!S7),"") -> 2 | M3: =IF(L3<>"",IF(ISERROR(MATCH(NCV!O7,{"A","D","Dai","Di","T","Db"},0)),NCV!O7,NCV!T7),"") -> 4 | N3: =IF(J3<>"",NCV!R7,"") -> 15 | O3: =IF(K3<>"",NCV!S7,"") -> 16 | P3: =IF(L3<>"",NCV!T7,"") -> 14 | Q3: =IF(J3<>"",N3-V3,"") -> 4 | R3: 14 | S3: 10 | T3: =IF(J3<>"",SUM(Q3:S3),"") -> 28 | V3: =IF(OR(K3=0,NOT(ISNUMBER(K3))),N3,K3) -> 11 | W3: 2 | X3: 4
A4: 55 000€ | B4: =SUM(A4/1000) ->  | D4: 36 | F4: 10 | G4: =IF(F4:F6=0,"",F4:F6) -> 10 | J4: =IF(Cotes!I7<>"",Cotes!I7,"") -> 3 | K4: =IF(J4<>"",IF(ISERROR(MATCH(NCV!M8,{"A","D","Dai","Di","T","Db"},0)),NCV!M8,NCV!R8),"") -> 8 | L4: =IF(K4<>"",IF(ISERROR(MATCH(NCV!N8,{"A","D","Dai","Di","T","Db"},0)),NCV!N8,NCV!S8),"") -> 14 | M4: =IF(L4<>"",IF(ISERROR(MATCH(NCV!O8,{"A","D","Dai","Di","T","Db"},0)),NCV!O8,NCV!T8),"") -> 15 | N4: =IF(J4<>"",NCV!R8,"") -> 10 | O4: =IF(K4<>"",NCV!S8,"") -> 17 | P4: =IF(L4<>"",NCV!T8,"") -> 18 | Q4: 2 | R4: 3 | S4: 3 | T4: 8 | V4: 8 | W4: 14 | X4: 15
A5: 35 000€ | B5: =SUM(A5/1000) ->  | D5: 11 | F5: 7 | G5: =IF(F5:F7=0,"",F5:F7) -> 7 | J5: =IF(Cotes!I8<>"",Cotes!I8,"") -> 4 | K5: =IF(J5<>"",IF(ISERROR(MATCH(NCV!M9,{"A","D","Dai","Di","T","Db"},0)),NCV!M9,NCV!R9),"") -> 14 | L5: =IF(K5<>"",IF(ISERROR(MATCH(NCV!N9,{"A","D","Dai","Di","T","Db"},0)),NCV!N9,NCV!S9),"") -> 7 | M5: =IF(L5<>"",IF(ISERROR(MATCH(NCV!O9,{"A","D","Dai","Di","T","Db"},0)),NCV!O9,NCV!T9),"") -> 5 | N5: =IF(J5<>"",NCV!R9,"") -> 15 | O5: =IF(K5<>"",NCV!S9,"") -> 13 | P5: =IF(L5<>"",NCV!T9,"") -> 10 | Q5: 1 | R5: 6 | S5: 5 | T5: 12 | V5: 14 | W5: 7 | X5: 5
A6: 57 000€ | B6: =SUM(A6/1000) ->  | D6: 15 | F6: 5 | J6: =IF(Cotes!I9<>"",Cotes!I9,"") -> 5 | K6: =IF(J6<>"",IF(ISERROR(MATCH(NCV!M10,{"A","D","Dai","Di","T","Db"},0)),NCV!M10,NCV!R10),"") -> 5 | L6: =IF(K6<>"",IF(ISERROR(MATCH(NCV!N10,{"A","D","Dai","Di","T","Db"},0)),NCV!N10,NCV!S10),"") -> 8 | M6: =IF(L6<>"",IF(ISERROR(MATCH(NCV!O10,{"A","D","Dai","Di","T","Db"},0)),NCV!O10,NCV!T10),"") -> 7 | N6: =IF(J6<>"",NCV!R10,"") -> 16 | O6: =IF(K6<>"",NCV!S10,"") -> 13 | P6: =IF(L6<>"",NCV!T10,"") -> 16 | Q6: 11 | R6: 5 | S6: 9 | T6: 25 | V6: 5 | W6: 8 | X6: 7
A7: 100 000€ | B7: =SUM(A7/1000) ->  | D7: 65 | F7: 7 | J7: =IF(Cotes!I10<>"",Cotes!I10,"") -> 6 | K7: =IF(J7<>"",IF(ISERROR(MATCH(NCV!M11,{"A","D","Dai","Di","T","Db"},0)),NCV!M11,NCV!R11),"") -> 9 | L7: =IF(K7<>"",IF(ISERROR(MATCH(NCV!N11,{"A","D","Dai","Di","T","Db"},0)),NCV!N11,NCV!S11),"") -> 4 | M7: =IF(L7<>"",IF(ISERROR(MATCH(NCV!O11,{"A","D","Dai","Di","T","Db"},0)),NCV!O11,NCV!T11),"") -> 7 | N7: =IF(J7<>"",NCV!R11,"") -> 10 | O7: =IF(K7<>"",NCV!S11,"") -> 16 | P7: =IF(L7<>"",NCV!T11,"") -> 13 | Q7: 1 | R7: 12 | S7: 6 | T7: 19 | V7: 9 | W7: 4 | X7: 7
J8: =IF(Cotes!I11<>"",Cotes!I11,"") -> 7 | K8: =IF(J8<>"",IF(ISERROR(MATCH(NCV!M12,{"A","D","Dai","Di","T","Db"},0)),NCV!M12,NCV!R12),"") -> 1 | L8: =IF(K8<>"",IF(ISERROR(MATCH(NCV!N12,{"A","D","Dai","Di","T","Db"},0)),NCV!N12,NCV!S12),"") -> 3 | M8: =IF(L8<>"",IF(ISERROR(MATCH(NCV!O12,{"A","D","Dai","Di","T","Db"},0)),NCV!O12,NCV!T12),"") -> 10 | N8: =IF(J8<>"",NCV!R12,"") -> 12 | O8: =IF(K8<>"",NCV!S12,"") -> 11 | P8: =IF(L8<>"",NCV!T12,"") -> 16 | Q8: 11 | R8: 8 | S8: 6 | T8: 25 | V8: 1 | W8: 3 | X8: 10
J9: =IF(Cotes!I12<>"",Cotes!I12,"") -> 8 | K9: =IF(J9<>"",IF(ISERROR(MATCH(NCV!M13,{"A","D","Dai","Di","T","Db"},0)),NCV!M13,NCV!R13),"") -> 7 | L9: =IF(K9<>"",IF(ISERROR(MATCH(NCV!N13,{"A","D","Dai","Di","T","Db"},0)),NCV!N13,NCV!S13),"") -> 2 | M9: =IF(L9<>"",IF(ISERROR(MATCH(NCV!O13,{"A","D","Dai","Di","T","Db"},0)),NCV!O13,NCV!T13),"") -> 9 | N9: =IF(J9<>"",NCV!R13,"") -> 16 | O9: =IF(K9<>"",NCV!S13,"") -> 13 | P9: =IF(L9<>"",NCV!T13,"") -> 16 | Q9: 9 | R9: 11 | S9: 7 | T9: 27 | V9: 7 | W9: 2 | X9: 9
J10: =IF(Cotes!I13<>"",Cotes!I13,"") -> 9 | K10: =IF(J10<>"",IF(ISERROR(MATCH(NCV!M14,{"A","D","Dai","Di","T","Db"},0)),NCV!M14,NCV!R14),"") -> 7 | L10: =IF(K10<>"",IF(ISERROR(MATCH(NCV!N14,{"A","D","Dai","Di","T","Db"},0)),NCV!N14,NCV!S14),"") -> 6 | M10: =IF(L10<>"",IF(ISERROR(MATCH(NCV!O14,{"A","D","Dai","Di","T","Db"},0)),NCV!O14,NCV!T14),"") -> 8 | N10: =IF(J10<>"",NCV!R14,"") -> 10 | O10: =IF(K10<>"",NCV!S14,"") -> 8 | P10: =IF(L10<>"",NCV!T14,"") -> 13 | Q10: 3 | R10: 2 | S10: 5 | T10: 10 | V10: 7 | W10: 6 | X10: 8
A11: 2 | J11: =IF(Cotes!I14<>"",Cotes!I14,"") -> 10 | K11: =IF(J11<>"",IF(ISERROR(MATCH(NCV!M15,{"A","D","Dai","Di","T","Db"},0)),NCV!M15,NCV!R15),"") -> 6 | L11: =IF(K11<>"",IF(ISERROR(MATCH(NCV!N15,{"A","D","Dai","Di","T","Db"},0)),NCV!N15,NCV!S15),"") -> 6 | M11: =IF(L11<>"",IF(ISERROR(MATCH(NCV!O15,{"A","D","Dai","Di","T","Db"},0)),NCV!O15,NCV!T15),"") -> 5 | N11: =IF(J11<>"",NCV!R15,"") -> 15 | O11: =IF(K11<>"",NCV!S15,"") -> 16 | P11: =IF(L11<>"",NCV!T15,"") -> 9 | Q11: 9 | R11: 10 | S11: 4 | T11: 23 | V11: 6 | W11: 6 | X11: 5
A12: Alloc. | D12: Cotes | F12: Rang | J12: =IF(Cotes!I15<>"",Cotes!I15,"") -> 11 | K12: =IF(J12<>"",IF(ISERROR(MATCH(NCV!M16,{"A","D","Dai","Di","T","Db"},0)),NCV!M16,NCV!R16),"") -> 4 | L12: =IF(K12<>"",IF(ISERROR(MATCH(NCV!N16,{"A","D","Dai","Di","T","Db"},0)),NCV!N16,NCV!S16),"") -> 16 | M12: =IF(L12<>"",IF(ISERROR(MATCH(NCV!O16,{"A","D","Dai","Di","T","Db"},0)),NCV!O16,NCV!T16),"") -> 3 | N12: =IF(J12<>"",NCV!R16,"") -> 15 | O12: =IF(K12<>"",NCV!S16,"") -> 16 | P12: =IF(L12<>"",NCV!T16,"") -> 11 | Q12: 11 | R12: 0 | S12: 8 | T12: 19 | V12: 4 | W12: 16 | X12: 3
A13: 90 000€ | B13: =SUM(A13/1000) ->  | D13: 106 | E13: =MIN(D13:D15) -> 3 | F13: 11 | G13: =IF(F13:F15=0,"",F13:F15) -> 11 | H13: =MIN(G13:G15) -> 2 | J13: =IF(Cotes!I16<>"",Cotes!I16,"") -> 12 | K13: =IF(J13<>"",IF(ISERROR(MATCH(NCV!M17,{"A","D","Dai","Di","T","Db"},0)),NCV!M17,NCV!R17),"") -> 13 | L13: =IF(K13<>"",IF(ISERROR(MATCH(NCV!N17,{"A","D","Dai","Di","T","Db"},0)),NCV!N17,NCV!S17),"") -> 8 | M13: =IF(L13<>"",IF(ISERROR(MATCH(NCV!O17,{"A","D","Dai","Di","T","Db"},0)),NCV!O17,NCV!T17),"") -> 6 | N13: =IF(J13<>"",NCV!R17,"") -> 15 | O13: =IF(K13<>"",NCV!S17,"") -> 15 | P13: =IF(L13<>"",NCV!T17,"") -> 10 | Q13: 2 | R13: 7 | S13: 4 | T13: 13 | V13: 13 | W13: 8 | X13: 6
A14: 80 000€ | B14: =SUM(A14/1000) ->  | D14: 4.9 | F14: 2 | G14: =IF(F14:F16=0,"",F14:F16) -> 2 | J14: =IF(Cotes!I17<>"",Cotes!I17,"") -> 13 | K14: =IF(J14<>"",IF(ISERROR(MATCH(NCV!M18,{"A","D","Dai","Di","T","Db"},0)),NCV!M18,NCV!R18),"") -> 3 | L14: =IF(K14<>"",IF(ISERROR(MATCH(NCV!N18,{"A","D","Dai","Di","T","Db"},0)),NCV!N18,NCV!S18),"") -> 12 | M14: =IF(L14<>"",IF(ISERROR(MATCH(NCV!O18,{"A","D","Dai","Di","T","Db"},0)),NCV!O18,NCV!T18),"") -> 5 | N14: =IF(J14<>"",NCV!R18,"") -> 12 | O14: =IF(K14<>"",NCV!S18,"") -> 16 | P14: =IF(L14<>"",NCV!T18,"") -> 13 | Q14: 9 | R14: 4 | S14: 8 | T14: 21 | V14: 3 | W14: 12 | X14: 5
A15: 11 000€ | B15: =SUM(A15/1000) ->  | D15: 3 | F15: 4 | G15: 4 | J15: =IF(Cotes!I18<>"",Cotes!I18,"") -> 14 | K15: =IF(J15<>"",IF(ISERROR(MATCH(NCV!M19,{"A","D","Dai","Di","T","Db"},0)),NCV!M19,NCV!R19),"") -> 10 | L15: =IF(K15<>"",IF(ISERROR(MATCH(NCV!N19,{"A","D","Dai","Di","T","Db"},0)),NCV!N19,NCV!S19),"") -> 10 | M15: =IF(L15<>"",IF(ISERROR(MATCH(NCV!O19,{"A","D","Dai","Di","T","Db"},0)),NCV!O19,NCV!T19),"") -> 11 | N15: =IF(J15<>"",NCV!R19,"") -> 16 | O15: =IF(K15<>"",NCV!S19,"") -> 12 | P15: =IF(L15<>"",NCV!T19,"") -> 13 | Q15: 6 | R15: 2 | S15: 2 | T15: 10 | V15: 10 | W15: 10 | X15: 11
A16: 80 000€ | B16: =SUM(A16/1000) ->  | D16: 1.9 | F16: 1 | J16: =IF(Cotes!I19<>"",Cotes!I19,"") ->  | K16: =IF(J16<>"",IF(ISERROR(MATCH(NCV!M20,{"A","D","Dai","Di","T","Db"},0)),NCV!M20,NCV!R20),"") ->  | L16: =IF(K16<>"",IF(ISERROR(MATCH(NCV!N20,{"A","D","Dai","Di","T","Db"},0)),NCV!N20,NCV!S20),"") ->  | M16: =IF(L16<>"",IF(ISERROR(MATCH(NCV!O20,{"A","D","Dai","Di","T","Db"},0)),NCV!O20,NCV!T20),"") ->  | N16: =IF(J16<>"",NCV!R20,"") ->  | O16: =IF(K16<>"",NCV!S20,"") ->  | P16: =IF(L16<>"",NCV!T20,"") -> 
A17: 80 000€ | B17: =SUM(A17/1000) ->  | D17: 2 | F17: 2 | J17: =IF(Cotes!I20<>"",Cotes!I20,"") ->  | K17: =IF(J17<>"",IF(ISERROR(MATCH(NCV!M21,{"A","D","Dai","Di","T","Db"},0)),NCV!M21,NCV!R21),"") ->  | L17: =IF(K17<>"",IF(ISERROR(MATCH(NCV!N21,{"A","D","Dai","Di","T","Db"},0)),NCV!N21,NCV!S21),"") ->  | M17: =IF(L17<>"",IF(ISERROR(MATCH(NCV!O21,{"A","D","Dai","Di","T","Db"},0)),NCV!O21,NCV!T21),"") ->  | N17: =IF(J17<>"",NCV!R21,"") ->  | O17: =IF(K17<>"",NCV!S21,"") ->  | P17: =IF(L17<>"",NCV!T21,"") -> 
J18: =IF(Cotes!I21<>"",Cotes!I21,"") ->  | K18: =IF(J18<>"",IF(ISERROR(MATCH(NCV!M22,{"A","D","Dai","Di","T","Db"},0)),NCV!M22,NCV!R22),"") ->  | L18: =IF(K18<>"",IF(ISERROR(MATCH(NCV!N22,{"A","D","Dai","Di","T","Db"},0)),NCV!N22,NCV!S22),"") ->  | M18: =IF(L18<>"",IF(ISERROR(MATCH(NCV!O22,{"A","D","Dai","Di","T","Db"},0)),NCV!O22,NCV!T22),"") ->  | N18: =IF(J18<>"",NCV!R22,"") ->  | O18: =IF(K18<>"",NCV!S22,"") ->  | P18: =IF(L18<>"",NCV!T22,"") -> 
J19: =IF(Cotes!I22<>"",Cotes!I22,"") ->  | K19: =IF(J19<>"",IF(ISERROR(MATCH(NCV!M23,{"A","D","Dai","Di","T","Db"},0)),NCV!M23,NCV!R23),"") ->  | L19: =IF(K19<>"",IF(ISERROR(MATCH(NCV!N23,{"A","D","Dai","Di","T","Db"},0)),NCV!N23,NCV!S23),"") ->  | M19: =IF(L19<>"",IF(ISERROR(MATCH(NCV!O23,{"A","D","Dai","Di","T","Db"},0)),NCV!O23,NCV!T23),"") ->  | N19: =IF(J19<>"",NCV!R23,"") ->  | O19: =IF(K19<>"",NCV!S23,"") ->  | P19: =IF(L19<>"",NCV!T23,"") -> 
J20: =IF(Cotes!I23<>"",Cotes!I23,"") ->  | K20: =IF(J20<>"",IF(ISERROR(MATCH(NCV!M24,{"A","D","Dai","Di","T","Db"},0)),NCV!M24,NCV!R24),"") ->  | L20: =IF(K20<>"",IF(ISERROR(MATCH(NCV!N24,{"A","D","Dai","Di","T","Db"},0)),NCV!N24,NCV!S24),"") ->  | M20: =IF(L20<>"",IF(ISERROR(MATCH(NCV!O24,{"A","D","Dai","Di","T","Db"},0)),NCV!O24,NCV!T24),"") ->  | N20: =IF(J20<>"",NCV!R24,"") ->  | O20: =IF(K20<>"",NCV!S24,"") ->  | P20: =IF(L20<>"",NCV!T24,"") -> 
A21: 3 | J21: =IF(Cotes!I24<>"",Cotes!I24,"") ->  | K21: =IF(J21<>"",IF(ISERROR(MATCH(NCV!M25,{"A","D","Dai","Di","T","Db"},0)),NCV!M25,NCV!R25),"") ->  | L21: =IF(K21<>"",IF(ISERROR(MATCH(NCV!N25,{"A","D","Dai","Di","T","Db"},0)),NCV!N25,NCV!S25),"") ->  | M21: =IF(L21<>"",IF(ISERROR(MATCH(NCV!O25,{"A","D","Dai","Di","T","Db"},0)),NCV!O25,NCV!T25),"") ->  | N21: =IF(J21<>"",NCV!R25,"") ->  | O21: =IF(K21<>"",NCV!S25,"") ->  | P21: =IF(L21<>"",NCV!T25,"") -> 
A22: Alloc. | D22: Cotes | F22: Rang
A23: 80 000€ | B23: =SUM(A23/1000) ->  | D23: 25 | E23: =MIN(D23:D25) -> 21 | F23: 8 | G23: =IF(F23:F25=0,"",F23:F25) -> 8 | H23: =MIN(G23:G25) -> 8
A24: 110 000€ | B24: =SUM(A24/1000) ->  | D24: 84 | F24: 14 | G24: =IF(F24:F26=0,"",F24:F26) -> 14
A25: 110 000€ | B25: =SUM(A25/1000) ->  | D25: 21 | F25: 15 | G25: 15
A26: 130 000€ | B26: =SUM(A26/1000) ->  | D26: 18 | F26: 3
A27: 80 000€ | B27: =SUM(A27/1000) ->  | D27: 5 | F27: 1
A31: 4
A32: Alloc. | D32: Cotes | F32: Rang
A33: 49 000€ | B33: =SUM(A33/1000) ->  | D33: 131 | E33: =MIN(D33:D35) -> 8.2 | F33: 14 | G33: =IF(F33:F35=0,"",F33:F35) -> 14 | H33: =MIN(G33:G35) -> 5
A34: 85 000€ | B34: =SUM(A34/1000) ->  | D34: 8.2 | F34: 7 | G34: =IF(F34:F36=0,"",F34:F36) -> 7
A35: 90 000€ | B35: =SUM(A35/1000) ->  | D35: 14 | F35: 5 | G35: 5
A36: 64 000€ | B36: =SUM(A36/1000) ->  | D36: 7.8 | F36: 4
A37: 64 000€ | B37: =SUM(A37/1000) ->  | D37: 4.5 | F37: 3
A41: 5
A42: Alloc. | D42: Cotes | F42: Rang
A43: 80 000€ | B43: =SUM(A43/1000) ->  | D43: 25 | E43: =MIN(D43:D45) -> 25 | F43: 5 | G43: =IF(F43:F45=0,"",F43:F45) -> 5 | H43: =MIN(G43:G45) -> 5
A44: 90 000€ | B44: =SUM(A44/1000) ->  | D44: 61 | F44: 8 | G44: =IF(F44:F46=0,"",F44:F46) -> 8
A45: 80 000€ | B45: =SUM(A45/1000) ->  | D45: 35 | F45: 7 | G45: 7
A46: 60 000€ | B46: =SUM(A46/1000) ->  | D46: 8.9 | F46: 3
A47: 65 000€ | B47: =SUM(A47/1000) ->  | D47: 21 | F47: 3
A51: 6
A52: Alloc. | D52: Cotes | F52: Rang
A53: 80 000€ | B53: =SUM(A53/1000) ->  | D53: 31 | E53: =MIN(D53:D55) -> 13 | F53: 9 | G53: =IF(F53:F55=0,"",F53:F55) -> 9 | H53: =MIN(G53:G55) -> 4
A54: 80 000€ | B54: =SUM(A54/1000) ->  | D54: 50 | F54: 4 | G54: =IF(F54:F56=0,"",F54:F56) -> 4
A55: 55 000€ | B55: =SUM(A55/1000) ->  | D55: 13 | F55: 7 | G55: 7
A56: 80 000€ | B56: =SUM(A56/1000) ->  | D56: 119 | F56: Dai
A57: 120 000€ | B57: =SUM(A57/1000) ->  | D57: 10 | F57: 11
A61: 7
A62: Alloc. | D62: Cotes | F62: Rang
A63: 53 000€ | B63: =SUM(A63/1000) ->  | D63: 3.7 | E63: =MIN(D63:D65) -> 3.7 | F63: 1 | G63: =IF(F63:F65=0,"",F63:F65) -> 1 | H63: =MIN(G63:G65) -> 1
A64: 35 000€ | B64: =SUM(A64/1000) ->  | D64: 9.4 | F64: 3 | G64: =IF(F64:F66=0,"",F64:F66) -> 3
A65: 85 000€ | B65: =SUM(A65/1000) ->  | D65: 162 | F65: 10 | G65: 10
A66: 40 000€ | B66: =SUM(A66/1000) ->  | D66: 22 | F66: 11
A67: 53 000€ | B67: =SUM(A67/1000) ->  | D67: 5.7 | F67: 11
A71: 8
A72: Alloc. | D72: Cotes | F72: Rang
A73: 80 000€ | B73: =SUM(A73/1000) ->  | D73: 56 | E73: =MIN(D73:D75) -> 21 | F73: 7 | G73: =IF(F73:F75=0,"",F73:F75) -> 7 | H73: =MIN(G73:G75) -> 2
A74: 55 000€ | B74: =SUM(A74/1000) ->  | D74: 21 | F74: 2 | G74: =IF(F74:F76=0,"",F74:F76) -> 2
A75: 80 000€ | B75: =SUM(A75/1000) ->  | D75: 51 | F75: 9 | G75: 9
A76: 80 000€ | B76: =SUM(A76/1000) ->  | D76: 59 | F76: 4
A77: 120 000€ | B77: =SUM(A77/1000) ->  | D77: 41 | F77: 2
A81: 9
A82: Alloc. | D82: Cotes | F82: Rang
A83: 100 000€ | B83: =SUM(A83/1000) ->  | D83: 132 | E83: =MIN(D83:D85) -> 87 | F83: 7 | G83: =IF(F83:F85=0,"",F83:F85) -> 7 | H83: =MIN(G83:G85) -> 6
A84: 90 000€ | B84: =SUM(A84/1000) ->  | D84: 87 | F84: 6 | G84: =IF(F84:F86=0,"",F84:F86) -> 6
A85: 80 000€ | B85: =SUM(A85/1000) ->  | D85: 129 | F85: 8 | G85: 8
A86: 100 000€ | B86: =SUM(A86/1000) ->  | D86: 49 | F86: 6
A87: 90 000€ | B87: =SUM(A87/1000) ->  | D87: 80 | F87: 6
A91: 10
A92: Alloc. | D92: Cotes | F92: Rang
A93: 90 000€ | B93: =SUM(A93/1000) ->  | D93: 20 | E93: =MIN(D93:D95) -> 9.4 | F93: 6 | G93: =IF(F93:F95=0,"",F93:F95) -> 6 | H93: =MIN(G93:G95) -> 5
A94: 80 000€ | B94: =SUM(A94/1000) ->  | D94: 24 | F94: 6 | G94: =IF(F94:F96=0,"",F94:F96) -> 6
A95: 67 000€ | B95: =SUM(A95/1000) ->  | D95: 9.4 | F95: 5 | G95: 5
A96: 65 000€ | B96: =SUM(A96/1000) ->  | D96: 4.8 | F96: 5
A97: 67 000€ | B97: =SUM(A97/1000) ->  | D97: 6.1 | F97: 1
A101: 11
A102: Alloc. | D102: Cotes | F102: Rang
A103: 90 000€ | B103: =SUM(A103/1000) ->  | D103: 62 | E103: =MIN(D103:D105) -> 22 | F103: 4 | G103: =IF(F103:F105=0,"",F103:F105) -> 4 | H103: =MIN(G103:G105) -> 3
A104: 80 000€ | B104: =SUM(A104/1000) ->  | D104: 22 | F104: Dai | G104: =IF(F104:F106=0,"",F104:F106) -> Dai
A105: 80 000€ | B105: =SUM(A105/1000) ->  | D105: 64 | F105: 3 | G105: 3
A106: 35 000€ | B106: =SUM(A106/1000) ->  | D106: 49 | F106: 11
A107: 39 000€ | B107: =SUM(A107/1000) ->  | D107: 74 | F107: 11
A111: 12
A112: Alloc. | D112: Cotes | F112: Rang
A113: 36 000€ | B113: =SUM(A113/1000) ->  | D113: 9.1 | E113: =MIN(D113:D115) -> 6.6 | F113: 13 | G113: =IF(F113:F115=0,"",F113:F115) -> 13 | H113: =MIN(G113:G115) -> 6
A114: 90 000€ | B114: =SUM(A114/1000) ->  | D114: 6.6 | F114: 8 | G114: =IF(F114:F116=0,"",F114:F116) -> 8
A115: 80 000€ | B115: =SUM(A115/1000) ->  | D115: 16 | F115: 6 | G115: 6
A116: 80 000€ | B116: =SUM(A116/1000) ->  | D116: 22 | F116: 3
A117: 67 000€ | B117: =SUM(A117/1000) ->  | D117: 1.7 | F117: 1
A121: 13
A122: Alloc. | D122: Cotes | F122: Rang
A123: 53 000€ | B123: =SUM(A123/1000) ->  | D123: 10 | E123: =MIN(D123:D125) -> 10 | F123: 3 | G123: =IF(F123:F125=0,"",F123:F125) -> 3 | H123: =MIN(G123:G125) -> 3
A124: 80 000€ | B124: =SUM(A124/1000) ->  | D124: 65 | F124: 12 | G124: =IF(F124:F126=0,"",F124:F126) -> 12
A125: 80 000€ | B125: =SUM(A125/1000) ->  | D125: 25 | F125: 5 | G125: 5
A126: 67 000€ | B126: =SUM(A126/1000) ->  | D126: 3.3 | F126: 4
A127: 65 000€ | B127: =SUM(A127/1000) ->  | D127: 171 | F127: 0
A131: 14
A132: Alloc. | D132: Cotes | F132: Rang
A133: 67 000€ | B133: =SUM(A133/1000) ->  | D133: 98 | E133: =MIN(D133:D135) -> 6.3 | F133: 10 | G133: =IF(F133:F135=0,"",F133:F135) -> 10 | H133: =MIN(G133:G135) -> 10
A134: 53 000€ | B134: =SUM(A134/1000) ->  | D134: 6.3 | F134: 10 | G134: =IF(F134:F136=0,"",F134:F136) -> 10
A135: 55 000€ | B135: =SUM(A135/1000) ->  | D135: 15 | F135: 11 | G135: 11
A136: 44 000€ | B136: =SUM(A136/1000) ->  | D136: 7.7 | F136: 8
A137: 80 000€ | B137: =SUM(A137/1000) ->  | D137: 47 | F137: 6
A141: 15
A142: Alloc. | D142: Cotes | F142: Rang
A143: 67 000€ | B143: =SUM(A143/1000) ->  | D143: 9.4 | E143: =MIN(D143:D145) -> 9.4 | F143: 1 | G143: =IF(F143:F145=0,"",F143:F145) -> 1 | H143: =MIN(G143:G145) -> 1
A144: 67 000€ | B144: =SUM(A144/1000) ->  | D144: 16 | F144: 2 | G144: =IF(F144:F146=0,"",F144:F146) -> 2
A145: 64 000€ | B145: =SUM(A145/1000) ->  | D145: 25 | F145: 4 | G145: 4
A146: 85 000€ | B146: =SUM(A146/1000) ->  | D146: 91 | F146: 6
A147: 36 000€ | B147: =SUM(A147/1000) ->  | D147: 4.1 | F147: 5
A151: 16
A152: Alloc. | D152: Cotes | F152: Rang
A153: 53 000€ | B153: =SUM(A153/1000) ->  | D153: 19 | E153: =MIN(D153:D155) -> 19 | F153: 2 | G153: =IF(F153:F155=0,"",F153:F155) -> 2 | H153: =MIN(G153:G155) -> 2
A154: 80 000€ | B154: =SUM(A154/1000) ->  | D154: 178 | F154: 11 | G154: =IF(F154:F156=0,"",F154:F156) -> 11
A155: 80 000€ | B155: =SUM(A155/1000) ->  | D155: 105 | F155: 12 | G155: 12
A156: 49 000€ | B156: =SUM(A156/1000) ->  | D156: 166 | F156: 0
A157: 45 000€ | B157: =SUM(A157/1000) ->  | D157: 25 | F157: 13
A161: 17
A162: Alloc. | D162: Cotes | F162: Rang
B163: =SUM(A163/1000) -> 0 | E163: =MIN(D163:D165) -> 0 | G163: =IF(F163:F165=0,"",F163:F165) ->  | H163: =MIN(G163:G165) -> 0
B164: =SUM(A164/1000) -> 0 | G164: =IF(F164:F166=0,"",F164:F166) -> 
B165: =SUM(A165/1000) -> 0
B166: =SUM(A166/1000) -> 0
B167: =SUM(A167/1000) -> 0
A171: 18
A172: Alloc. | D172: Cotes | F172: Rang
B173: =SUM(A173/1000) -> 0 | E173: =MIN(D173:D175) -> 0 | G173: =IF(F173:F175=0,"",F173:F175) ->  | H173: =MIN(G173:G175) -> 0
B174: =SUM(A174/1000) -> 0 | G174: =IF(F174:F176=0,"",F174:F176) -> 
B175: =SUM(A175/1000) -> 0
B176: =SUM(A176/1000) -> 0
B177: =SUM(A177/1000) -> 0
A181: 19
A182: Alloc. | D182: Cotes | F182: Rang
B183: =SUM(A183/1000) -> 0 | E183: =MIN(D183:D185) -> 0 | G183: =IF(F183:F185=0,"",F183:F185) ->  | H183: =MIN(G183:G185) -> 0
B184: =SUM(A184/1000) -> 0
B185: =SUM(A185/1000) -> 0
B186: =SUM(A186/1000) -> 0
B187: =SUM(A187/1000) -> 0
A191: 20
A192: Alloc. | D192: Cotes | F192: Rang
B193: =SUM(A193/1000) -> 0 | H193: =MIN(G193:G195) -> 0
B194: =SUM(A194/1000) -> 0
B195: =SUM(A195/1000) -> 0
B196: =SUM(A196/1000) -> 0
B197: =SUM(A197/1000) -> 0

Sheet Feuil1 (2) (hidden)
A2: PK | B2: N°
A3: =IF(#REF!="","",#REF!) ->  | B3: =IF(#REF!="","",#REF!) -> 
A4: =IF(#REF!="","",#REF!) ->  | B4: =IF(#REF!="","",#REF!) -> 
A5: =IF(#REF!="","",#REF!) ->  | B5: =IF(#REF!="","",#REF!) -> 
A6: =IF(#REF!="","",#REF!) ->  | B6: =IF(#REF!="","",#REF!) -> 
A7: =IF(#REF!="","",#REF!) ->  | B7: =IF(#REF!="","",#REF!) -> 
A8: =IF(#REF!="","",#REF!) ->  | B8: =IF(#REF!="","",#REF!) -> 
A9: =IF(#REF!="","",#REF!) ->  | B9: =IF(#REF!="","",#REF!) ->  | N9: PK6 | O9: PK5 | P9: PK4 | Q9: PK3 | R9: PK2 | S9: PK1 | T9: PK0
A10: =IF(#REF!="","",#REF!) ->  | B10: =IF(#REF!="","",#REF!) ->  | M10: Df | N10: =IFERROR(INDEX($B3:$B18,MATCH(1,("PK"&$A3:$A18=N9)*(COUNTIF($N13:$T13,$B3:$B18)=0),0)),"") ->  | O10: =IFERROR(INDEX($B3:$B18,MATCH(1,("PK"&$A3:$A18=O9)*(COUNTIF($N13:$T13,$B3:$B18)=0),0)),"") ->  | P10: =IFERROR(INDEX($B3:$B18,MATCH(1,("PK"&$A3:$A18=P9)*(COUNTIF($N13:$T13,$B3:$B18)=0),0)),"") ->  | Q10: =IFERROR(INDEX($B3:$B18,MATCH(1,("PK"&$A3:$A18=Q9)*(COUNTIF($N13:$T13,$B3:$B18)=0),0)),"") ->  | R10: =IFERROR(INDEX($B3:$B18,MATCH(1,("PK"&$A3:$A18=R9)*(COUNTIF($N13:$T13,$B3:$B18)=0),0)),"") ->  | S10: =IFERROR(INDEX($B3:$B18,MATCH(1,("PK"&$A3:$A18=S9)*(COUNTIF($N13:$T13,$B3:$B18)=0),0)),"") ->  | T10: =IFERROR(INDEX($B3:$B18,MATCH(1,("PK"&$A3:$A18=T9)*(COUNTIF($N13:$T13,$B3:$B18)=0),0)),"") ->  | U10: -
A11: =IF(#REF!="","",#REF!) ->  | B11: =IF(#REF!="","",#REF!) ->  | M11: Pg | N11: =IFERROR(INDEX($B3:$B18,LARGE(IF(("PK"&$A3:$A18=N9)*(COUNTIF($N13:$T13,$B3:$B18)=0),ROW(INDIRECT("1:"&ROWS($A3:$A18)))),1)),"") ->  | O11: =IFERROR(INDEX($B3:$B18,LARGE(IF(("PK"&$A3:$A18=O9)*(COUNTIF($N13:$T13,$B3:$B18)=0),ROW(INDIRECT("1:"&ROWS($A3:$A18)))),1)),"") ->  | P11: =IFERROR(INDEX($B3:$B18,LARGE(IF(("PK"&$A3:$A18=P9)*(COUNTIF($N13:$T13,$B3:$B18)=0),ROW(INDIRECT("1:"&ROWS($A3:$A18)))),1)),"") ->  | Q11: =IFERROR(INDEX($B3:$B18,LARGE(IF(("PK"&$A3:$A18=Q9)*(COUNTIF($N13:$T13,$B3:$B18)=0),ROW(INDIRECT("1:"&ROWS($A3:$A18)))),1)),"") ->  | R11: =IFERROR(INDEX($B3:$B18,LARGE(IF(("PK"&$A3:$A18=R9)*(COUNTIF($N13:$T13,$B3:$B18)=0),ROW(INDIRECT("1:"&ROWS($A3:$A18)))),1)),"") ->  | S11: =IFERROR(INDEX($B3:$B18,LARGE(IF(("PK"&$A3:$A18=S9)*(COUNTIF($N13:$T13,$B3:$B18)=0),ROW(INDIRECT("1:"&ROWS($A3:$A18)))),1)),"") ->  | T11: =IFERROR(INDEX($B3:$B18,LARGE(IF(("PK"&$A3:$A18=T9)*(COUNTIF($N13:$T13,$B3:$B18)=0),ROW(INDIRECT("1:"&ROWS($A3:$A18)))),1)),"") ->  | U11: -
A12: =IF(#REF!="","",#REF!) ->  | B12: =IF(#REF!="","",#REF!) ->  | M12: median | N12: =IF(AND(MOD(COUNTIF($A3:$A18,RIGHT(N9)*1),2)=1,COUNTIF($A3:$A18,RIGHT(N9)*1)>1),INDEX($B3:$B18,MATCH(RIGHT(N9)*1,$A3:$A18,0)+COUNTIF($A3:$A18,RIGHT(N9)*1)/2),"") ->  | O12: =IF(AND(MOD(COUNTIF($A3:$A18,RIGHT(O9)*1),2)=1,COUNTIF($A3:$A18,RIGHT(O9)*1)>1),INDEX($B3:$B18,MATCH(RIGHT(O9)*1,$A3:$A18,0)+COUNTIF($A3:$A18,RIGHT(O9)*1)/2),"") ->  | P12: =IF(AND(MOD(COUNTIF($A3:$A18,RIGHT(P9)*1),2)=1,COUNTIF($A3:$A18,RIGHT(P9)*1)>1),INDEX($B3:$B18,MATCH(RIGHT(P9)*1,$A3:$A18,0)+COUNTIF($A3:$A18,RIGHT(P9)*1)/2),"") ->  | Q12: =IF(AND(MOD(COUNTIF($A3:$A18,RIGHT(Q9)*1),2)=1,COUNTIF($A3:$A18,RIGHT(Q9)*1)>1),INDEX($B3:$B18,MATCH(RIGHT(Q9)*1,$A3:$A18,0)+COUNTIF($A3:$A18,RIGHT(Q9)*1)/2),"") ->  | R12: =IF(AND(MOD(COUNTIF($A3:$A18,RIGHT(R9)*1),2)=1,COUNTIF($A3:$A18,RIGHT(R9)*1)>1),INDEX($B3:$B18,MATCH(RIGHT(R9)*1,$A3:$A18,0)+COUNTIF($A3:$A18,RIGHT(R9)*1)/2),"") ->  | S12: =IF(AND(MOD(COUNTIF($A3:$A18,RIGHT(S9)*1),2)=1,COUNTIF($A3:$A18,RIGHT(S9)*1)>1),INDEX($B3:$B18,MATCH(RIGHT(S9)*1,$A3:$A18,0)+COUNTIF($A3:$A18,RIGHT(S9)*1)/2),"") ->  | T12: =IF(AND(MOD(COUNTIF($A3:$A18,RIGHT(T9)*1),2)=1,COUNTIF($A3:$A18,RIGHT(T9)*1)>1),INDEX($B3:$B18,MATCH(RIGHT(T9)*1,$A3:$A18,0)+COUNTIF($A3:$A18,RIGHT(T9)*1)/2),"") ->  | U12: -
A13: =IF(#REF!="","",#REF!) ->  | B13: =IF(#REF!="","",#REF!) ->  | M13: Re | N13: =IFERROR(SMALL(IF((COUNTIF($A$3:$A$18,$A$3:$A$18)=1)*($A$3:$A$18=RIGHT(N9)*1),$B$3:$B$18),1),"") ->  | O13: =IFERROR(SMALL(IF((COUNTIF($A$3:$A$18,$A$3:$A$18)=1)*($A$3:$A$18=RIGHT(O9)*1),$B$3:$B$18),1),"") ->  | P13: =IFERROR(SMALL(IF((COUNTIF($A$3:$A$18,$A$3:$A$18)=1)*($A$3:$A$18=RIGHT(P9)*1),$B$3:$B$18),1),"") ->  | Q13: =IFERROR(SMALL(IF((COUNTIF($A$3:$A$18,$A$3:$A$18)=1)*($A$3:$A$18=RIGHT(Q9)*1),$B$3:$B$18),1),"") ->  | R13: =IFERROR(SMALL(IF((COUNTIF($A$3:$A$18,$A$3:$A$18)=1)*($A$3:$A$18=RIGHT(R9)*1),$B$3:$B$18),1),"") ->  | S13: =IFERROR(SMALL(IF((COUNTIF($A$3:$A$18,$A$3:$A$18)=1)*($A$3:$A$18=RIGHT(S9)*1),$B$3:$B$18),1),"") ->  | T13: =IFERROR(SMALL(IF((COUNTIF($A$3:$A$18,$A$3:$A$18)=1)*($A$3:$A$18=RIGHT(T9)*1),$B$3:$B$18),1),"") ->  | U13: -
A14: =IF(#REF!="","",#REF!) ->  | B14: =IF(#REF!="","",#REF!) -> 
A15: =IF(#REF!="","",#REF!) ->  | B15: =IF(#REF!="","",#REF!) -> 
A16: =IF(#REF!="","",#REF!) ->  | B16: =IF(#REF!="","",#REF!) -> 
A17: =IF(#REF!="","",#REF!) ->  | B17: =IF(#REF!="","",#REF!) -> 
A18: =IF(#REF!="","",#REF!) ->  | B18: =IF(#REF!="","",#REF!) -> 
A19: =IF(#REF!="","",#REF!) ->  | B19: =IF(#REF!="","",#REF!) -> 
A20: =IF(#REF!="","",#REF!) ->  | B20: =IF(#REF!="","",#REF!) -> 
A21: =IF(#REF!="","",#REF!) ->  | B21: =IF(#REF!="","",#REF!) -> 
A22: =IF(#REF!="","",#REF!) ->  | B22: =IF(#REF!="","",#REF!) -> 
A23: =IF(#REF!="","",#REF!) ->  | B23: =IF(#REF!="","",#REF!) -> 
A24: =IF(#REF!="","",#REF!) ->  | B24: =IF(#REF!="","",#REF!) -> 
A25: =IF(#REF!="","",#REF!) ->  | B25: =IF(#REF!="","",#REF!) -> 
A26: =IF(#REF!="","",#REF!) ->  | B26: =IF(#REF!="","",#REF!) -> 
A27: =IF(#REF!="","",#REF!) ->  | B27: =IF(#REF!="","",#REF!) -> 
A28: =IF(#REF!="","",#REF!) ->  | B28: =IF(#REF!="","",#REF!) -> 
A29: =IF(#REF!="","",#REF!) ->  | B29: =IF(#REF!="","",#REF!) -> 
A30: =IF(#REF!="","",#REF!) ->  | B30: =IF(#REF!="","",#REF!) -> 
A31: =IF(#REF!="","",#REF!) ->  | B31: =IF(#REF!="","",#REF!) -> 
A32: =IF(#REF!="","",#REF!) ->  | B32: =IF(#REF!="","",#REF!) -> 
A33: =IF(#REF!="","",#REF!) ->  | B33: =IF(#REF!="","",#REF!) -> 

Sheet Feuil2 (2) (hidden)
A2: 6 Ah | G2: Feuille réalisée par Phil59110 Un grand merci pour l'aide apporté | BC2: SI(BB26="";"";SI(OU(BB26=6);BE26;SI(OU(BB26<6);BA26;"")))
A3: 6 Am | BC3: SI(NB($AK68:$AY68)>1;RECHERCHE(9^9;$AK68:$AY68);"")
A4: 6 Af | BC4: SI(NB(BA$68:BA$74)>=LIGNES($68:68);INDEX(BA$68:BA$74;PETITE.VALEUR(SI(ESTNUM(BA$68:BA$74);LIGNE(INDIRECT("1:"&LIGNES(BA$68:BA$74))));LIGNES($68:68)));"")
A6: 5Ah | F6: 6Ah | G6: 6Am | H6: 6Af | I6: 5Ah | J6: 5Am | K6: 5Af | L6: 4Ah | M6: 4Am | N6: 4Af | O6: 3Ah | P6: 3Am | Q6: 3Af | R6: 2Ah | S6: 2Am | T6: 2Af | U6: 1Ah | V6: 1Am | W6: 1Af | X6: 0Ah | Y6: 0Am | Z6: 0Af | AB6: 6Ah | AC6: 6Am | AD6: 6Af | AE6: 5Ah | AF6: 5Am | AG6: 5Af | AH6: 4Ah | AI6: 4Am | AJ6: 4Af | AK6: 3Ah | AL6: 3Am | AM6: 3Af | AN6: 2Ah | AO6: 2Am | AP6: 2Af | AQ6: 1Ah | AR6: 1Am | AS6: 1Af | AT6: 0Ah | AU6: 0Am | AV6: 0Af
A7: 5Am | B7: 1 | C7: =IF(#REF!="","",VALUE(#REF!)) ->  | D7: =IF(Accueil!B15=0,"",IF(Accueil!B15="","",Accueil!B15)) -> 1 | E7: =IF(C7="","",MID(Accueil!D15,1,1)) ->  | F7: =IF(C7="","",IF(AND(C7=6,E7="H"),D7,"")) ->  | G7: =IF(C7="","",IF(AND(C7=6,E7="m"),D7,"")) ->  | H7: =IF(C7="","",IF(AND(C7=6,E7="f"),D7,"")) ->  | I7: =IF(C7="","",IF(AND(C7=5,E7="h"),D7,"")) ->  | J7: =IF(C7="","",IF(AND(C7=5,E7="m"),D7,"")) ->  | K7: =IF(C7="","",IF(AND(C7=5,E7="f"),D7,"")) ->  | L7: =IF(C7="","",IF(AND(C7=4,E7="h"),D7,"")) ->  | M7: =IF(C7="","",IF(AND(C7=4,E7="m"),D7,"")) ->  | N7: =IF(C7="","",IF(AND(C7=4,E7="f"),D7,"")) ->  | O7: =IF(C7="","",IF(AND(C7=3,E7="h"),D7,"")) ->  | P7: =IF(C7="","",IF(AND(C7=3,E7="m"),D7,"")) ->  | Q7: =IF(C7="","",IF(AND(C7=3,E7="f"),D7,"")) ->  | R7: =IF(C7="","",IF(AND(C7=2,E7="h"),D7,"")) ->  | S7: =IF(C7="","",IF(AND(C7=2,E7="m"),D7,"")) ->  | T7: =IF(C7="","",IF(AND(C7=2,E7="f"),D7,"")) ->  | U7: =IF(C7="","",IF(AND(C7=1,E7="h"),D7,"")) ->  | V7: =IF(C7="","",IF(AND(C7=1,E7="m"),D7,"")) ->  | W7: =IF(C7="","",IF(AND(C7=1,E7="f"),D7,"")) ->  | X7: =IF(C7="","",IF(AND(C7=0,E7="h"),D7,"")) ->  | Y7: =IF(C7="","",IF(AND(C7=0,E7="m"),D7,"")) ->  | Z7: =IF(C7="","",IF(AND(C7=0,E7="f"),D7,"")) ->  | AB7: =IF(COUNT(F$7:F$26)>=ROWS($7:7),INDEX(F$7:F$26,SMALL(IF(ISNUMBER(F$7:F$26),ROW(INDIRECT("1:"&ROWS(F$7:F$26)))),ROWS($7:7))),"") ->  | AC7: =IF(COUNT(G$7:G$26)>=ROWS($7:7),INDEX(G$7:G$26,SMALL(IF(ISNUMBER(G$7:G$26),ROW(INDIRECT("1:"&ROWS(G$7:G$26)))),ROWS($7:7))),"") ->  | AD7: =IF(COUNT(H$7:H$26)>=ROWS($7:7),INDEX(H$7:H$26,SMALL(IF(ISNUMBER(H$7:H$26),ROW(INDIRECT("1:"&ROWS(H$7:H$26)))),ROWS($7:7))),"") ->  | AE7: =IF(COUNT(I$7:I$26)>=ROWS($7:7),INDEX(I$7:I$26,SMALL(IF(ISNUMBER(I$7:I$26),ROW(INDIRECT("1:"&ROWS(I$7:I$26)))),ROWS($7:7))),"") ->  | AF7: =IF(COUNT(J$7:J$26)>=ROWS($7:7),INDEX(J$7:J$26,SMALL(IF(ISNUMBER(J$7:J$26),ROW(INDIRECT("1:"&ROWS(J$7:J$26)))),ROWS($7:7))),"") ->  | AG7: =IF(COUNT(K$7:K$26)>=ROWS($7:7),INDEX(K$7:K$26,SMALL(IF(ISNUMBER(K$7:K$26),ROW(INDIRECT("1:"&ROWS(K$7:K$26)))),ROWS($7:7))),"") ->  | AH7: =IF(COUNT(L$7:L$26)>=ROWS($7:7),INDEX(L$7:L$26,SMALL(IF(ISNUMBER(L$7:L$26),ROW(INDIRECT("1:"&ROWS(L$7:L$26)))),ROWS($7:7))),"") ->  | AI7: =IF(COUNT(M$7:M$26)>=ROWS($7:7),INDEX(M$7:M$26,SMALL(IF(ISNUMBER(M$7:M$26),ROW(INDIRECT("1:"&ROWS(M$7:M$26)))),ROWS($7:7))),"") ->  | AJ7: =IF(COUNT(N$7:N$26)>=ROWS($7:7),INDEX(N$7:N$26,SMALL(IF(ISNUMBER(N$7:N$26),ROW(INDIRECT("1:"&ROWS(N$7:N$26)))),ROWS($7:7))),"") ->  | AK7: =IF(COUNT(O$7:O$26)>=ROWS($7:7),INDEX(O$7:O$26,SMALL(IF(ISNUMBER(O$7:O$26),ROW(INDIRECT("1:"&ROWS(O$7:O$26)))),ROWS($7:7))),"") ->  | AL7: =IF(COUNT(P$7:P$26)>=ROWS($7:7),INDEX(P$7:P$26,SMALL(IF(ISNUMBER(P$7:P$26),ROW(INDIRECT("1:"&ROWS(P$7:P$26)))),ROWS($7:7))),"") ->  | AM7: =IF(COUNT(Q$7:Q$26)>=ROWS($7:7),INDEX(Q$7:Q$26,SMALL(IF(ISNUMBER(Q$7:Q$26),ROW(INDIRECT("1:"&ROWS(Q$7:Q$26)))),ROWS($7:7))),"") ->  | AN7: =IF(COUNT(R$7:R$26)>=ROWS($7:7),INDEX(R$7:R$26,SMALL(IF(ISNUMBER(R$7:R$26),ROW(INDIRECT("1:"&ROWS(R$7:R$26)))),ROWS($7:7))),"") ->  | AO7: =IF(COUNT(S$7:S$26)>=ROWS($7:7),INDEX(S$7:S$26,SMALL(IF(ISNUMBER(S$7:S$26),ROW(INDIRECT("1:"&ROWS(S$7:S$26)))),ROWS($7:7))),"") ->  | AP7: =IF(COUNT(T$7:T$26)>=ROWS($7:7),INDEX(T$7:T$26,SMALL(IF(ISNUMBER(T$7:T$26),ROW(INDIRECT("1:"&ROWS(T$7:T$26)))),ROWS($7:7))),"") ->  | AQ7: =IF(COUNT(U$7:U$26)>=ROWS($7:7),INDEX(U$7:U$26,SMALL(IF(ISNUMBER(U$7:U$26),ROW(INDIRECT("1:"&ROWS(U$7:U$26)))),ROWS($7:7))),"") ->  | AR7: =IF(COUNT(V$7:V$26)>=ROWS($7:7),INDEX(V$7:V$26,SMALL(IF(ISNUMBER(V$7:V$26),ROW(INDIRECT("1:"&ROWS(V$7:V$26)))),ROWS($7:7))),"") ->  | AS7: =IF(COUNT(W$7:W$26)>=ROWS($7:7),INDEX(W$7:W$26,SMALL(IF(ISNUMBER(W$7:W$26),ROW(INDIRECT("1:"&ROWS(W$7:W$26)))),ROWS($7:7))),"") ->  | AT7: =IF(COUNT(X$7:X$26)>=ROWS($7:7),INDEX(X$7:X$26,SMALL(IF(ISNUMBER(X$7:X$26),ROW(INDIRECT("1:"&ROWS(X$7:X$26)))),ROWS($7:7))),"") ->  | AU7: =IF(COUNT(Y$7:Y$26)>=ROWS($7:7),INDEX(Y$7:Y$26,SMALL(IF(ISNUMBER(Y$7:Y$26),ROW(INDIRECT("1:"&ROWS(Y$7:Y$26)))),ROWS($7:7))),"") ->  | AV7: =IF(COUNT(Z$7:Z$26)>=ROWS($7:7),INDEX(Z$7:Z$26,SMALL(IF(ISNUMBER(Z$7:Z$26),ROW(INDIRECT("1:"&ROWS(Z$7:Z$26)))),ROWS($7:7))),"") -> 
A8: 5Af | B8: 2 | C8: =IF(#REF!="","",VALUE(#REF!)) ->  | D8: =IF(Accueil!B16=0,"",IF(Accueil!B16="","",Accueil!B16)) -> 2 | E8: =IF(C8="","",MID(Accueil!D16,1,1)) ->  | F8: =IF(C8="","",IF(AND(C8=6,E8="h"),D8,"")) ->  | G8: =IF(C8="","",IF(AND(C8=6,E8="m"),D8,"")) ->  | H8: =IF(C8="","",IF(AND(C8=6,E8="f"),D8,"")) ->  | I8: =IF(C8="","",IF(AND(C8=5,E8="h"),D8,"")) ->  | J8: =IF(C8="","",IF(AND(C8=5,E8="m"),D8,"")) ->  | K8: =IF(C8="","",IF(AND(C8=5,E8="f"),D8,"")) ->  | L8: =IF(C8="","",IF(AND(C8=4,E8="h"),D8,"")) ->  | M8: =IF(C8="","",IF(AND(C8=4,E8="m"),D8,"")) ->  | N8: =IF(C8="","",IF(AND(C8=4,E8="f"),D8,"")) ->  | O8: =IF(C8="","",IF(AND(C8=3,E8="h"),D8,"")) ->  | P8: =IF(C8="","",IF(AND(C8=3,E8="m"),D8,"")) ->  | Q8: =IF(C8="","",IF(AND(C8=3,E8="f"),D8,"")) ->  | R8: =IF(C8="","",IF(AND(C8=2,E8="h"),D8,"")) ->  | S8: =IF(C8="","",IF(AND(C8=2,E8="m"),D8,"")) ->  | T8: =IF(C8="","",IF(AND(C8=2,E8="f"),D8,"")) ->  | U8: =IF(C8="","",IF(AND(C8=1,E8="h"),D8,"")) ->  | V8: =IF(C8="","",IF(AND(C8=1,E8="m"),D8,"")) ->  | W8: =IF(C8="","",IF(AND(C8=1,E8="f"),D8,"")) ->  | X8: =IF(C8="","",IF(AND(C8=0,E8="h"),D8,"")) ->  | Y8: =IF(C8="","",IF(AND(C8=0,E8="m"),D8,"")) ->  | Z8: =IF(C8="","",IF(AND(C8=0,E8="f"),D8,"")) ->  | AB8: =IF(COUNT(F$7:F$26)>=ROWS($7:8),INDEX(F$7:F$26,SMALL(IF(ISNUMBER(F$7:F$26),ROW(INDIRECT("1:"&ROWS(F$7:F$26)))),ROWS($7:8))),"") ->  | AC8: =IF(COUNT(G$7:G$26)>=ROWS($7:8),INDEX(G$7:G$26,SMALL(IF(ISNUMBER(G$7:G$26),ROW(INDIRECT("1:"&ROWS(G$7:G$26)))),ROWS($7:8))),"") ->  | AD8: =IF(COUNT(H$7:H$26)>=ROWS($7:8),INDEX(H$7:H$26,SMALL(IF(ISNUMBER(H$7:H$26),ROW(INDIRECT("1:"&ROWS(H$7:H$26)))),ROWS($7:8))),"") ->  | AE8: =IF(COUNT(I$7:I$26)>=ROWS($7:8),INDEX(I$7:I$26,SMALL(IF(ISNUMBER(I$7:I$26),ROW(INDIRECT("1:"&ROWS(I$7:I$26)))),ROWS($7:8))),"") ->  | AF8: =IF(COUNT(J$7:J$26)>=ROWS($7:8),INDEX(J$7:J$26,SMALL(IF(ISNUMBER(J$7:J$26),ROW(INDIRECT("1:"&ROWS(J$7:J$26)))),ROWS($7:8))),"") ->  | AG8: =IF(COUNT(K$7:K$26)>=ROWS($7:8),INDEX(K$7:K$26,SMALL(IF(ISNUMBER(K$7:K$26),ROW(INDIRECT("1:"&ROWS(K$7:K$26)))),ROWS($7:8))),"") ->  | AH8: =IF(COUNT(L$7:L$26)>=ROWS($7:8),INDEX(L$7:L$26,SMALL(IF(ISNUMBER(L$7:L$26),ROW(INDIRECT("1:"&ROWS(L$7:L$26)))),ROWS($7:8))),"") ->  | AI8: =IF(COUNT(M$7:M$26)>=ROWS($7:8),INDEX(M$7:M$26,SMALL(IF(ISNUMBER(M$7:M$26),ROW(INDIRECT("1:"&ROWS(M$7:M$26)))),ROWS($7:8))),"") ->  | AJ8: =IF(COUNT(N$7:N$26)>=ROWS($7:8),INDEX(N$7:N$26,SMALL(IF(ISNUMBER(N$7:N$26),ROW(INDIRECT("1:"&ROWS(N$7:N$26)))),ROWS($7:8))),"") ->  | AK8: =IF(COUNT(O$7:O$26)>=ROWS($7:8),INDEX(O$7:O$26,SMALL(IF(ISNUMBER(O$7:O$26),ROW(INDIRECT("1:"&ROWS(O$7:O$26)))),ROWS($7:8))),"") ->  | AL8: =IF(COUNT(P$7:P$26)>=ROWS($7:8),INDEX(P$7:P$26,SMALL(IF(ISNUMBER(P$7:P$26),ROW(INDIRECT("1:"&ROWS(P$7:P$26)))),ROWS($7:8))),"") ->  | AM8: =IF(COUNT(Q$7:Q$26)>=ROWS($7:8),INDEX(Q$7:Q$26,SMALL(IF(ISNUMBER(Q$7:Q$26),ROW(INDIRECT("1:"&ROWS(Q$7:Q$26)))),ROWS($7:8))),"") ->  | AN8: =IF(COUNT(R$7:R$26)>=ROWS($7:8),INDEX(R$7:R$26,SMALL(IF(ISNUMBER(R$7:R$26),ROW(INDIRECT("1:"&ROWS(R$7:R$26)))),ROWS($7:8))),"") ->  | AO8: =IF(COUNT(S$7:S$26)>=ROWS($7:8),INDEX(S$7:S$26,SMALL(IF(ISNUMBER(S$7:S$26),ROW(INDIRECT("1:"&ROWS(S$7:S$26)))),ROWS($7:8))),"") ->  | AP8: =IF(COUNT(T$7:T$26)>=ROWS($7:8),INDEX(T$7:T$26,SMALL(IF(ISNUMBER(T$7:T$26),ROW(INDIRECT("1:"&ROWS(T$7:T$26)))),ROWS($7:8))),"") ->  | AQ8: =IF(COUNT(U$7:U$26)>=ROWS($7:8),INDEX(U$7:U$26,SMALL(IF(ISNUMBER(U$7:U$26),ROW(INDIRECT("1:"&ROWS(U$7:U$26)))),ROWS($7:8))),"") ->  | AR8: =IF(COUNT(V$7:V$26)>=ROWS($7:8),INDEX(V$7:V$26,SMALL(IF(ISNUMBER(V$7:V$26),ROW(INDIRECT("1:"&ROWS(V$7:V$26)))),ROWS($7:8))),"") ->  | AS8: =IF(COUNT(W$7:W$26)>=ROWS($7:8),INDEX(W$7:W$26,SMALL(IF(ISNUMBER(W$7:W$26),ROW(INDIRECT("1:"&ROWS(W$7:W$26)))),ROWS($7:8))),"") ->  | AT8: =IF(COUNT(X$7:X$26)>=ROWS($7:8),INDEX(X$7:X$26,SMALL(IF(ISNUMBER(X$7:X$26),ROW(INDIRECT("1:"&ROWS(X$7:X$26)))),ROWS($7:8))),"") ->  | AU8: =IF(COUNT(Y$7:Y$26)>=ROWS($7:8),INDEX(Y$7:Y$26,SMALL(IF(ISNUMBER(Y$7:Y$26),ROW(INDIRECT("1:"&ROWS(Y$7:Y$26)))),ROWS($7:8))),"") ->  | AV8: =IF(COUNT(Z$7:Z$26)>=ROWS($7:8),INDEX(Z$7:Z$26,SMALL(IF(ISNUMBER(Z$7:Z$26),ROW(INDIRECT("1:"&ROWS(Z$7:Z$26)))),ROWS($7:8))),"") -> 
B9: 3 | C9: =IF(#REF!="","",VALUE(#REF!)) ->  | D9: =IF(Accueil!B17=0,"",IF(Accueil!B17="","",Accueil!B17)) -> 3 | E9: =IF(C9="","",MID(Accueil!D17,1,1)) ->  | AB9: =IF(COUNT(F$7:F$26)>=ROWS($7:9),INDEX(F$7:F$26,SMALL(IF(ISNUMBER(F$7:F$26),ROW(INDIRECT("1:"&ROWS(F$7:F$26)))),ROWS($7:9))),"") ->  | AC9: =IF(COUNT(G$7:G$26)>=ROWS($7:9),INDEX(G$7:G$26,SMALL(IF(ISNUMBER(G$7:G$26),ROW(INDIRECT("1:"&ROWS(G$7:G$26)))),ROWS($7:9))),"") ->  | AD9: =IF(COUNT(H$7:H$26)>=ROWS($7:9),INDEX(H$7:H$26,SMALL(IF(ISNUMBER(H$7:H$26),ROW(INDIRECT("1:"&ROWS(H$7:H$26)))),ROWS($7:9))),"") ->  | AE9: =IF(COUNT(I$7:I$26)>=ROWS($7:9),INDEX(I$7:I$26,SMALL(IF(ISNUMBER(I$7:I$26),ROW(INDIRECT("1:"&ROWS(I$7:I$26)))),ROWS($7:9))),"") ->  | AF9: =IF(COUNT(J$7:J$26)>=ROWS($7:9),INDEX(J$7:J$26,SMALL(IF(ISNUMBER(J$7:J$26),ROW(INDIRECT("1:"&ROWS(J$7:J$26)))),ROWS($7:9))),"") ->  | AG9: =IF(COUNT(K$7:K$26)>=ROWS($7:9),INDEX(K$7:K$26,SMALL(IF(ISNUMBER(K$7:K$26),ROW(INDIRECT("1:"&ROWS(K$7:K$26)))),ROWS($7:9))),"") ->  | AH9: =IF(COUNT(L$7:L$26)>=ROWS($7:9),INDEX(L$7:L$26,SMALL(IF(ISNUMBER(L$7:L$26),ROW(INDIRECT("1:"&ROWS(L$7:L$26)))),ROWS($7:9))),"") ->  | AI9: =IF(COUNT(M$7:M$26)>=ROWS($7:9),INDEX(M$7:M$26,SMALL(IF(ISNUMBER(M$7:M$26),ROW(INDIRECT("1:"&ROWS(M$7:M$26)))),ROWS($7:9))),"") ->  | AJ9: =IF(COUNT(N$7:N$26)>=ROWS($7:9),INDEX(N$7:N$26,SMALL(IF(ISNUMBER(N$7:N$26),ROW(INDIRECT("1:"&ROWS(N$7:N$26)))),ROWS($7:9))),"") ->  | AK9: =IF(COUNT(O$7:O$26)>=ROWS($7:9),INDEX(O$7:O$26,SMALL(IF(ISNUMBER(O$7:O$26),ROW(INDIRECT("1:"&ROWS(O$7:O$26)))),ROWS($7:9))),"") ->  | AL9: =IF(COUNT(P$7:P$26)>=ROWS($7:9),INDEX(P$7:P$26,SMALL(IF(ISNUMBER(P$7:P$26),ROW(INDIRECT("1:"&ROWS(P$7:P$26)))),ROWS($7:9))),"") ->  | AM9: =IF(COUNT(Q$7:Q$26)>=ROWS($7:9),INDEX(Q$7:Q$26,SMALL(IF(ISNUMBER(Q$7:Q$26),ROW(INDIRECT("1:"&ROWS(Q$7:Q$26)))),ROWS($7:9))),"") ->  | AN9: =IF(COUNT(R$7:R$26)>=ROWS($7:9),INDEX(R$7:R$26,SMALL(IF(ISNUMBER(R$7:R$26),ROW(INDIRECT("1:"&ROWS(R$7:R$26)))),ROWS($7:9))),"") ->  | AO9: =IF(COUNT(S$7:S$26)>=ROWS($7:9),INDEX(S$7:S$26,SMALL(IF(ISNUMBER(S$7:S$26),ROW(INDIRECT("1:"&ROWS(S$7:S$26)))),ROWS($7:9))),"") ->  | AP9: =IF(COUNT(T$7:T$26)>=ROWS($7:9),INDEX(T$7:T$26,SMALL(IF(ISNUMBER(T$7:T$26),ROW(INDIRECT("1:"&ROWS(T$7:T$26)))),ROWS($7:9))),"") ->  | AQ9: =IF(COUNT(U$7:U$26)>=ROWS($7:9),INDEX(U$7:U$26,SMALL(IF(ISNUMBER(U$7:U$26),ROW(INDIRECT("1:"&ROWS(U$7:U$26)))),ROWS($7:9))),"") ->  | AR9: =IF(COUNT(V$7:V$26)>=ROWS($7:9),INDEX(V$7:V$26,SMALL(IF(ISNUMBER(V$7:V$26),ROW(INDIRECT("1:"&ROWS(V$7:V$26)))),ROWS($7:9))),"") ->  | AS9: =IF(COUNT(W$7:W$26)>=ROWS($7:9),INDEX(W$7:W$26,SMALL(IF(ISNUMBER(W$7:W$26),ROW(INDIRECT("1:"&ROWS(W$7:W$26)))),ROWS($7:9))),"") ->  | AT9: =IF(COUNT(X$7:X$26)>=ROWS($7:9),INDEX(X$7:X$26,SMALL(IF(ISNUMBER(X$7:X$26),ROW(INDIRECT("1:"&ROWS(X$7:X$26)))),ROWS($7:9))),"") ->  | AU9: =IF(COUNT(Y$7:Y$26)>=ROWS($7:9),INDEX(Y$7:Y$26,SMALL(IF(ISNUMBER(Y$7:Y$26),ROW(INDIRECT("1:"&ROWS(Y$7:Y$26)))),ROWS($7:9))),"") ->  | AV9: =IF(COUNT(Z$7:Z$26)>=ROWS($7:9),INDEX(Z$7:Z$26,SMALL(IF(ISNUMBER(Z$7:Z$26),ROW(INDIRECT("1:"&ROWS(Z$7:Z$26)))),ROWS($7:9))),"") -> 
A10: 4Ah | B10: 4 | C10: =IF(#REF!="","",VALUE(#REF!)) ->  | D10: =IF(Accueil!B18=0,"",IF(Accueil!B18="","",Accueil!B18)) -> 4 | E10: =IF(C10="","",MID(Accueil!D18,1,1)) ->  | AB10: =IF(COUNT(F$7:F$26)>=ROWS($7:10),INDEX(F$7:F$26,SMALL(IF(ISNUMBER(F$7:F$26),ROW(INDIRECT("1:"&ROWS(F$7:F$26)))),ROWS($7:10))),"") ->  | AC10: =IF(COUNT(G$7:G$26)>=ROWS($7:10),INDEX(G$7:G$26,SMALL(IF(ISNUMBER(G$7:G$26),ROW(INDIRECT("1:"&ROWS(G$7:G$26)))),ROWS($7:10))),"") ->  | AD10: =IF(COUNT(H$7:H$26)>=ROWS($7:10),INDEX(H$7:H$26,SMALL(IF(ISNUMBER(H$7:H$26),ROW(INDIRECT("1:"&ROWS(H$7:H$26)))),ROWS($7:10))),"") ->  | AE10: =IF(COUNT(I$7:I$26)>=ROWS($7:10),INDEX(I$7:I$26,SMALL(IF(ISNUMBER(I$7:I$26),ROW(INDIRECT("1:"&ROWS(I$7:I$26)))),ROWS($7:10))),"") ->  | AF10: =IF(COUNT(J$7:J$26)>=ROWS($7:10),INDEX(J$7:J$26,SMALL(IF(ISNUMBER(J$7:J$26),ROW(INDIRECT("1:"&ROWS(J$7:J$26)))),ROWS($7:10))),"") ->  | AG10: =IF(COUNT(K$7:K$26)>=ROWS($7:10),INDEX(K$7:K$26,SMALL(IF(ISNUMBER(K$7:K$26),ROW(INDIRECT("1:"&ROWS(K$7:K$26)))),ROWS($7:10))),"") ->  | AH10: =IF(COUNT(L$7:L$26)>=ROWS($7:10),INDEX(L$7:L$26,SMALL(IF(ISNUMBER(L$7:L$26),ROW(INDIRECT("1:"&ROWS(L$7:L$26)))),ROWS($7:10))),"") ->  | AI10: =IF(COUNT(M$7:M$26)>=ROWS($7:10),INDEX(M$7:M$26,SMALL(IF(ISNUMBER(M$7:M$26),ROW(INDIRECT("1:"&ROWS(M$7:M$26)))),ROWS($7:10))),"") ->  | AJ10: =IF(COUNT(N$7:N$26)>=ROWS($7:10),INDEX(N$7:N$26,SMALL(IF(ISNUMBER(N$7:N$26),ROW(INDIRECT("1:"&ROWS(N$7:N$26)))),ROWS($7:10))),"") ->  | AK10: =IF(COUNT(O$7:O$26)>=ROWS($7:10),INDEX(O$7:O$26,SMALL(IF(ISNUMBER(O$7:O$26),ROW(INDIRECT("1:"&ROWS(O$7:O$26)))),ROWS($7:10))),"") ->  | AL10: =IF(COUNT(P$7:P$26)>=ROWS($7:10),INDEX(P$7:P$26,SMALL(IF(ISNUMBER(P$7:P$26),ROW(INDIRECT("1:"&ROWS(P$7:P$26)))),ROWS($7:10))),"") ->  | AM10: =IF(COUNT(Q$7:Q$26)>=ROWS($7:10),INDEX(Q$7:Q$26,SMALL(IF(ISNUMBER(Q$7:Q$26),ROW(INDIRECT("1:"&ROWS(Q$7:Q$26)))),ROWS($7:10))),"") ->  | AN10: =IF(COUNT(R$7:R$26)>=ROWS($7:10),INDEX(R$7:R$26,SMALL(IF(ISNUMBER(R$7:R$26),ROW(INDIRECT("1:"&ROWS(R$7:R$26)))),ROWS($7:10))),"") ->  | AO10: =IF(COUNT(S$7:S$26)>=ROWS($7:10),INDEX(S$7:S$26,SMALL(IF(ISNUMBER(S$7:S$26),ROW(INDIRECT("1:"&ROWS(S$7:S$26)))),ROWS($7:10))),"") ->  | AP10: =IF(COUNT(T$7:T$26)>=ROWS($7:10),INDEX(T$7:T$26,SMALL(IF(ISNUMBER(T$7:T$26),ROW(INDIRECT("1:"&ROWS(T$7:T$26)))),ROWS($7:10))),"") ->  | AQ10: =IF(COUNT(U$7:U$26)>=ROWS($7:10),INDEX(U$7:U$26,SMALL(IF(ISNUMBER(U$7:U$26),ROW(INDIRECT("1:"&ROWS(U$7:U$26)))),ROWS($7:10))),"") ->  | AR10: =IF(COUNT(V$7:V$26)>=ROWS($7:10),INDEX(V$7:V$26,SMALL(IF(ISNUMBER(V$7:V$26),ROW(INDIRECT("1:"&ROWS(V$7:V$26)))),ROWS($7:10))),"") ->  | AS10: =IF(COUNT(W$7:W$26)>=ROWS($7:10),INDEX(W$7:W$26,SMALL(IF(ISNUMBER(W$7:W$26),ROW(INDIRECT("1:"&ROWS(W$7:W$26)))),ROWS($7:10))),"") ->  | AT10: =IF(COUNT(X$7:X$26)>=ROWS($7:10),INDEX(X$7:X$26,SMALL(IF(ISNUMBER(X$7:X$26),ROW(INDIRECT("1:"&ROWS(X$7:X$26)))),ROWS($7:10))),"") ->  | AU10: =IF(COUNT(Y$7:Y$26)>=ROWS($7:10),INDEX(Y$7:Y$26,SMALL(IF(ISNUMBER(Y$7:Y$26),ROW(INDIRECT("1:"&ROWS(Y$7:Y$26)))),ROWS($7:10))),"") ->  | AV10: =IF(COUNT(Z$7:Z$26)>=ROWS($7:10),INDEX(Z$7:Z$26,SMALL(IF(ISNUMBER(Z$7:Z$26),ROW(INDIRECT("1:"&ROWS(Z$7:Z$26)))),ROWS($7:10))),"") -> 
A11: 4Am | B11: 5 | C11: =IF(#REF!="","",VALUE(#REF!)) ->  | D11: =IF(Accueil!B19=0,"",IF(Accueil!B19="","",Accueil!B19)) -> 5 | E11: =IF(C11="","",MID(Accueil!D19,1,1)) ->  | AB11: =IF(COUNT(F$7:F$26)>=ROWS($7:11),INDEX(F$7:F$26,SMALL(IF(ISNUMBER(F$7:F$26),ROW(INDIRECT("1:"&ROWS(F$7:F$26)))),ROWS($7:11))),"") ->  | AC11: =IF(COUNT(G$7:G$26)>=ROWS($7:11),INDEX(G$7:G$26,SMALL(IF(ISNUMBER(G$7:G$26),ROW(INDIRECT("1:"&ROWS(G$7:G$26)))),ROWS($7:11))),"") ->  | AD11: =IF(COUNT(H$7:H$26)>=ROWS($7:11),INDEX(H$7:H$26,SMALL(IF(ISNUMBER(H$7:H$26),ROW(INDIRECT("1:"&ROWS(H$7:H$26)))),ROWS($7:11))),"") ->  | AE11: =IF(COUNT(I$7:I$26)>=ROWS($7:11),INDEX(I$7:I$26,SMALL(IF(ISNUMBER(I$7:I$26),ROW(INDIRECT("1:"&ROWS(I$7:I$26)))),ROWS($7:11))),"") ->  | AF11: =IF(COUNT(J$7:J$26)>=ROWS($7:11),INDEX(J$7:J$26,SMALL(IF(ISNUMBER(J$7:J$26),ROW(INDIRECT("1:"&ROWS(J$7:J$26)))),ROWS($7:11))),"") ->  | AG11: =IF(COUNT(K$7:K$26)>=ROWS($7:11),INDEX(K$7:K$26,SMALL(IF(ISNUMBER(K$7:K$26),ROW(INDIRECT("1:"&ROWS(K$7:K$26)))),ROWS($7:11))),"") ->  | AH11: =IF(COUNT(L$7:L$26)>=ROWS($7:11),INDEX(L$7:L$26,SMALL(IF(ISNUMBER(L$7:L$26),ROW(INDIRECT("1:"&ROWS(L$7:L$26)))),ROWS($7:11))),"") ->  | AI11: =IF(COUNT(M$7:M$26)>=ROWS($7:11),INDEX(M$7:M$26,SMALL(IF(ISNUMBER(M$7:M$26),ROW(INDIRECT("1:"&ROWS(M$7:M$26)))),ROWS($7:11))),"") ->  | AJ11: =IF(COUNT(N$7:N$26)>=ROWS($7:11),INDEX(N$7:N$26,SMALL(IF(ISNUMBER(N$7:N$26),ROW(INDIRECT("1:"&ROWS(N$7:N$26)))),ROWS($7:11))),"") ->  | AK11: =IF(COUNT(O$7:O$26)>=ROWS($7:11),INDEX(O$7:O$26,SMALL(IF(ISNUMBER(O$7:O$26),ROW(INDIRECT("1:"&ROWS(O$7:O$26)))),ROWS($7:11))),"") ->  | AL11: =IF(COUNT(P$7:P$26)>=ROWS($7:11),INDEX(P$7:P$26,SMALL(IF(ISNUMBER(P$7:P$26),ROW(INDIRECT("1:"&ROWS(P$7:P$26)))),ROWS($7:11))),"") ->  | AM11: =IF(COUNT(Q$7:Q$26)>=ROWS($7:11),INDEX(Q$7:Q$26,SMALL(IF(ISNUMBER(Q$7:Q$26),ROW(INDIRECT("1:"&ROWS(Q$7:Q$26)))),ROWS($7:11))),"") ->  | AN11: =IF(COUNT(R$7:R$26)>=ROWS($7:11),INDEX(R$7:R$26,SMALL(IF(ISNUMBER(R$7:R$26),ROW(INDIRECT("1:"&ROWS(R$7:R$26)))),ROWS($7:11))),"") ->  | AO11: =IF(COUNT(S$7:S$26)>=ROWS($7:11),INDEX(S$7:S$26,SMALL(IF(ISNUMBER(S$7:S$26),ROW(INDIRECT("1:"&ROWS(S$7:S$26)))),ROWS($7:11))),"") ->  | AP11: =IF(COUNT(T$7:T$26)>=ROWS($7:11),INDEX(T$7:T$26,SMALL(IF(ISNUMBER(T$7:T$26),ROW(INDIRECT("1:"&ROWS(T$7:T$26)))),ROWS($7:11))),"") ->  | AQ11: =IF(COUNT(U$7:U$26)>=ROWS($7:11),INDEX(U$7:U$26,SMALL(IF(ISNUMBER(U$7:U$26),ROW(INDIRECT("1:"&ROWS(U$7:U$26)))),ROWS($7:11))),"") ->  | AR11: =IF(COUNT(V$7:V$26)>=ROWS($7:11),INDEX(V$7:V$26,SMALL(IF(ISNUMBER(V$7:V$26),ROW(INDIRECT("1:"&ROWS(V$7:V$26)))),ROWS($7:11))),"") ->  | AS11: =IF(COUNT(W$7:W$26)>=ROWS($7:11),INDEX(W$7:W$26,SMALL(IF(ISNUMBER(W$7:W$26),ROW(INDIRECT("1:"&ROWS(W$7:W$26)))),ROWS($7:11))),"") ->  | AT11: =IF(COUNT(X$7:X$26)>=ROWS($7:11),INDEX(X$7:X$26,SMALL(IF(ISNUMBER(X$7:X$26),ROW(INDIRECT("1:"&ROWS(X$7:X$26)))),ROWS($7:11))),"") ->  | AU11: =IF(COUNT(Y$7:Y$26)>=ROWS($7:11),INDEX(Y$7:Y$26,SMALL(IF(ISNUMBER(Y$7:Y$26),ROW(INDIRECT("1:"&ROWS(Y$7:Y$26)))),ROWS($7:11))),"") ->  | AV11: =IF(COUNT(Z$7:Z$26)>=ROWS($7:11),INDEX(Z$7:Z$26,SMALL(IF(ISNUMBER(Z$7:Z$26),ROW(INDIRECT("1:"&ROWS(Z$7:Z$26)))),ROWS($7:11))),"") -> 
A12: 4Af | B12: 6 | C12: =IF(#REF!="","",VALUE(#REF!)) ->  | D12: =IF(Accueil!B20=0,"",IF(Accueil!B20="","",Accueil!B20)) -> 6 | E12: =IF(C12="","",MID(Accueil!D20,1,1)) ->  | AB12: =IF(COUNT(F$7:F$26)>=ROWS($7:12),INDEX(F$7:F$26,SMALL(IF(ISNUMBER(F$7:F$26),ROW(INDIRECT("1:"&ROWS(F$7:F$26)))),ROWS($7:12))),"") ->  | AC12: =IF(COUNT(G$7:G$26)>=ROWS($7:12),INDEX(G$7:G$26,SMALL(IF(ISNUMBER(G$7:G$26),ROW(INDIRECT("1:"&ROWS(G$7:G$26)))),ROWS($7:12))),"") ->  | AD12: =IF(COUNT(H$7:H$26)>=ROWS($7:12),INDEX(H$7:H$26,SMALL(IF(ISNUMBER(H$7:H$26),ROW(INDIRECT("1:"&ROWS(H$7:H$26)))),ROWS($7:12))),"") ->  | AE12: =IF(COUNT(I$7:I$26)>=ROWS($7:12),INDEX(I$7:I$26,SMALL(IF(ISNUMBER(I$7:I$26),ROW(INDIRECT("1:"&ROWS(I$7:I$26)))),ROWS($7:12))),"") ->  | AF12: =IF(COUNT(J$7:J$26)>=ROWS($7:12),INDEX(J$7:J$26,SMALL(IF(ISNUMBER(J$7:J$26),ROW(INDIRECT("1:"&ROWS(J$7:J$26)))),ROWS($7:12))),"") ->  | AG12: =IF(COUNT(K$7:K$26)>=ROWS($7:12),INDEX(K$7:K$26,SMALL(IF(ISNUMBER(K$7:K$26),ROW(INDIRECT("1:"&ROWS(K$7:K$26)))),ROWS($7:12))),"") ->  | AH12: =IF(COUNT(L$7:L$26)>=ROWS($7:12),INDEX(L$7:L$26,SMALL(IF(ISNUMBER(L$7:L$26),ROW(INDIRECT("1:"&ROWS(L$7:L$26)))),ROWS($7:12))),"") ->  | AI12: =IF(COUNT(M$7:M$26)>=ROWS($7:12),INDEX(M$7:M$26,SMALL(IF(ISNUMBER(M$7:M$26),ROW(INDIRECT("1:"&ROWS(M$7:M$26)))),ROWS($7:12))),"") ->  | AJ12: =IF(COUNT(N$7:N$26)>=ROWS($7:12),INDEX(N$7:N$26,SMALL(IF(ISNUMBER(N$7:N$26),ROW(INDIRECT("1:"&ROWS(N$7:N$26)))),ROWS($7:12))),"") ->  | AK12: =IF(COUNT(O$7:O$26)>=ROWS($7:12),INDEX(O$7:O$26,SMALL(IF(ISNUMBER(O$7:O$26),ROW(INDIRECT("1:"&ROWS(O$7:O$26)))),ROWS($7:12))),"") ->  | AL12: =IF(COUNT(P$7:P$26)>=ROWS($7:12),INDEX(P$7:P$26,SMALL(IF(ISNUMBER(P$7:P$26),ROW(INDIRECT("1:"&ROWS(P$7:P$26)))),ROWS($7:12))),"") ->  | AM12: =IF(COUNT(Q$7:Q$26)>=ROWS($7:12),INDEX(Q$7:Q$26,SMALL(IF(ISNUMBER(Q$7:Q$26),ROW(INDIRECT("1:"&ROWS(Q$7:Q$26)))),ROWS($7:12))),"") ->  | AN12: =IF(COUNT(R$7:R$26)>=ROWS($7:12),INDEX(R$7:R$26,SMALL(IF(ISNUMBER(R$7:R$26),ROW(INDIRECT("1:"&ROWS(R$7:R$26)))),ROWS($7:12))),"") ->  | AO12: =IF(COUNT(S$7:S$26)>=ROWS($7:12),INDEX(S$7:S$26,SMALL(IF(ISNUMBER(S$7:S$26),ROW(INDIRECT("1:"&ROWS(S$7:S$26)))),ROWS($7:12))),"") ->  | AP12: =IF(COUNT(T$7:T$26)>=ROWS($7:12),INDEX(T$7:T$26,SMALL(IF(ISNUMBER(T$7:T$26),ROW(INDIRECT("1:"&ROWS(T$7:T$26)))),ROWS($7:12))),"") ->  | AQ12: =IF(COUNT(U$7:U$26)>=ROWS($7:12),INDEX(U$7:U$26,SMALL(IF(ISNUMBER(U$7:U$26),ROW(INDIRECT("1:"&ROWS(U$7:U$26)))),ROWS($7:12))),"") ->  | AR12: =IF(COUNT(V$7:V$26)>=ROWS($7:12),INDEX(V$7:V$26,SMALL(IF(ISNUMBER(V$7:V$26),ROW(INDIRECT("1:"&ROWS(V$7:V$26)))),ROWS($7:12))),"") ->  | AS12: =IF(COUNT(W$7:W$26)>=ROWS($7:12),INDEX(W$7:W$26,SMALL(IF(ISNUMBER(W$7:W$26),ROW(INDIRECT("1:"&ROWS(W$7:W$26)))),ROWS($7:12))),"") ->  | AT12: =IF(COUNT(X$7:X$26)>=ROWS($7:12),INDEX(X$7:X$26,SMALL(IF(ISNUMBER(X$7:X$26),ROW(INDIRECT("1:"&ROWS(X$7:X$26)))),ROWS($7:12))),"") ->  | AU12: =IF(COUNT(Y$7:Y$26)>=ROWS($7:12),INDEX(Y$7:Y$26,SMALL(IF(ISNUMBER(Y$7:Y$26),ROW(INDIRECT("1:"&ROWS(Y$7:Y$26)))),ROWS($7:12))),"") ->  | AV12: =IF(COUNT(Z$7:Z$26)>=ROWS($7:12),INDEX(Z$7:Z$26,SMALL(IF(ISNUMBER(Z$7:Z$26),ROW(INDIRECT("1:"&ROWS(Z$7:Z$26)))),ROWS($7:12))),"") -> 
B13: 7 | C13: =IF(#REF!="","",VALUE(#REF!)) ->  | D13: =IF(Accueil!B21=0,"",IF(Accueil!B21="","",Accueil!B21)) -> 7 | E13: =IF(C13="","",MID(Accueil!D21,1,1)) ->  | AB13: =IF(COUNT(F$7:F$26)>=ROWS($7:13),INDEX(F$7:F$26,SMALL(IF(ISNUMBER(F$7:F$26),ROW(INDIRECT("1:"&ROWS(F$7:F$26)))),ROWS($7:13))),"") ->  | AC13: =IF(COUNT(G$7:G$26)>=ROWS($7:13),INDEX(G$7:G$26,SMALL(IF(ISNUMBER(G$7:G$26),ROW(INDIRECT("1:"&ROWS(G$7:G$26)))),ROWS($7:13))),"") ->  | AD13: =IF(COUNT(H$7:H$26)>=ROWS($7:13),INDEX(H$7:H$26,SMALL(IF(ISNUMBER(H$7:H$26),ROW(INDIRECT("1:"&ROWS(H$7:H$26)))),ROWS($7:13))),"") ->  | AE13: =IF(COUNT(I$7:I$26)>=ROWS($7:13),INDEX(I$7:I$26,SMALL(IF(ISNUMBER(I$7:I$26),ROW(INDIRECT("1:"&ROWS(I$7:I$26)))),ROWS($7:13))),"") ->  | AF13: =IF(COUNT(J$7:J$26)>=ROWS($7:13),INDEX(J$7:J$26,SMALL(IF(ISNUMBER(J$7:J$26),ROW(INDIRECT("1:"&ROWS(J$7:J$26)))),ROWS($7:13))),"") ->  | AG13: =IF(COUNT(K$7:K$26)>=ROWS($7:13),INDEX(K$7:K$26,SMALL(IF(ISNUMBER(K$7:K$26),ROW(INDIRECT("1:"&ROWS(K$7:K$26)))),ROWS($7:13))),"") ->  | AH13: =IF(COUNT(L$7:L$26)>=ROWS($7:13),INDEX(L$7:L$26,SMALL(IF(ISNUMBER(L$7:L$26),ROW(INDIRECT("1:"&ROWS(L$7:L$26)))),ROWS($7:13))),"") ->  | AI13: =IF(COUNT(M$7:M$26)>=ROWS($7:13),INDEX(M$7:M$26,SMALL(IF(ISNUMBER(M$7:M$26),ROW(INDIRECT("1:"&ROWS(M$7:M$26)))),ROWS($7:13))),"") ->  | AJ13: =IF(COUNT(N$7:N$26)>=ROWS($7:13),INDEX(N$7:N$26,SMALL(IF(ISNUMBER(N$7:N$26),ROW(INDIRECT("1:"&ROWS(N$7:N$26)))),ROWS($7:13))),"") ->  | AK13: =IF(COUNT(O$7:O$26)>=ROWS($7:13),INDEX(O$7:O$26,SMALL(IF(ISNUMBER(O$7:O$26),ROW(INDIRECT("1:"&ROWS(O$7:O$26)))),ROWS($7:13))),"") ->  | AL13: =IF(COUNT(P$7:P$26)>=ROWS($7:13),INDEX(P$7:P$26,SMALL(IF(ISNUMBER(P$7:P$26),ROW(INDIRECT("1:"&ROWS(P$7:P$26)))),ROWS($7:13))),"") ->  | AM13: =IF(COUNT(Q$7:Q$26)>=ROWS($7:13),INDEX(Q$7:Q$26,SMALL(IF(ISNUMBER(Q$7:Q$26),ROW(INDIRECT("1:"&ROWS(Q$7:Q$26)))),ROWS($7:13))),"") ->  | AN13: =IF(COUNT(R$7:R$26)>=ROWS($7:13),INDEX(R$7:R$26,SMALL(IF(ISNUMBER(R$7:R$26),ROW(INDIRECT("1:"&ROWS(R$7:R$26)))),ROWS($7:13))),"") ->  | AO13: =IF(COUNT(S$7:S$26)>=ROWS($7:13),INDEX(S$7:S$26,SMALL(IF(ISNUMBER(S$7:S$26),ROW(INDIRECT("1:"&ROWS(S$7:S$26)))),ROWS($7:13))),"") ->  | AP13: =IF(COUNT(T$7:T$26)>=ROWS($7:13),INDEX(T$7:T$26,SMALL(IF(ISNUMBER(T$7:T$26),ROW(INDIRECT("1:"&ROWS(T$7:T$26)))),ROWS($7:13))),"") ->  | AQ13: =IF(COUNT(U$7:U$26)>=ROWS($7:13),INDEX(U$7:U$26,SMALL(IF(ISNUMBER(U$7:U$26),ROW(INDIRECT("1:"&ROWS(U$7:U$26)))),ROWS($7:13))),"") ->  | AR13: =IF(COUNT(V$7:V$26)>=ROWS($7:13),INDEX(V$7:V$26,SMALL(IF(ISNUMBER(V$7:V$26),ROW(INDIRECT("1:"&ROWS(V$7:V$26)))),ROWS($7:13))),"") ->  | AS13: =IF(COUNT(W$7:W$26)>=ROWS($7:13),INDEX(W$7:W$26,SMALL(IF(ISNUMBER(W$7:W$26),ROW(INDIRECT("1:"&ROWS(W$7:W$26)))),ROWS($7:13))),"") ->  | AT13: =IF(COUNT(X$7:X$26)>=ROWS($7:13),INDEX(X$7:X$26,SMALL(IF(ISNUMBER(X$7:X$26),ROW(INDIRECT("1:"&ROWS(X$7:X$26)))),ROWS($7:13))),"") ->  | AU13: =IF(COUNT(Y$7:Y$26)>=ROWS($7:13),INDEX(Y$7:Y$26,SMALL(IF(ISNUMBER(Y$7:Y$26),ROW(INDIRECT("1:"&ROWS(Y$7:Y$26)))),ROWS($7:13))),"") ->  | AV13: =IF(COUNT(Z$7:Z$26)>=ROWS($7:13),INDEX(Z$7:Z$26,SMALL(IF(ISNUMBER(Z$7:Z$26),ROW(INDIRECT("1:"&ROWS(Z$7:Z$26)))),ROWS($7:13))),"") -> 
A14: 3Ah | B14: 8 | C14: =IF(#REF!="","",VALUE(#REF!)) ->  | D14: =IF(Accueil!B22=0,"",IF(Accueil!B22="","",Accueil!B22)) -> 8 | E14: =IF(C14="","",MID(Accueil!D22,1,1)) ->  | AB14: =IF(COUNT(F$7:F$26)>=ROWS($7:14),INDEX(F$7:F$26,SMALL(IF(ISNUMBER(F$7:F$26),ROW(INDIRECT("1:"&ROWS(F$7:F$26)))),ROWS($7:14))),"") ->  | AC14: =IF(COUNT(G$7:G$26)>=ROWS($7:14),INDEX(G$7:G$26,SMALL(IF(ISNUMBER(G$7:G$26),ROW(INDIRECT("1:"&ROWS(G$7:G$26)))),ROWS($7:14))),"") ->  | AD14: =IF(COUNT(H$7:H$26)>=ROWS($7:14),INDEX(H$7:H$26,SMALL(IF(ISNUMBER(H$7:H$26),ROW(INDIRECT("1:"&ROWS(H$7:H$26)))),ROWS($7:14))),"") ->  | AE14: =IF(COUNT(I$7:I$26)>=ROWS($7:14),INDEX(I$7:I$26,SMALL(IF(ISNUMBER(I$7:I$26),ROW(INDIRECT("1:"&ROWS(I$7:I$26)))),ROWS($7:14))),"") ->  | AF14: =IF(COUNT(J$7:J$26)>=ROWS($7:14),INDEX(J$7:J$26,SMALL(IF(ISNUMBER(J$7:J$26),ROW(INDIRECT("1:"&ROWS(J$7:J$26)))),ROWS($7:14))),"") ->  | AG14: =IF(COUNT(K$7:K$26)>=ROWS($7:14),INDEX(K$7:K$26,SMALL(IF(ISNUMBER(K$7:K$26),ROW(INDIRECT("1:"&ROWS(K$7:K$26)))),ROWS($7:14))),"") ->  | AH14: =IF(COUNT(L$7:L$26)>=ROWS($7:14),INDEX(L$7:L$26,SMALL(IF(ISNUMBER(L$7:L$26),ROW(INDIRECT("1:"&ROWS(L$7:L$26)))),ROWS($7:14))),"") ->  | AI14: =IF(COUNT(M$7:M$26)>=ROWS($7:14),INDEX(M$7:M$26,SMALL(IF(ISNUMBER(M$7:M$26),ROW(INDIRECT("1:"&ROWS(M$7:M$26)))),ROWS($7:14))),"") ->  | AJ14: =IF(COUNT(N$7:N$26)>=ROWS($7:14),INDEX(N$7:N$26,SMALL(IF(ISNUMBER(N$7:N$26),ROW(INDIRECT("1:"&ROWS(N$7:N$26)))),ROWS($7:14))),"") ->  | AK14: =IF(COUNT(O$7:O$26)>=ROWS($7:14),INDEX(O$7:O$26,SMALL(IF(ISNUMBER(O$7:O$26),ROW(INDIRECT("1:"&ROWS(O$7:O$26)))),ROWS($7:14))),"") ->  | AL14: =IF(COUNT(P$7:P$26)>=ROWS($7:14),INDEX(P$7:P$26,SMALL(IF(ISNUMBER(P$7:P$26),ROW(INDIRECT("1:"&ROWS(P$7:P$26)))),ROWS($7:14))),"") ->  | AM14: =IF(COUNT(Q$7:Q$26)>=ROWS($7:14),INDEX(Q$7:Q$26,SMALL(IF(ISNUMBER(Q$7:Q$26),ROW(INDIRECT("1:"&ROWS(Q$7:Q$26)))),ROWS($7:14))),"") ->  | AN14: =IF(COUNT(R$7:R$26)>=ROWS($7:14),INDEX(R$7:R$26,SMALL(IF(ISNUMBER(R$7:R$26),ROW(INDIRECT("1:"&ROWS(R$7:R$26)))),ROWS($7:14))),"") ->  | AO14: =IF(COUNT(S$7:S$26)>=ROWS($7:14),INDEX(S$7:S$26,SMALL(IF(ISNUMBER(S$7:S$26),ROW(INDIRECT("1:"&ROWS(S$7:S$26)))),ROWS($7:14))),"") ->  | AP14: =IF(COUNT(T$7:T$26)>=ROWS($7:14),INDEX(T$7:T$26,SMALL(IF(ISNUMBER(T$7:T$26),ROW(INDIRECT("1:"&ROWS(T$7:T$26)))),ROWS($7:14))),"") ->  | AQ14: =IF(COUNT(U$7:U$26)>=ROWS($7:14),INDEX(U$7:U$26,SMALL(IF(ISNUMBER(U$7:U$26),ROW(INDIRECT("1:"&ROWS(U$7:U$26)))),ROWS($7:14))),"") ->  | AR14: =IF(COUNT(V$7:V$26)>=ROWS($7:14),INDEX(V$7:V$26,SMALL(IF(ISNUMBER(V$7:V$26),ROW(INDIRECT("1:"&ROWS(V$7:V$26)))),ROWS($7:14))),"") ->  | AS14: =IF(COUNT(W$7:W$26)>=ROWS($7:14),INDEX(W$7:W$26,SMALL(IF(ISNUMBER(W$7:W$26),ROW(INDIRECT("1:"&ROWS(W$7:W$26)))),ROWS($7:14))),"") ->  | AT14: =IF(COUNT(X$7:X$26)>=ROWS($7:14),INDEX(X$7:X$26,SMALL(IF(ISNUMBER(X$7:X$26),ROW(INDIRECT("1:"&ROWS(X$7:X$26)))),ROWS($7:14))),"") ->  | AU14: =IF(COUNT(Y$7:Y$26)>=ROWS($7:14),INDEX(Y$7:Y$26,SMALL(IF(ISNUMBER(Y$7:Y$26),ROW(INDIRECT("1:"&ROWS(Y$7:Y$26)))),ROWS($7:14))),"") ->  | AV14: =IF(COUNT(Z$7:Z$26)>=ROWS($7:14),INDEX(Z$7:Z$26,SMALL(IF(ISNUMBER(Z$7:Z$26),ROW(INDIRECT("1:"&ROWS(Z$7:Z$26)))),ROWS($7:14))),"") -> 
A15: 3Am | B15: 9 | C15: =IF(#REF!="","",VALUE(#REF!)) ->  | D15: =IF(Accueil!B23=0,"",IF(Accueil!B23="","",Accueil!B23)) -> 9 | E15: =IF(C15="","",MID(Accueil!D23,1,1)) ->  | AB15: =IF(COUNT(F$7:F$26)>=ROWS($7:15),INDEX(F$7:F$26,SMALL(IF(ISNUMBER(F$7:F$26),ROW(INDIRECT("1:"&ROWS(F$7:F$26)))),ROWS($7:15))),"") ->  | AC15: =IF(COUNT(G$7:G$26)>=ROWS($7:15),INDEX(G$7:G$26,SMALL(IF(ISNUMBER(G$7:G$26),ROW(INDIRECT("1:"&ROWS(G$7:G$26)))),ROWS($7:15))),"") ->  | AD15: =IF(COUNT(H$7:H$26)>=ROWS($7:15),INDEX(H$7:H$26,SMALL(IF(ISNUMBER(H$7:H$26),ROW(INDIRECT("1:"&ROWS(H$7:H$26)))),ROWS($7:15))),"") ->  | AE15: =IF(COUNT(I$7:I$26)>=ROWS($7:15),INDEX(I$7:I$26,SMALL(IF(ISNUMBER(I$7:I$26),ROW(INDIRECT("1:"&ROWS(I$7:I$26)))),ROWS($7:15))),"") ->  | AF15: =IF(COUNT(J$7:J$26)>=ROWS($7:15),INDEX(J$7:J$26,SMALL(IF(ISNUMBER(J$7:J$26),ROW(INDIRECT("1:"&ROWS(J$7:J$26)))),ROWS($7:15))),"") ->  | AG15: =IF(COUNT(K$7:K$26)>=ROWS($7:15),INDEX(K$7:K$26,SMALL(IF(ISNUMBER(K$7:K$26),ROW(INDIRECT("1:"&ROWS(K$7:K$26)))),ROWS($7:15))),"") ->  | AH15: =IF(COUNT(L$7:L$26)>=ROWS($7:15),INDEX(L$7:L$26,SMALL(IF(ISNUMBER(L$7:L$26),ROW(INDIRECT("1:"&ROWS(L$7:L$26)))),ROWS($7:15))),"") ->  | AI15: =IF(COUNT(M$7:M$26)>=ROWS($7:15),INDEX(M$7:M$26,SMALL(IF(ISNUMBER(M$7:M$26),ROW(INDIRECT("1:"&ROWS(M$7:M$26)))),ROWS($7:15))),"") ->  | AJ15: =IF(COUNT(N$7:N$26)>=ROWS($7:15),INDEX(N$7:N$26,SMALL(IF(ISNUMBER(N$7:N$26),ROW(INDIRECT("1:"&ROWS(N$7:N$26)))),ROWS($7:15))),"") ->  | AK15: =IF(COUNT(O$7:O$26)>=ROWS($7:15),INDEX(O$7:O$26,SMALL(IF(ISNUMBER(O$7:O$26),ROW(INDIRECT("1:"&ROWS(O$7:O$26)))),ROWS($7:15))),"") ->  | AL15: =IF(COUNT(P$7:P$26)>=ROWS($7:15),INDEX(P$7:P$26,SMALL(IF(ISNUMBER(P$7:P$26),ROW(INDIRECT("1:"&ROWS(P$7:P$26)))),ROWS($7:15))),"") ->  | AM15: =IF(COUNT(Q$7:Q$26)>=ROWS($7:15),INDEX(Q$7:Q$26,SMALL(IF(ISNUMBER(Q$7:Q$26),ROW(INDIRECT("1:"&ROWS(Q$7:Q$26)))),ROWS($7:15))),"") ->  | AN15: =IF(COUNT(R$7:R$26)>=ROWS($7:15),INDEX(R$7:R$26,SMALL(IF(ISNUMBER(R$7:R$26),ROW(INDIRECT("1:"&ROWS(R$7:R$26)))),ROWS($7:15))),"") ->  | AO15: =IF(COUNT(S$7:S$26)>=ROWS($7:15),INDEX(S$7:S$26,SMALL(IF(ISNUMBER(S$7:S$26),ROW(INDIRECT("1:"&ROWS(S$7:S$26)))),ROWS($7:15))),"") ->  | AP15: =IF(COUNT(T$7:T$26)>=ROWS($7:15),INDEX(T$7:T$26,SMALL(IF(ISNUMBER(T$7:T$26),ROW(INDIRECT("1:"&ROWS(T$7:T$26)))),ROWS($7:15))),"") ->  | AQ15: =IF(COUNT(U$7:U$26)>=ROWS($7:15),INDEX(U$7:U$26,SMALL(IF(ISNUMBER(U$7:U$26),ROW(INDIRECT("1:"&ROWS(U$7:U$26)))),ROWS($7:15))),"") ->  | AR15: =IF(COUNT(V$7:V$26)>=ROWS($7:15),INDEX(V$7:V$26,SMALL(IF(ISNUMBER(V$7:V$26),ROW(INDIRECT("1:"&ROWS(V$7:V$26)))),ROWS($7:15))),"") ->  | AS15: =IF(COUNT(W$7:W$26)>=ROWS($7:15),INDEX(W$7:W$26,SMALL(IF(ISNUMBER(W$7:W$26),ROW(INDIRECT("1:"&ROWS(W$7:W$26)))),ROWS($7:15))),"") ->  | AT15: =IF(COUNT(X$7:X$26)>=ROWS($7:15),INDEX(X$7:X$26,SMALL(IF(ISNUMBER(X$7:X$26),ROW(INDIRECT("1:"&ROWS(X$7:X$26)))),ROWS($7:15))),"") ->  | AU15: =IF(COUNT(Y$7:Y$26)>=ROWS($7:15),INDEX(Y$7:Y$26,SMALL(IF(ISNUMBER(Y$7:Y$26),ROW(INDIRECT("1:"&ROWS(Y$7:Y$26)))),ROWS($7:15))),"") ->  | AV15: =IF(COUNT(Z$7:Z$26)>=ROWS($7:15),INDEX(Z$7:Z$26,SMALL(IF(ISNUMBER(Z$7:Z$26),ROW(INDIRECT("1:"&ROWS(Z$7:Z$26)))),ROWS($7:15))),"") -> 
A16: 3Af | B16: 10 | C16: =IF(#REF!="","",VALUE(#REF!)) ->  | D16: =IF(Accueil!B24=0,"",IF(Accueil!B24="","",Accueil!B24)) -> 10 | E16: =IF(C16="","",MID(Accueil!D24,1,1)) ->  | AB16: =IF(COUNT(F$7:F$26)>=ROWS($7:16),INDEX(F$7:F$26,SMALL(IF(ISNUMBER(F$7:F$26),ROW(INDIRECT("1:"&ROWS(F$7:F$26)))),ROWS($7:16))),"") ->  | AC16: =IF(COUNT(G$7:G$26)>=ROWS($7:16),INDEX(G$7:G$26,SMALL(IF(ISNUMBER(G$7:G$26),ROW(INDIRECT("1:"&ROWS(G$7:G$26)))),ROWS($7:16))),"") ->  | AD16: =IF(COUNT(H$7:H$26)>=ROWS($7:16),INDEX(H$7:H$26,SMALL(IF(ISNUMBER(H$7:H$26),ROW(INDIRECT("1:"&ROWS(H$7:H$26)))),ROWS($7:16))),"") ->  | AE16: =IF(COUNT(I$7:I$26)>=ROWS($7:16),INDEX(I$7:I$26,SMALL(IF(ISNUMBER(I$7:I$26),ROW(INDIRECT("1:"&ROWS(I$7:I$26)))),ROWS($7:16))),"") ->  | AF16: =IF(COUNT(J$7:J$26)>=ROWS($7:16),INDEX(J$7:J$26,SMALL(IF(ISNUMBER(J$7:J$26),ROW(INDIRECT("1:"&ROWS(J$7:J$26)))),ROWS($7:16))),"") ->  | AG16: =IF(COUNT(K$7:K$26)>=ROWS($7:16),INDEX(K$7:K$26,SMALL(IF(ISNUMBER(K$7:K$26),ROW(INDIRECT("1:"&ROWS(K$7:K$26)))),ROWS($7:16))),"") ->  | AH16: =IF(COUNT(L$7:L$26)>=ROWS($7:16),INDEX(L$7:L$26,SMALL(IF(ISNUMBER(L$7:L$26),ROW(INDIRECT("1:"&ROWS(L$7:L$26)))),ROWS($7:16))),"") ->  | AI16: =IF(COUNT(M$7:M$26)>=ROWS($7:16),INDEX(M$7:M$26,SMALL(IF(ISNUMBER(M$7:M$26),ROW(INDIRECT("1:"&ROWS(M$7:M$26)))),ROWS($7:16))),"") ->  | AJ16: =IF(COUNT(N$7:N$26)>=ROWS($7:16),INDEX(N$7:N$26,SMALL(IF(ISNUMBER(N$7:N$26),ROW(INDIRECT("1:"&ROWS(N$7:N$26)))),ROWS($7:16))),"") ->  | AK16: =IF(COUNT(O$7:O$26)>=ROWS($7:16),INDEX(O$7:O$26,SMALL(IF(ISNUMBER(O$7:O$26),ROW(INDIRECT("1:"&ROWS(O$7:O$26)))),ROWS($7:16))),"") ->  | AL16: =IF(COUNT(P$7:P$26)>=ROWS($7:16),INDEX(P$7:P$26,SMALL(IF(ISNUMBER(P$7:P$26),ROW(INDIRECT("1:"&ROWS(P$7:P$26)))),ROWS($7:16))),"") ->  | AM16: =IF(COUNT(Q$7:Q$26)>=ROWS($7:16),INDEX(Q$7:Q$26,SMALL(IF(ISNUMBER(Q$7:Q$26),ROW(INDIRECT("1:"&ROWS(Q$7:Q$26)))),ROWS($7:16))),"") ->  | AN16: =IF(COUNT(R$7:R$26)>=ROWS($7:16),INDEX(R$7:R$26,SMALL(IF(ISNUMBER(R$7:R$26),ROW(INDIRECT("1:"&ROWS(R$7:R$26)))),ROWS($7:16))),"") ->  | AO16: =IF(COUNT(S$7:S$26)>=ROWS($7:16),INDEX(S$7:S$26,SMALL(IF(ISNUMBER(S$7:S$26),ROW(INDIRECT("1:"&ROWS(S$7:S$26)))),ROWS($7:16))),"") ->  | AP16: =IF(COUNT(T$7:T$26)>=ROWS($7:16),INDEX(T$7:T$26,SMALL(IF(ISNUMBER(T$7:T$26),ROW(INDIRECT("1:"&ROWS(T$7:T$26)))),ROWS($7:16))),"") ->  | AQ16: =IF(COUNT(U$7:U$26)>=ROWS($7:16),INDEX(U$7:U$26,SMALL(IF(ISNUMBER(U$7:U$26),ROW(INDIRECT("1:"&ROWS(U$7:U$26)))),ROWS($7:16))),"") ->  | AR16: =IF(COUNT(V$7:V$26)>=ROWS($7:16),INDEX(V$7:V$26,SMALL(IF(ISNUMBER(V$7:V$26),ROW(INDIRECT("1:"&ROWS(V$7:V$26)))),ROWS($7:16))),"") ->  | AS16: =IF(COUNT(W$7:W$26)>=ROWS($7:16),INDEX(W$7:W$26,SMALL(IF(ISNUMBER(W$7:W$26),ROW(INDIRECT("1:"&ROWS(W$7:W$26)))),ROWS($7:16))),"") ->  | AT16: =IF(COUNT(X$7:X$26)>=ROWS($7:16),INDEX(X$7:X$26,SMALL(IF(ISNUMBER(X$7:X$26),ROW(INDIRECT("1:"&ROWS(X$7:X$26)))),ROWS($7:16))),"") ->  | AU16: =IF(COUNT(Y$7:Y$26)>=ROWS($7:16),INDEX(Y$7:Y$26,SMALL(IF(ISNUMBER(Y$7:Y$26),ROW(INDIRECT("1:"&ROWS(Y$7:Y$26)))),ROWS($7:16))),"") ->  | AV16: =IF(COUNT(Z$7:Z$26)>=ROWS($7:16),INDEX(Z$7:Z$26,SMALL(IF(ISNUMBER(Z$7:Z$26),ROW(INDIRECT("1:"&ROWS(Z$7:Z$26)))),ROWS($7:16))),"") -> 
B17: 11 | C17: =IF(#REF!="","",VALUE(#REF!)) ->  | D17: =IF(Accueil!B25=0,"",IF(Accueil!B25="","",Accueil!B25)) -> 11 | E17: =IF(C17="","",MID(Accueil!D25,1,1)) ->  | AB17: =IF(COUNT(F$7:F$26)>=ROWS($7:17),INDEX(F$7:F$26,SMALL(IF(ISNUMBER(F$7:F$26),ROW(INDIRECT("1:"&ROWS(F$7:F$26)))),ROWS($7:17))),"") ->  | AC17: =IF(COUNT(G$7:G$26)>=ROWS($7:17),INDEX(G$7:G$26,SMALL(IF(ISNUMBER(G$7:G$26),ROW(INDIRECT("1:"&ROWS(G$7:G$26)))),ROWS($7:17))),"") ->  | AD17: =IF(COUNT(H$7:H$26)>=ROWS($7:17),INDEX(H$7:H$26,SMALL(IF(ISNUMBER(H$7:H$26),ROW(INDIRECT("1:"&ROWS(H$7:H$26)))),ROWS($7:17))),"") ->  | AE17: =IF(COUNT(I$7:I$26)>=ROWS($7:17),INDEX(I$7:I$26,SMALL(IF(ISNUMBER(I$7:I$26),ROW(INDIRECT("1:"&ROWS(I$7:I$26)))),ROWS($7:17))),"") ->  | AF17: =IF(COUNT(J$7:J$26)>=ROWS($7:17),INDEX(J$7:J$26,SMALL(IF(ISNUMBER(J$7:J$26),ROW(INDIRECT("1:"&ROWS(J$7:J$26)))),ROWS($7:17))),"") ->  | AG17: =IF(COUNT(K$7:K$26)>=ROWS($7:17),INDEX(K$7:K$26,SMALL(IF(ISNUMBER(K$7:K$26),ROW(INDIRECT("1:"&ROWS(K$7:K$26)))),ROWS($7:17))),"") ->  | AH17: =IF(COUNT(L$7:L$26)>=ROWS($7:17),INDEX(L$7:L$26,SMALL(IF(ISNUMBER(L$7:L$26),ROW(INDIRECT("1:"&ROWS(L$7:L$26)))),ROWS($7:17))),"") ->  | AI17: =IF(COUNT(M$7:M$26)>=ROWS($7:17),INDEX(M$7:M$26,SMALL(IF(ISNUMBER(M$7:M$26),ROW(INDIRECT("1:"&ROWS(M$7:M$26)))),ROWS($7:17))),"") ->  | AJ17: =IF(COUNT(N$7:N$26)>=ROWS($7:17),INDEX(N$7:N$26,SMALL(IF(ISNUMBER(N$7:N$26),ROW(INDIRECT("1:"&ROWS(N$7:N$26)))),ROWS($7:17))),"") ->  | AK17: =IF(COUNT(O$7:O$26)>=ROWS($7:17),INDEX(O$7:O$26,SMALL(IF(ISNUMBER(O$7:O$26),ROW(INDIRECT("1:"&ROWS(O$7:O$26)))),ROWS($7:17))),"") ->  | AL17: =IF(COUNT(P$7:P$26)>=ROWS($7:17),INDEX(P$7:P$26,SMALL(IF(ISNUMBER(P$7:P$26),ROW(INDIRECT("1:"&ROWS(P$7:P$26)))),ROWS($7:17))),"") ->  | AM17: =IF(COUNT(Q$7:Q$26)>=ROWS($7:17),INDEX(Q$7:Q$26,SMALL(IF(ISNUMBER(Q$7:Q$26),ROW(INDIRECT("1:"&ROWS(Q$7:Q$26)))),ROWS($7:17))),"") ->  | AN17: =IF(COUNT(R$7:R$26)>=ROWS($7:17),INDEX(R$7:R$26,SMALL(IF(ISNUMBER(R$7:R$26),ROW(INDIRECT("1:"&ROWS(R$7:R$26)))),ROWS($7:17))),"") ->  | AO17: =IF(COUNT(S$7:S$26)>=ROWS($7:17),INDEX(S$7:S$26,SMALL(IF(ISNUMBER(S$7:S$26),ROW(INDIRECT("1:"&ROWS(S$7:S$26)))),ROWS($7:17))),"") ->  | AP17: =IF(COUNT(T$7:T$26)>=ROWS($7:17),INDEX(T$7:T$26,SMALL(IF(ISNUMBER(T$7:T$26),ROW(INDIRECT("1:"&ROWS(T$7:T$26)))),ROWS($7:17))),"") ->  | AQ17: =IF(COUNT(U$7:U$26)>=ROWS($7:17),INDEX(U$7:U$26,SMALL(IF(ISNUMBER(U$7:U$26),ROW(INDIRECT("1:"&ROWS(U$7:U$26)))),ROWS($7:17))),"") ->  | AR17: =IF(COUNT(V$7:V$26)>=ROWS($7:17),INDEX(V$7:V$26,SMALL(IF(ISNUMBER(V$7:V$26),ROW(INDIRECT("1:"&ROWS(V$7:V$26)))),ROWS($7:17))),"") ->  | AS17: =IF(COUNT(W$7:W$26)>=ROWS($7:17),INDEX(W$7:W$26,SMALL(IF(ISNUMBER(W$7:W$26),ROW(INDIRECT("1:"&ROWS(W$7:W$26)))),ROWS($7:17))),"") ->  | AT17: =IF(COUNT(X$7:X$26)>=ROWS($7:17),INDEX(X$7:X$26,SMALL(IF(ISNUMBER(X$7:X$26),ROW(INDIRECT("1:"&ROWS(X$7:X$26)))),ROWS($7:17))),"") ->  | AU17: =IF(COUNT(Y$7:Y$26)>=ROWS($7:17),INDEX(Y$7:Y$26,SMALL(IF(ISNUMBER(Y$7:Y$26),ROW(INDIRECT("1:"&ROWS(Y$7:Y$26)))),ROWS($7:17))),"") ->  | AV17: =IF(COUNT(Z$7:Z$26)>=ROWS($7:17),INDEX(Z$7:Z$26,SMALL(IF(ISNUMBER(Z$7:Z$26),ROW(INDIRECT("1:"&ROWS(Z$7:Z$26)))),ROWS($7:17))),"") -> 
A18: 2Ah | B18: 12 | C18: =IF(#REF!="","",VALUE(#REF!)) ->  | D18: =IF(Accueil!B26=0,"",IF(Accueil!B26="","",Accueil!B26)) -> 12 | E18: =IF(C18="","",MID(Accueil!D26,1,1)) ->  | AB18: =IF(COUNT(F$7:F$26)>=ROWS($7:18),INDEX(F$7:F$26,SMALL(IF(ISNUMBER(F$7:F$26),ROW(INDIRECT("1:"&ROWS(F$7:F$26)))),ROWS($7:18))),"") ->  | AC18: =IF(COUNT(G$7:G$26)>=ROWS($7:18),INDEX(G$7:G$26,SMALL(IF(ISNUMBER(G$7:G$26),ROW(INDIRECT("1:"&ROWS(G$7:G$26)))),ROWS($7:18))),"") ->  | AD18: =IF(COUNT(H$7:H$26)>=ROWS($7:18),INDEX(H$7:H$26,SMALL(IF(ISNUMBER(H$7:H$26),ROW(INDIRECT("1:"&ROWS(H$7:H$26)))),ROWS($7:18))),"") ->  | AE18: =IF(COUNT(I$7:I$26)>=ROWS($7:18),INDEX(I$7:I$26,SMALL(IF(ISNUMBER(I$7:I$26),ROW(INDIRECT("1:"&ROWS(I$7:I$26)))),ROWS($7:18))),"") ->  | AF18: =IF(COUNT(J$7:J$26)>=ROWS($7:18),INDEX(J$7:J$26,SMALL(IF(ISNUMBER(J$7:J$26),ROW(INDIRECT("1:"&ROWS(J$7:J$26)))),ROWS($7:18))),"") ->  | AG18: =IF(COUNT(K$7:K$26)>=ROWS($7:18),INDEX(K$7:K$26,SMALL(IF(ISNUMBER(K$7:K$26),ROW(INDIRECT("1:"&ROWS(K$7:K$26)))),ROWS($7:18))),"") ->  | AH18: =IF(COUNT(L$7:L$26)>=ROWS($7:18),INDEX(L$7:L$26,SMALL(IF(ISNUMBER(L$7:L$26),ROW(INDIRECT("1:"&ROWS(L$7:L$26)))),ROWS($7:18))),"") ->  | AI18: =IF(COUNT(M$7:M$26)>=ROWS($7:18),INDEX(M$7:M$26,SMALL(IF(ISNUMBER(M$7:M$26),ROW(INDIRECT("1:"&ROWS(M$7:M$26)))),ROWS($7:18))),"") ->  | AJ18: =IF(COUNT(N$7:N$26)>=ROWS($7:18),INDEX(N$7:N$26,SMALL(IF(ISNUMBER(N$7:N$26),ROW(INDIRECT("1:"&ROWS(N$7:N$26)))),ROWS($7:18))),"") ->  | AK18: =IF(COUNT(O$7:O$26)>=ROWS($7:18),INDEX(O$7:O$26,SMALL(IF(ISNUMBER(O$7:O$26),ROW(INDIRECT("1:"&ROWS(O$7:O$26)))),ROWS($7:18))),"") ->  | AL18: =IF(COUNT(P$7:P$26)>=ROWS($7:18),INDEX(P$7:P$26,SMALL(IF(ISNUMBER(P$7:P$26),ROW(INDIRECT("1:"&ROWS(P$7:P$26)))),ROWS($7:18))),"") ->  | AM18: =IF(COUNT(Q$7:Q$26)>=ROWS($7:18),INDEX(Q$7:Q$26,SMALL(IF(ISNUMBER(Q$7:Q$26),ROW(INDIRECT("1:"&ROWS(Q$7:Q$26)))),ROWS($7:18))),"") ->  | AN18: =IF(COUNT(R$7:R$26)>=ROWS($7:18),INDEX(R$7:R$26,SMALL(IF(ISNUMBER(R$7:R$26),ROW(INDIRECT("1:"&ROWS(R$7:R$26)))),ROWS($7:18))),"") ->  | AO18: =IF(COUNT(S$7:S$26)>=ROWS($7:18),INDEX(S$7:S$26,SMALL(IF(ISNUMBER(S$7:S$26),ROW(INDIRECT("1:"&ROWS(S$7:S$26)))),ROWS($7:18))),"") ->  | AP18: =IF(COUNT(T$7:T$26)>=ROWS($7:18),INDEX(T$7:T$26,SMALL(IF(ISNUMBER(T$7:T$26),ROW(INDIRECT("1:"&ROWS(T$7:T$26)))),ROWS($7:18))),"") ->  | AQ18: =IF(COUNT(U$7:U$26)>=ROWS($7:18),INDEX(U$7:U$26,SMALL(IF(ISNUMBER(U$7:U$26),ROW(INDIRECT("1:"&ROWS(U$7:U$26)))),ROWS($7:18))),"") ->  | AR18: =IF(COUNT(V$7:V$26)>=ROWS($7:18),INDEX(V$7:V$26,SMALL(IF(ISNUMBER(V$7:V$26),ROW(INDIRECT("1:"&ROWS(V$7:V$26)))),ROWS($7:18))),"") ->  | AS18: =IF(COUNT(W$7:W$26)>=ROWS($7:18),INDEX(W$7:W$26,SMALL(IF(ISNUMBER(W$7:W$26),ROW(INDIRECT("1:"&ROWS(W$7:W$26)))),ROWS($7:18))),"") ->  | AT18: =IF(COUNT(X$7:X$26)>=ROWS($7:18),INDEX(X$7:X$26,SMALL(IF(ISNUMBER(X$7:X$26),ROW(INDIRECT("1:"&ROWS(X$7:X$26)))),ROWS($7:18))),"") ->  | AU18: =IF(COUNT(Y$7:Y$26)>=ROWS($7:18),INDEX(Y$7:Y$26,SMALL(IF(ISNUMBER(Y$7:Y$26),ROW(INDIRECT("1:"&ROWS(Y$7:Y$26)))),ROWS($7:18))),"") ->  | AV18: =IF(COUNT(Z$7:Z$26)>=ROWS($7:18),INDEX(Z$7:Z$26,SMALL(IF(ISNUMBER(Z$7:Z$26),ROW(INDIRECT("1:"&ROWS(Z$7:Z$26)))),ROWS($7:18))),"") -> 
A19: 2Am | B19: 13 | C19: =IF(#REF!="","",VALUE(#REF!)) ->  | D19: =IF(Accueil!B27=0,"",IF(Accueil!B27="","",Accueil!B27)) -> 13 | E19: =IF(C19="","",MID(Accueil!D27,1,1)) ->  | AB19: =IF(COUNT(F$7:F$26)>=ROWS($7:19),INDEX(F$7:F$26,SMALL(IF(ISNUMBER(F$7:F$26),ROW(INDIRECT("1:"&ROWS(F$7:F$26)))),ROWS($7:19))),"") ->  | AC19: =IF(COUNT(G$7:G$26)>=ROWS($7:19),INDEX(G$7:G$26,SMALL(IF(ISNUMBER(G$7:G$26),ROW(INDIRECT("1:"&ROWS(G$7:G$26)))),ROWS($7:19))),"") ->  | AD19: =IF(COUNT(H$7:H$26)>=ROWS($7:19),INDEX(H$7:H$26,SMALL(IF(ISNUMBER(H$7:H$26),ROW(INDIRECT("1:"&ROWS(H$7:H$26)))),ROWS($7:19))),"") ->  | AE19: =IF(COUNT(I$7:I$26)>=ROWS($7:19),INDEX(I$7:I$26,SMALL(IF(ISNUMBER(I$7:I$26),ROW(INDIRECT("1:"&ROWS(I$7:I$26)))),ROWS($7:19))),"") ->  | AF19: =IF(COUNT(J$7:J$26)>=ROWS($7:19),INDEX(J$7:J$26,SMALL(IF(ISNUMBER(J$7:J$26),ROW(INDIRECT("1:"&ROWS(J$7:J$26)))),ROWS($7:19))),"") ->  | AG19: =IF(COUNT(K$7:K$26)>=ROWS($7:19),INDEX(K$7:K$26,SMALL(IF(ISNUMBER(K$7:K$26),ROW(INDIRECT("1:"&ROWS(K$7:K$26)))),ROWS($7:19))),"") ->  | AH19: =IF(COUNT(L$7:L$26)>=ROWS($7:19),INDEX(L$7:L$26,SMALL(IF(ISNUMBER(L$7:L$26),ROW(INDIRECT("1:"&ROWS(L$7:L$26)))),ROWS($7:19))),"") ->  | AI19: =IF(COUNT(M$7:M$26)>=ROWS($7:19),INDEX(M$7:M$26,SMALL(IF(ISNUMBER(M$7:M$26),ROW(INDIRECT("1:"&ROWS(M$7:M$26)))),ROWS($7:19))),"") ->  | AJ19: =IF(COUNT(N$7:N$26)>=ROWS($7:19),INDEX(N$7:N$26,SMALL(IF(ISNUMBER(N$7:N$26),ROW(INDIRECT("1:"&ROWS(N$7:N$26)))),ROWS($7:19))),"") ->  | AK19: =IF(COUNT(O$7:O$26)>=ROWS($7:19),INDEX(O$7:O$26,SMALL(IF(ISNUMBER(O$7:O$26),ROW(INDIRECT("1:"&ROWS(O$7:O$26)))),ROWS($7:19))),"") ->  | AL19: =IF(COUNT(P$7:P$26)>=ROWS($7:19),INDEX(P$7:P$26,SMALL(IF(ISNUMBER(P$7:P$26),ROW(INDIRECT("1:"&ROWS(P$7:P$26)))),ROWS($7:19))),"") ->  | AM19: =IF(COUNT(Q$7:Q$26)>=ROWS($7:19),INDEX(Q$7:Q$26,SMALL(IF(ISNUMBER(Q$7:Q$26),ROW(INDIRECT("1:"&ROWS(Q$7:Q$26)))),ROWS($7:19))),"") ->  | AN19: =IF(COUNT(R$7:R$26)>=ROWS($7:19),INDEX(R$7:R$26,SMALL(IF(ISNUMBER(R$7:R$26),ROW(INDIRECT("1:"&ROWS(R$7:R$26)))),ROWS($7:19))),"") ->  | AO19: =IF(COUNT(S$7:S$26)>=ROWS($7:19),INDEX(S$7:S$26,SMALL(IF(ISNUMBER(S$7:S$26),ROW(INDIRECT("1:"&ROWS(S$7:S$26)))),ROWS($7:19))),"") ->  | AP19: =IF(COUNT(T$7:T$26)>=ROWS($7:19),INDEX(T$7:T$26,SMALL(IF(ISNUMBER(T$7:T$26),ROW(INDIRECT("1:"&ROWS(T$7:T$26)))),ROWS($7:19))),"") ->  | AQ19: =IF(COUNT(U$7:U$26)>=ROWS($7:19),INDEX(U$7:U$26,SMALL(IF(ISNUMBER(U$7:U$26),ROW(INDIRECT("1:"&ROWS(U$7:U$26)))),ROWS($7:19))),"") ->  | AR19: =IF(COUNT(V$7:V$26)>=ROWS($7:19),INDEX(V$7:V$26,SMALL(IF(ISNUMBER(V$7:V$26),ROW(INDIRECT("1:"&ROWS(V$7:V$26)))),ROWS($7:19))),"") ->  | AS19: =IF(COUNT(W$7:W$26)>=ROWS($7:19),INDEX(W$7:W$26,SMALL(IF(ISNUMBER(W$7:W$26),ROW(INDIRECT("1:"&ROWS(W$7:W$26)))),ROWS($7:19))),"") ->  | AT19: =IF(COUNT(X$7:X$26)>=ROWS($7:19),INDEX(X$7:X$26,SMALL(IF(ISNUMBER(X$7:X$26),ROW(INDIRECT("1:"&ROWS(X$7:X$26)))),ROWS($7:19))),"") ->  | AU19: =IF(COUNT(Y$7:Y$26)>=ROWS($7:19),INDEX(Y$7:Y$26,SMALL(IF(ISNUMBER(Y$7:Y$26),ROW(INDIRECT("1:"&ROWS(Y$7:Y$26)))),ROWS($7:19))),"") ->  | AV19: =IF(COUNT(Z$7:Z$26)>=ROWS($7:19),INDEX(Z$7:Z$26,SMALL(IF(ISNUMBER(Z$7:Z$26),ROW(INDIRECT("1:"&ROWS(Z$7:Z$26)))),ROWS($7:19))),"") -> 
A20: 2Af | B20: 14 | C20: =IF(#REF!="","",VALUE(#REF!)) ->  | D20: =IF(Accueil!B28=0,"",IF(Accueil!B28="","",Accueil!B28)) -> 14 | E20: =IF(C20="","",MID(Accueil!D28,1,1)) ->  | AB20: =IF(COUNT(F$7:F$26)>=ROWS($7:20),INDEX(F$7:F$26,SMALL(IF(ISNUMBER(F$7:F$26),ROW(INDIRECT("1:"&ROWS(F$7:F$26)))),ROWS($7:20))),"") ->  | AC20: =IF(COUNT(G$7:G$26)>=ROWS($7:20),INDEX(G$7:G$26,SMALL(IF(ISNUMBER(G$7:G$26),ROW(INDIRECT("1:"&ROWS(G$7:G$26)))),ROWS($7:20))),"") ->  | AD20: =IF(COUNT(H$7:H$26)>=ROWS($7:20),INDEX(H$7:H$26,SMALL(IF(ISNUMBER(H$7:H$26),ROW(INDIRECT("1:"&ROWS(H$7:H$26)))),ROWS($7:20))),"") ->  | AE20: =IF(COUNT(I$7:I$26)>=ROWS($7:20),INDEX(I$7:I$26,SMALL(IF(ISNUMBER(I$7:I$26),ROW(INDIRECT("1:"&ROWS(I$7:I$26)))),ROWS($7:20))),"") ->  | AF20: =IF(COUNT(J$7:J$26)>=ROWS($7:20),INDEX(J$7:J$26,SMALL(IF(ISNUMBER(J$7:J$26),ROW(INDIRECT("1:"&ROWS(J$7:J$26)))),ROWS($7:20))),"") ->  | AG20: =IF(COUNT(K$7:K$26)>=ROWS($7:20),INDEX(K$7:K$26,SMALL(IF(ISNUMBER(K$7:K$26),ROW(INDIRECT("1:"&ROWS(K$7:K$26)))),ROWS($7:20))),"") ->  | AH20: =IF(COUNT(L$7:L$26)>=ROWS($7:20),INDEX(L$7:L$26,SMALL(IF(ISNUMBER(L$7:L$26),ROW(INDIRECT("1:"&ROWS(L$7:L$26)))),ROWS($7:20))),"") ->  | AI20: =IF(COUNT(M$7:M$26)>=ROWS($7:20),INDEX(M$7:M$26,SMALL(IF(ISNUMBER(M$7:M$26),ROW(INDIRECT("1:"&ROWS(M$7:M$26)))),ROWS($7:20))),"") ->  | AJ20: =IF(COUNT(N$7:N$26)>=ROWS($7:20),INDEX(N$7:N$26,SMALL(IF(ISNUMBER(N$7:N$26),ROW(INDIRECT("1:"&ROWS(N$7:N$26)))),ROWS($7:20))),"") ->  | AK20: =IF(COUNT(O$7:O$26)>=ROWS($7:20),INDEX(O$7:O$26,SMALL(IF(ISNUMBER(O$7:O$26),ROW(INDIRECT("1:"&ROWS(O$7:O$26)))),ROWS($7:20))),"") ->  | AL20: =IF(COUNT(P$7:P$26)>=ROWS($7:20),INDEX(P$7:P$26,SMALL(IF(ISNUMBER(P$7:P$26),ROW(INDIRECT("1:"&ROWS(P$7:P$26)))),ROWS($7:20))),"") ->  | AM20: =IF(COUNT(Q$7:Q$26)>=ROWS($7:20),INDEX(Q$7:Q$26,SMALL(IF(ISNUMBER(Q$7:Q$26),ROW(INDIRECT("1:"&ROWS(Q$7:Q$26)))),ROWS($7:20))),"") ->  | AN20: =IF(COUNT(R$7:R$26)>=ROWS($7:20),INDEX(R$7:R$26,SMALL(IF(ISNUMBER(R$7:R$26),ROW(INDIRECT("1:"&ROWS(R$7:R$26)))),ROWS($7:20))),"") ->  | AO20: =IF(COUNT(S$7:S$26)>=ROWS($7:20),INDEX(S$7:S$26,SMALL(IF(ISNUMBER(S$7:S$26),ROW(INDIRECT("1:"&ROWS(S$7:S$26)))),ROWS($7:20))),"") ->  | AP20: =IF(COUNT(T$7:T$26)>=ROWS($7:20),INDEX(T$7:T$26,SMALL(IF(ISNUMBER(T$7:T$26),ROW(INDIRECT("1:"&ROWS(T$7:T$26)))),ROWS($7:20))),"") ->  | AQ20: =IF(COUNT(U$7:U$26)>=ROWS($7:20),INDEX(U$7:U$26,SMALL(IF(ISNUMBER(U$7:U$26),ROW(INDIRECT("1:"&ROWS(U$7:U$26)))),ROWS($7:20))),"") ->  | AR20: =IF(COUNT(V$7:V$26)>=ROWS($7:20),INDEX(V$7:V$26,SMALL(IF(ISNUMBER(V$7:V$26),ROW(INDIRECT("1:"&ROWS(V$7:V$26)))),ROWS($7:20))),"") ->  | AS20: =IF(COUNT(W$7:W$26)>=ROWS($7:20),INDEX(W$7:W$26,SMALL(IF(ISNUMBER(W$7:W$26),ROW(INDIRECT("1:"&ROWS(W$7:W$26)))),ROWS($7:20))),"") ->  | AT20: =IF(COUNT(X$7:X$26)>=ROWS($7:20),INDEX(X$7:X$26,SMALL(IF(ISNUMBER(X$7:X$26),ROW(INDIRECT("1:"&ROWS(X$7:X$26)))),ROWS($7:20))),"") ->  | AU20: =IF(COUNT(Y$7:Y$26)>=ROWS($7:20),INDEX(Y$7:Y$26,SMALL(IF(ISNUMBER(Y$7:Y$26),ROW(INDIRECT("1:"&ROWS(Y$7:Y$26)))),ROWS($7:20))),"") ->  | AV20: =IF(COUNT(Z$7:Z$26)>=ROWS($7:20),INDEX(Z$7:Z$26,SMALL(IF(ISNUMBER(Z$7:Z$26),ROW(INDIRECT("1:"&ROWS(Z$7:Z$26)))),ROWS($7:20))),"") -> 
B21: 15 | C21: =IF(#REF!="","",VALUE(#REF!)) ->  | D21: =IF(Accueil!B29=0,"",IF(Accueil!B29="","",Accueil!B29)) ->  | E21: =IF(C21="","",MID(Accueil!D29,1,1)) ->  | AB21: =IF(COUNT(F$7:F$26)>=ROWS($7:21),INDEX(F$7:F$26,SMALL(IF(ISNUMBER(F$7:F$26),ROW(INDIRECT("1:"&ROWS(F$7:F$26)))),ROWS($7:21))),"") ->  | AC21: =IF(COUNT(G$7:G$26)>=ROWS($7:21),INDEX(G$7:G$26,SMALL(IF(ISNUMBER(G$7:G$26),ROW(INDIRECT("1:"&ROWS(G$7:G$26)))),ROWS($7:21))),"") ->  | AD21: =IF(COUNT(H$7:H$26)>=ROWS($7:21),INDEX(H$7:H$26,SMALL(IF(ISNUMBER(H$7:H$26),ROW(INDIRECT("1:"&ROWS(H$7:H$26)))),ROWS($7:21))),"") ->  | AE21: =IF(COUNT(I$7:I$26)>=ROWS($7:21),INDEX(I$7:I$26,SMALL(IF(ISNUMBER(I$7:I$26),ROW(INDIRECT("1:"&ROWS(I$7:I$26)))),ROWS($7:21))),"") ->  | AF21: =IF(COUNT(J$7:J$26)>=ROWS($7:21),INDEX(J$7:J$26,SMALL(IF(ISNUMBER(J$7:J$26),ROW(INDIRECT("1:"&ROWS(J$7:J$26)))),ROWS($7:21))),"") ->  | AG21: =IF(COUNT(K$7:K$26)>=ROWS($7:21),INDEX(K$7:K$26,SMALL(IF(ISNUMBER(K$7:K$26),ROW(INDIRECT("1:"&ROWS(K$7:K$26)))),ROWS($7:21))),"") ->  | AH21: =IF(COUNT(L$7:L$26)>=ROWS($7:21),INDEX(L$7:L$26,SMALL(IF(ISNUMBER(L$7:L$26),ROW(INDIRECT("1:"&ROWS(L$7:L$26)))),ROWS($7:21))),"") ->  | AI21: =IF(COUNT(M$7:M$26)>=ROWS($7:21),INDEX(M$7:M$26,SMALL(IF(ISNUMBER(M$7:M$26),ROW(INDIRECT("1:"&ROWS(M$7:M$26)))),ROWS($7:21))),"") ->  | AJ21: =IF(COUNT(N$7:N$26)>=ROWS($7:21),INDEX(N$7:N$26,SMALL(IF(ISNUMBER(N$7:N$26),ROW(INDIRECT("1:"&ROWS(N$7:N$26)))),ROWS($7:21))),"") ->  | AK21: =IF(COUNT(O$7:O$26)>=ROWS($7:21),INDEX(O$7:O$26,SMALL(IF(ISNUMBER(O$7:O$26),ROW(INDIRECT("1:"&ROWS(O$7:O$26)))),ROWS($7:21))),"") ->  | AL21: =IF(COUNT(P$7:P$26)>=ROWS($7:21),INDEX(P$7:P$26,SMALL(IF(ISNUMBER(P$7:P$26),ROW(INDIRECT("1:"&ROWS(P$7:P$26)))),ROWS($7:21))),"") ->  | AM21: =IF(COUNT(Q$7:Q$26)>=ROWS($7:21),INDEX(Q$7:Q$26,SMALL(IF(ISNUMBER(Q$7:Q$26),ROW(INDIRECT("1:"&ROWS(Q$7:Q$26)))),ROWS($7:21))),"") ->  | AN21: =IF(COUNT(R$7:R$26)>=ROWS($7:21),INDEX(R$7:R$26,SMALL(IF(ISNUMBER(R$7:R$26),ROW(INDIRECT("1:"&ROWS(R$7:R$26)))),ROWS($7:21))),"") ->  | AO21: =IF(COUNT(S$7:S$26)>=ROWS($7:21),INDEX(S$7:S$26,SMALL(IF(ISNUMBER(S$7:S$26),ROW(INDIRECT("1:"&ROWS(S$7:S$26)))),ROWS($7:21))),"") ->  | AP21: =IF(COUNT(T$7:T$26)>=ROWS($7:21),INDEX(T$7:T$26,SMALL(IF(ISNUMBER(T$7:T$26),ROW(INDIRECT("1:"&ROWS(T$7:T$26)))),ROWS($7:21))),"") ->  | AQ21: =IF(COUNT(U$7:U$26)>=ROWS($7:21),INDEX(U$7:U$26,SMALL(IF(ISNUMBER(U$7:U$26),ROW(INDIRECT("1:"&ROWS(U$7:U$26)))),ROWS($7:21))),"") ->  | AR21: =IF(COUNT(V$7:V$26)>=ROWS($7:21),INDEX(V$7:V$26,SMALL(IF(ISNUMBER(V$7:V$26),ROW(INDIRECT("1:"&ROWS(V$7:V$26)))),ROWS($7:21))),"") ->  | AS21: =IF(COUNT(W$7:W$26)>=ROWS($7:21),INDEX(W$7:W$26,SMALL(IF(ISNUMBER(W$7:W$26),ROW(INDIRECT("1:"&ROWS(W$7:W$26)))),ROWS($7:21))),"") ->  | AT21: =IF(COUNT(X$7:X$26)>=ROWS($7:21),INDEX(X$7:X$26,SMALL(IF(ISNUMBER(X$7:X$26),ROW(INDIRECT("1:"&ROWS(X$7:X$26)))),ROWS($7:21))),"") ->  | AU21: =IF(COUNT(Y$7:Y$26)>=ROWS($7:21),INDEX(Y$7:Y$26,SMALL(IF(ISNUMBER(Y$7:Y$26),ROW(INDIRECT("1:"&ROWS(Y$7:Y$26)))),ROWS($7:21))),"") ->  | AV21: =IF(COUNT(Z$7:Z$26)>=ROWS($7:21),INDEX(Z$7:Z$26,SMALL(IF(ISNUMBER(Z$7:Z$26),ROW(INDIRECT("1:"&ROWS(Z$7:Z$26)))),ROWS($7:21))),"") -> 
A22: 1Ah | B22: 16 | C22: =IF(#REF!="","",VALUE(#REF!)) ->  | D22: =IF(Accueil!B30=0,"",IF(Accueil!B30="","",Accueil!B30)) ->  | E22: =IF(C22="","",MID(Accueil!D30,1,1)) ->  | AB22: =IF(COUNT(F$7:F$26)>=ROWS($7:22),INDEX(F$7:F$26,SMALL(IF(ISNUMBER(F$7:F$26),ROW(INDIRECT("1:"&ROWS(F$7:F$26)))),ROWS($7:22))),"") ->  | AC22: =IF(COUNT(G$7:G$26)>=ROWS($7:22),INDEX(G$7:G$26,SMALL(IF(ISNUMBER(G$7:G$26),ROW(INDIRECT("1:"&ROWS(G$7:G$26)))),ROWS($7:22))),"") ->  | AD22: =IF(COUNT(H$7:H$26)>=ROWS($7:22),INDEX(H$7:H$26,SMALL(IF(ISNUMBER(H$7:H$26),ROW(INDIRECT("1:"&ROWS(H$7:H$26)))),ROWS($7:22))),"") ->  | AE22: =IF(COUNT(I$7:I$26)>=ROWS($7:22),INDEX(I$7:I$26,SMALL(IF(ISNUMBER(I$7:I$26),ROW(INDIRECT("1:"&ROWS(I$7:I$26)))),ROWS($7:22))),"") ->  | AF22: =IF(COUNT(J$7:J$26)>=ROWS($7:22),INDEX(J$7:J$26,SMALL(IF(ISNUMBER(J$7:J$26),ROW(INDIRECT("1:"&ROWS(J$7:J$26)))),ROWS($7:22))),"") ->  | AG22: =IF(COUNT(K$7:K$26)>=ROWS($7:22),INDEX(K$7:K$26,SMALL(IF(ISNUMBER(K$7:K$26),ROW(INDIRECT("1:"&ROWS(K$7:K$26)))),ROWS($7:22))),"") ->  | AH22: =IF(COUNT(L$7:L$26)>=ROWS($7:22),INDEX(L$7:L$26,SMALL(IF(ISNUMBER(L$7:L$26),ROW(INDIRECT("1:"&ROWS(L$7:L$26)))),ROWS($7:22))),"") ->  | AI22: =IF(COUNT(M$7:M$26)>=ROWS($7:22),INDEX(M$7:M$26,SMALL(IF(ISNUMBER(M$7:M$26),ROW(INDIRECT("1:"&ROWS(M$7:M$26)))),ROWS($7:22))),"") ->  | AJ22: =IF(COUNT(N$7:N$26)>=ROWS($7:22),INDEX(N$7:N$26,SMALL(IF(ISNUMBER(N$7:N$26),ROW(INDIRECT("1:"&ROWS(N$7:N$26)))),ROWS($7:22))),"") ->  | AK22: =IF(COUNT(O$7:O$26)>=ROWS($7:22),INDEX(O$7:O$26,SMALL(IF(ISNUMBER(O$7:O$26),ROW(INDIRECT("1:"&ROWS(O$7:O$26)))),ROWS($7:22))),"") ->  | AL22: =IF(COUNT(P$7:P$26)>=ROWS($7:22),INDEX(P$7:P$26,SMALL(IF(ISNUMBER(P$7:P$26),ROW(INDIRECT("1:"&ROWS(P$7:P$26)))),ROWS($7:22))),"") ->  | AM22: =IF(COUNT(Q$7:Q$26)>=ROWS($7:22),INDEX(Q$7:Q$26,SMALL(IF(ISNUMBER(Q$7:Q$26),ROW(INDIRECT("1:"&ROWS(Q$7:Q$26)))),ROWS($7:22))),"") ->  | AN22: =IF(COUNT(R$7:R$26)>=ROWS($7:22),INDEX(R$7:R$26,SMALL(IF(ISNUMBER(R$7:R$26),ROW(INDIRECT("1:"&ROWS(R$7:R$26)))),ROWS($7:22))),"") ->  | AO22: =IF(COUNT(S$7:S$26)>=ROWS($7:22),INDEX(S$7:S$26,SMALL(IF(ISNUMBER(S$7:S$26),ROW(INDIRECT("1:"&ROWS(S$7:S$26)))),ROWS($7:22))),"") ->  | AP22: =IF(COUNT(T$7:T$26)>=ROWS($7:22),INDEX(T$7:T$26,SMALL(IF(ISNUMBER(T$7:T$26),ROW(INDIRECT("1:"&ROWS(T$7:T$26)))),ROWS($7:22))),"") ->  | AQ22: =IF(COUNT(U$7:U$26)>=ROWS($7:22),INDEX(U$7:U$26,SMALL(IF(ISNUMBER(U$7:U$26),ROW(INDIRECT("1:"&ROWS(U$7:U$26)))),ROWS($7:22))),"") ->  | AR22: =IF(COUNT(V$7:V$26)>=ROWS($7:22),INDEX(V$7:V$26,SMALL(IF(ISNUMBER(V$7:V$26),ROW(INDIRECT("1:"&ROWS(V$7:V$26)))),ROWS($7:22))),"") ->  | AS22: =IF(COUNT(W$7:W$26)>=ROWS($7:22),INDEX(W$7:W$26,SMALL(IF(ISNUMBER(W$7:W$26),ROW(INDIRECT("1:"&ROWS(W$7:W$26)))),ROWS($7:22))),"") ->  | AT22: =IF(COUNT(X$7:X$26)>=ROWS($7:22),INDEX(X$7:X$26,SMALL(IF(ISNUMBER(X$7:X$26),ROW(INDIRECT("1:"&ROWS(X$7:X$26)))),ROWS($7:22))),"") ->  | AU22: =IF(COUNT(Y$7:Y$26)>=ROWS($7:22),INDEX(Y$7:Y$26,SMALL(IF(ISNUMBER(Y$7:Y$26),ROW(INDIRECT("1:"&ROWS(Y$7:Y$26)))),ROWS($7:22))),"") ->  | AV22: =IF(COUNT(Z$7:Z$26)>=ROWS($7:22),INDEX(Z$7:Z$26,SMALL(IF(ISNUMBER(Z$7:Z$26),ROW(INDIRECT("1:"&ROWS(Z$7:Z$26)))),ROWS($7:22))),"") -> 
A23: 1Am | B23: 17 | C23: =IF(#REF!="","",VALUE(#REF!)) ->  | D23: =IF(Accueil!B31=0,"",IF(Accueil!B31="","",Accueil!B31)) ->  | E23: =IF(C23="","",MID(Accueil!D31,1,1)) ->  | AB23: =IF(COUNT(F$7:F$26)>=ROWS($7:23),INDEX(F$7:F$26,SMALL(IF(ISNUMBER(F$7:F$26),ROW(INDIRECT("1:"&ROWS(F$7:F$26)))),ROWS($7:23))),"") ->  | AC23: =IF(COUNT(G$7:G$26)>=ROWS($7:23),INDEX(G$7:G$26,SMALL(IF(ISNUMBER(G$7:G$26),ROW(INDIRECT("1:"&ROWS(G$7:G$26)))),ROWS($7:23))),"") ->  | AD23: =IF(COUNT(H$7:H$26)>=ROWS($7:23),INDEX(H$7:H$26,SMALL(IF(ISNUMBER(H$7:H$26),ROW(INDIRECT("1:"&ROWS(H$7:H$26)))),ROWS($7:23))),"") ->  | AE23: =IF(COUNT(I$7:I$26)>=ROWS($7:23),INDEX(I$7:I$26,SMALL(IF(ISNUMBER(I$7:I$26),ROW(INDIRECT("1:"&ROWS(I$7:I$26)))),ROWS($7:23))),"") ->  | AF23: =IF(COUNT(J$7:J$26)>=ROWS($7:23),INDEX(J$7:J$26,SMALL(IF(ISNUMBER(J$7:J$26),ROW(INDIRECT("1:"&ROWS(J$7:J$26)))),ROWS($7:23))),"") ->  | AG23: =IF(COUNT(K$7:K$26)>=ROWS($7:23),INDEX(K$7:K$26,SMALL(IF(ISNUMBER(K$7:K$26),ROW(INDIRECT("1:"&ROWS(K$7:K$26)))),ROWS($7:23))),"") ->  | AH23: =IF(COUNT(L$7:L$26)>=ROWS($7:23),INDEX(L$7:L$26,SMALL(IF(ISNUMBER(L$7:L$26),ROW(INDIRECT("1:"&ROWS(L$7:L$26)))),ROWS($7:23))),"") ->  | AI23: =IF(COUNT(M$7:M$26)>=ROWS($7:23),INDEX(M$7:M$26,SMALL(IF(ISNUMBER(M$7:M$26),ROW(INDIRECT("1:"&ROWS(M$7:M$26)))),ROWS($7:23))),"") ->  | AJ23: =IF(COUNT(N$7:N$26)>=ROWS($7:23),INDEX(N$7:N$26,SMALL(IF(ISNUMBER(N$7:N$26),ROW(INDIRECT("1:"&ROWS(N$7:N$26)))),ROWS($7:23))),"") ->  | AK23: =IF(COUNT(O$7:O$26)>=ROWS($7:23),INDEX(O$7:O$26,SMALL(IF(ISNUMBER(O$7:O$26),ROW(INDIRECT("1:"&ROWS(O$7:O$26)))),ROWS($7:23))),"") ->  | AL23: =IF(COUNT(P$7:P$26)>=ROWS($7:23),INDEX(P$7:P$26,SMALL(IF(ISNUMBER(P$7:P$26),ROW(INDIRECT("1:"&ROWS(P$7:P$26)))),ROWS($7:23))),"") ->  | AM23: =IF(COUNT(Q$7:Q$26)>=ROWS($7:23),INDEX(Q$7:Q$26,SMALL(IF(ISNUMBER(Q$7:Q$26),ROW(INDIRECT("1:"&ROWS(Q$7:Q$26)))),ROWS($7:23))),"") ->  | AN23: =IF(COUNT(R$7:R$26)>=ROWS($7:23),INDEX(R$7:R$26,SMALL(IF(ISNUMBER(R$7:R$26),ROW(INDIRECT("1:"&ROWS(R$7:R$26)))),ROWS($7:23))),"") ->  | AO23: =IF(COUNT(S$7:S$26)>=ROWS($7:23),INDEX(S$7:S$26,SMALL(IF(ISNUMBER(S$7:S$26),ROW(INDIRECT("1:"&ROWS(S$7:S$26)))),ROWS($7:23))),"") ->  | AP23: =IF(COUNT(T$7:T$26)>=ROWS($7:23),INDEX(T$7:T$26,SMALL(IF(ISNUMBER(T$7:T$26),ROW(INDIRECT("1:"&ROWS(T$7:T$26)))),ROWS($7:23))),"") ->  | AQ23: =IF(COUNT(U$7:U$26)>=ROWS($7:23),INDEX(U$7:U$26,SMALL(IF(ISNUMBER(U$7:U$26),ROW(INDIRECT("1:"&ROWS(U$7:U$26)))),ROWS($7:23))),"") ->  | AR23: =IF(COUNT(V$7:V$26)>=ROWS($7:23),INDEX(V$7:V$26,SMALL(IF(ISNUMBER(V$7:V$26),ROW(INDIRECT("1:"&ROWS(V$7:V$26)))),ROWS($7:23))),"") ->  | AS23: =IF(COUNT(W$7:W$26)>=ROWS($7:23),INDEX(W$7:W$26,SMALL(IF(ISNUMBER(W$7:W$26),ROW(INDIRECT("1:"&ROWS(W$7:W$26)))),ROWS($7:23))),"") ->  | AT23: =IF(COUNT(X$7:X$26)>=ROWS($7:23),INDEX(X$7:X$26,SMALL(IF(ISNUMBER(X$7:X$26),ROW(INDIRECT("1:"&ROWS(X$7:X$26)))),ROWS($7:23))),"") ->  | AU23: =IF(COUNT(Y$7:Y$26)>=ROWS($7:23),INDEX(Y$7:Y$26,SMALL(IF(ISNUMBER(Y$7:Y$26),ROW(INDIRECT("1:"&ROWS(Y$7:Y$26)))),ROWS($7:23))),"") ->  | AV23: =IF(COUNT(Z$7:Z$26)>=ROWS($7:23),INDEX(Z$7:Z$26,SMALL(IF(ISNUMBER(Z$7:Z$26),ROW(INDIRECT("1:"&ROWS(Z$7:Z$26)))),ROWS($7:23))),"") -> 
A24: 1Af | B24: 18 | C24: =IF(#REF!="","",VALUE(#REF!)) ->  | D24: =IF(Accueil!B32=0,"",IF(Accueil!B32="","",Accueil!B32)) ->  | E24: =IF(C24="","",MID(Accueil!D32,1,1)) ->  | AB24: =IF(COUNT(F$7:F$26)>=ROWS($7:24),INDEX(F$7:F$26,SMALL(IF(ISNUMBER(F$7:F$26),ROW(INDIRECT("1:"&ROWS(F$7:F$26)))),ROWS($7:24))),"") ->  | AC24: =IF(COUNT(G$7:G$26)>=ROWS($7:24),INDEX(G$7:G$26,SMALL(IF(ISNUMBER(G$7:G$26),ROW(INDIRECT("1:"&ROWS(G$7:G$26)))),ROWS($7:24))),"") ->  | AD24: =IF(COUNT(H$7:H$26)>=ROWS($7:24),INDEX(H$7:H$26,SMALL(IF(ISNUMBER(H$7:H$26),ROW(INDIRECT("1:"&ROWS(H$7:H$26)))),ROWS($7:24))),"") ->  | AE24: =IF(COUNT(I$7:I$26)>=ROWS($7:24),INDEX(I$7:I$26,SMALL(IF(ISNUMBER(I$7:I$26),ROW(INDIRECT("1:"&ROWS(I$7:I$26)))),ROWS($7:24))),"") ->  | AF24: =IF(COUNT(J$7:J$26)>=ROWS($7:24),INDEX(J$7:J$26,SMALL(IF(ISNUMBER(J$7:J$26),ROW(INDIRECT("1:"&ROWS(J$7:J$26)))),ROWS($7:24))),"") ->  | AG24: =IF(COUNT(K$7:K$26)>=ROWS($7:24),INDEX(K$7:K$26,SMALL(IF(ISNUMBER(K$7:K$26),ROW(INDIRECT("1:"&ROWS(K$7:K$26)))),ROWS($7:24))),"") ->  | AH24: =IF(COUNT(L$7:L$26)>=ROWS($7:24),INDEX(L$7:L$26,SMALL(IF(ISNUMBER(L$7:L$26),ROW(INDIRECT("1:"&ROWS(L$7:L$26)))),ROWS($7:24))),"") ->  | AI24: =IF(COUNT(M$7:M$26)>=ROWS($7:24),INDEX(M$7:M$26,SMALL(IF(ISNUMBER(M$7:M$26),ROW(INDIRECT("1:"&ROWS(M$7:M$26)))),ROWS($7:24))),"") ->  | AJ24: =IF(COUNT(N$7:N$26)>=ROWS($7:24),INDEX(N$7:N$26,SMALL(IF(ISNUMBER(N$7:N$26),ROW(INDIRECT("1:"&ROWS(N$7:N$26)))),ROWS($7:24))),"") ->  | AK24: =IF(COUNT(O$7:O$26)>=ROWS($7:24),INDEX(O$7:O$26,SMALL(IF(ISNUMBER(O$7:O$26),ROW(INDIRECT("1:"&ROWS(O$7:O$26)))),ROWS($7:24))),"") ->  | AL24: =IF(COUNT(P$7:P$26)>=ROWS($7:24),INDEX(P$7:P$26,SMALL(IF(ISNUMBER(P$7:P$26),ROW(INDIRECT("1:"&ROWS(P$7:P$26)))),ROWS($7:24))),"") ->  | AM24: =IF(COUNT(Q$7:Q$26)>=ROWS($7:24),INDEX(Q$7:Q$26,SMALL(IF(ISNUMBER(Q$7:Q$26),ROW(INDIRECT("1:"&ROWS(Q$7:Q$26)))),ROWS($7:24))),"") ->  | AN24: =IF(COUNT(R$7:R$26)>=ROWS($7:24),INDEX(R$7:R$26,SMALL(IF(ISNUMBER(R$7:R$26),ROW(INDIRECT("1:"&ROWS(R$7:R$26)))),ROWS($7:24))),"") ->  | AO24: =IF(COUNT(S$7:S$26)>=ROWS($7:24),INDEX(S$7:S$26,SMALL(IF(ISNUMBER(S$7:S$26),ROW(INDIRECT("1:"&ROWS(S$7:S$26)))),ROWS($7:24))),"") ->  | AP24: =IF(COUNT(T$7:T$26)>=ROWS($7:24),INDEX(T$7:T$26,SMALL(IF(ISNUMBER(T$7:T$26),ROW(INDIRECT("1:"&ROWS(T$7:T$26)))),ROWS($7:24))),"") ->  | AQ24: =IF(COUNT(U$7:U$26)>=ROWS($7:24),INDEX(U$7:U$26,SMALL(IF(ISNUMBER(U$7:U$26),ROW(INDIRECT("1:"&ROWS(U$7:U$26)))),ROWS($7:24))),"") ->  | AR24: =IF(COUNT(V$7:V$26)>=ROWS($7:24),INDEX(V$7:V$26,SMALL(IF(ISNUMBER(V$7:V$26),ROW(INDIRECT("1:"&ROWS(V$7:V$26)))),ROWS($7:24))),"") ->  | AS24: =IF(COUNT(W$7:W$26)>=ROWS($7:24),INDEX(W$7:W$26,SMALL(IF(ISNUMBER(W$7:W$26),ROW(INDIRECT("1:"&ROWS(W$7:W$26)))),ROWS($7:24))),"") ->  | AT24: =IF(COUNT(X$7:X$26)>=ROWS($7:24),INDEX(X$7:X$26,SMALL(IF(ISNUMBER(X$7:X$26),ROW(INDIRECT("1:"&ROWS(X$7:X$26)))),ROWS($7:24))),"") ->  | AU24: =IF(COUNT(Y$7:Y$26)>=ROWS($7:24),INDEX(Y$7:Y$26,SMALL(IF(ISNUMBER(Y$7:Y$26),ROW(INDIRECT("1:"&ROWS(Y$7:Y$26)))),ROWS($7:24))),"") ->  | AV24: =IF(COUNT(Z$7:Z$26)>=ROWS($7:24),INDEX(Z$7:Z$26,SMALL(IF(ISNUMBER(Z$7:Z$26),ROW(INDIRECT("1:"&ROWS(Z$7:Z$26)))),ROWS($7:24))),"") -> 
B25: 19 | C25: =IF(#REF!="","",VALUE(#REF!)) ->  | D25: =IF(Accueil!B33=0,"",IF(Accueil!B33="","",Accueil!B33)) ->  | E25: =IF(C25="","",MID(Accueil!D33,1,1)) ->  | AB25: =IF(COUNT(F$7:F$26)>=ROWS($7:25),INDEX(F$7:F$26,SMALL(IF(ISNUMBER(F$7:F$26),ROW(INDIRECT("1:"&ROWS(F$7:F$26)))),ROWS($7:25))),"") ->  | AC25: =IF(COUNT(G$7:G$26)>=ROWS($7:25),INDEX(G$7:G$26,SMALL(IF(ISNUMBER(G$7:G$26),ROW(INDIRECT("1:"&ROWS(G$7:G$26)))),ROWS($7:25))),"") ->  | AD25: =IF(COUNT(H$7:H$26)>=ROWS($7:25),INDEX(H$7:H$26,SMALL(IF(ISNUMBER(H$7:H$26),ROW(INDIRECT("1:"&ROWS(H$7:H$26)))),ROWS($7:25))),"") ->  | AE25: =IF(COUNT(I$7:I$26)>=ROWS($7:25),INDEX(I$7:I$26,SMALL(IF(ISNUMBER(I$7:I$26),ROW(INDIRECT("1:"&ROWS(I$7:I$26)))),ROWS($7:25))),"") ->  | AF25: =IF(COUNT(J$7:J$26)>=ROWS($7:25),INDEX(J$7:J$26,SMALL(IF(ISNUMBER(J$7:J$26),ROW(INDIRECT("1:"&ROWS(J$7:J$26)))),ROWS($7:25))),"") ->  | AG25: =IF(COUNT(K$7:K$26)>=ROWS($7:25),INDEX(K$7:K$26,SMALL(IF(ISNUMBER(K$7:K$26),ROW(INDIRECT("1:"&ROWS(K$7:K$26)))),ROWS($7:25))),"") ->  | AH25: =IF(COUNT(L$7:L$26)>=ROWS($7:25),INDEX(L$7:L$26,SMALL(IF(ISNUMBER(L$7:L$26),ROW(INDIRECT("1:"&ROWS(L$7:L$26)))),ROWS($7:25))),"") ->  | AI25: =IF(COUNT(M$7:M$26)>=ROWS($7:25),INDEX(M$7:M$26,SMALL(IF(ISNUMBER(M$7:M$26),ROW(INDIRECT("1:"&ROWS(M$7:M$26)))),ROWS($7:25))),"") ->  | AJ25: =IF(COUNT(N$7:N$26)>=ROWS($7:25),INDEX(N$7:N$26,SMALL(IF(ISNUMBER(N$7:N$26),ROW(INDIRECT("1:"&ROWS(N$7:N$26)))),ROWS($7:25))),"") ->  | AK25: =IF(COUNT(O$7:O$26)>=ROWS($7:25),INDEX(O$7:O$26,SMALL(IF(ISNUMBER(O$7:O$26),ROW(INDIRECT("1:"&ROWS(O$7:O$26)))),ROWS($7:25))),"") ->  | AL25: =IF(COUNT(P$7:P$26)>=ROWS($7:25),INDEX(P$7:P$26,SMALL(IF(ISNUMBER(P$7:P$26),ROW(INDIRECT("1:"&ROWS(P$7:P$26)))),ROWS($7:25))),"") ->  | AM25: =IF(COUNT(Q$7:Q$26)>=ROWS($7:25),INDEX(Q$7:Q$26,SMALL(IF(ISNUMBER(Q$7:Q$26),ROW(INDIRECT("1:"&ROWS(Q$7:Q$26)))),ROWS($7:25))),"") ->  | AN25: =IF(COUNT(R$7:R$26)>=ROWS($7:25),INDEX(R$7:R$26,SMALL(IF(ISNUMBER(R$7:R$26),ROW(INDIRECT("1:"&ROWS(R$7:R$26)))),ROWS($7:25))),"") ->  | AO25: =IF(COUNT(S$7:S$26)>=ROWS($7:25),INDEX(S$7:S$26,SMALL(IF(ISNUMBER(S$7:S$26),ROW(INDIRECT("1:"&ROWS(S$7:S$26)))),ROWS($7:25))),"") ->  | AP25: =IF(COUNT(T$7:T$26)>=ROWS($7:25),INDEX(T$7:T$26,SMALL(IF(ISNUMBER(T$7:T$26),ROW(INDIRECT("1:"&ROWS(T$7:T$26)))),ROWS($7:25))),"") ->  | AQ25: =IF(COUNT(U$7:U$26)>=ROWS($7:25),INDEX(U$7:U$26,SMALL(IF(ISNUMBER(U$7:U$26),ROW(INDIRECT("1:"&ROWS(U$7:U$26)))),ROWS($7:25))),"") ->  | AR25: =IF(COUNT(V$7:V$26)>=ROWS($7:25),INDEX(V$7:V$26,SMALL(IF(ISNUMBER(V$7:V$26),ROW(INDIRECT("1:"&ROWS(V$7:V$26)))),ROWS($7:25))),"") ->  | AS25: =IF(COUNT(W$7:W$26)>=ROWS($7:25),INDEX(W$7:W$26,SMALL(IF(ISNUMBER(W$7:W$26),ROW(INDIRECT("1:"&ROWS(W$7:W$26)))),ROWS($7:25))),"") ->  | AT25: =IF(COUNT(X$7:X$26)>=ROWS($7:25),INDEX(X$7:X$26,SMALL(IF(ISNUMBER(X$7:X$26),ROW(INDIRECT("1:"&ROWS(X$7:X$26)))),ROWS($7:25))),"") ->  | AU25: =IF(COUNT(Y$7:Y$26)>=ROWS($7:25),INDEX(Y$7:Y$26,SMALL(IF(ISNUMBER(Y$7:Y$26),ROW(INDIRECT("1:"&ROWS(Y$7:Y$26)))),ROWS($7:25))),"") ->  | AV25: =IF(COUNT(Z$7:Z$26)>=ROWS($7:25),INDEX(Z$7:Z$26,SMALL(IF(ISNUMBER(Z$7:Z$26),ROW(INDIRECT("1:"&ROWS(Z$7:Z$26)))),ROWS($7:25))),"") -> 
A26: 0Ah | B26: 20 | C26: =IF(#REF!="","",VALUE(#REF!)) ->  | D26: =IF(Accueil!B34=0,"",IF(Accueil!B34="","",Accueil!B34)) ->  | E26: =IF(C26="","",MID(Accueil!D34,1,1)) ->  | AB26: =IF(COUNT(F$7:F$26)>=ROWS($7:26),INDEX(F$7:F$26,SMALL(IF(ISNUMBER(F$7:F$26),ROW(INDIRECT("1:"&ROWS(F$7:F$26)))),ROWS($7:26))),"") ->  | AC26: =IF(COUNT(G$7:G$26)>=ROWS($7:26),INDEX(G$7:G$26,SMALL(IF(ISNUMBER(G$7:G$26),ROW(INDIRECT("1:"&ROWS(G$7:G$26)))),ROWS($7:26))),"") ->  | AD26: =IF(COUNT(H$7:H$26)>=ROWS($7:26),INDEX(H$7:H$26,SMALL(IF(ISNUMBER(H$7:H$26),ROW(INDIRECT("1:"&ROWS(H$7:H$26)))),ROWS($7:26))),"") ->  | AE26: =IF(COUNT(I$7:I$26)>=ROWS($7:26),INDEX(I$7:I$26,SMALL(IF(ISNUMBER(I$7:I$26),ROW(INDIRECT("1:"&ROWS(I$7:I$26)))),ROWS($7:26))),"") ->  | AF26: =IF(COUNT(J$7:J$26)>=ROWS($7:26),INDEX(J$7:J$26,SMALL(IF(ISNUMBER(J$7:J$26),ROW(INDIRECT("1:"&ROWS(J$7:J$26)))),ROWS($7:26))),"") ->  | AG26: =IF(COUNT(K$7:K$26)>=ROWS($7:26),INDEX(K$7:K$26,SMALL(IF(ISNUMBER(K$7:K$26),ROW(INDIRECT("1:"&ROWS(K$7:K$26)))),ROWS($7:26))),"") ->  | AH26: =IF(COUNT(L$7:L$26)>=ROWS($7:26),INDEX(L$7:L$26,SMALL(IF(ISNUMBER(L$7:L$26),ROW(INDIRECT("1:"&ROWS(L$7:L$26)))),ROWS($7:26))),"") ->  | AI26: =IF(COUNT(M$7:M$26)>=ROWS($7:26),INDEX(M$7:M$26,SMALL(IF(ISNUMBER(M$7:M$26),ROW(INDIRECT("1:"&ROWS(M$7:M$26)))),ROWS($7:26))),"") ->  | AJ26: =IF(COUNT(N$7:N$26)>=ROWS($7:26),INDEX(N$7:N$26,SMALL(IF(ISNUMBER(N$7:N$26),ROW(INDIRECT("1:"&ROWS(N$7:N$26)))),ROWS($7:26))),"") ->  | AK26: =IF(COUNT(O$7:O$26)>=ROWS($7:26),INDEX(O$7:O$26,SMALL(IF(ISNUMBER(O$7:O$26),ROW(INDIRECT("1:"&ROWS(O$7:O$26)))),ROWS($7:26))),"") ->  | AL26: =IF(COUNT(P$7:P$26)>=ROWS($7:26),INDEX(P$7:P$26,SMALL(IF(ISNUMBER(P$7:P$26),ROW(INDIRECT("1:"&ROWS(P$7:P$26)))),ROWS($7:26))),"") ->  | AM26: =IF(COUNT(Q$7:Q$26)>=ROWS($7:26),INDEX(Q$7:Q$26,SMALL(IF(ISNUMBER(Q$7:Q$26),ROW(INDIRECT("1:"&ROWS(Q$7:Q$26)))),ROWS($7:26))),"") ->  | AN26: =IF(COUNT(R$7:R$26)>=ROWS($7:26),INDEX(R$7:R$26,SMALL(IF(ISNUMBER(R$7:R$26),ROW(INDIRECT("1:"&ROWS(R$7:R$26)))),ROWS($7:26))),"") ->  | AO26: =IF(COUNT(S$7:S$26)>=ROWS($7:26),INDEX(S$7:S$26,SMALL(IF(ISNUMBER(S$7:S$26),ROW(INDIRECT("1:"&ROWS(S$7:S$26)))),ROWS($7:26))),"") ->  | AP26: =IF(COUNT(T$7:T$26)>=ROWS($7:26),INDEX(T$7:T$26,SMALL(IF(ISNUMBER(T$7:T$26),ROW(INDIRECT("1:"&ROWS(T$7:T$26)))),ROWS($7:26))),"") ->  | AQ26: =IF(COUNT(U$7:U$26)>=ROWS($7:26),INDEX(U$7:U$26,SMALL(IF(ISNUMBER(U$7:U$26),ROW(INDIRECT("1:"&ROWS(U$7:U$26)))),ROWS($7:26))),"") ->  | AR26: =IF(COUNT(V$7:V$26)>=ROWS($7:26),INDEX(V$7:V$26,SMALL(IF(ISNUMBER(V$7:V$26),ROW(INDIRECT("1:"&ROWS(V$7:V$26)))),ROWS($7:26))),"") ->  | AS26: =IF(COUNT(W$7:W$26)>=ROWS($7:26),INDEX(W$7:W$26,SMALL(IF(ISNUMBER(W$7:W$26),ROW(INDIRECT("1:"&ROWS(W$7:W$26)))),ROWS($7:26))),"") ->  | AT26: =IF(COUNT(X$7:X$26)>=ROWS($7:26),INDEX(X$7:X$26,SMALL(IF(ISNUMBER(X$7:X$26),ROW(INDIRECT("1:"&ROWS(X$7:X$26)))),ROWS($7:26))),"") ->  | AU26: =IF(COUNT(Y$7:Y$26)>=ROWS($7:26),INDEX(Y$7:Y$26,SMALL(IF(ISNUMBER(Y$7:Y$26),ROW(INDIRECT("1:"&ROWS(Y$7:Y$26)))),ROWS($7:26))),"") ->  | AV26: =IF(COUNT(Z$7:Z$26)>=ROWS($7:26),INDEX(Z$7:Z$26,SMALL(IF(ISNUMBER(Z$7:Z$26),ROW(INDIRECT("1:"&ROWS(Z$7:Z$26)))),ROWS($7:26))),"") -> 
A27: 0Am
A28: 0Af | F28: 1 | G28: 2 | H28: 3 | I28: 4 | J28: 5 | K28: 6 | L28: 7 | M28: 8 | N28: 9 | O28: 10 | P28: 11 | Q28: 12 | R28: 13 | S28: 14 | T28: 15 | U28: 16 | V28: 17 | W28: 18 | X28: 19 | Y28: 20
E29: =IF(F29="","","6 Ah") ->  | F29: =OFFSET($AB7,COLUMN()-COLUMN($F29),) ->  | G29: =OFFSET($AB7,COLUMN()-COLUMN($F29),) ->  | AA29: =IF(E29="","",1) ->  | AB29: =E29&" "&F29&" "&G29&" "&H29&" "&I29&" "&J29&" "&K29&" "&L29&" "&M29&" "&N29&" "&O29&" "&P29&" "&Q29&" "&R29&" "&S29&" "&T29&" "&U29&" "&V29&" "&W29&" "&X29&" "&Y29 ->  | AH29: =IF(COUNT(AA$29:AA$49)>=ROWS($29:29),INDEX(AA$29:AA$49,SMALL(IF(ISNUMBER(AA$29:AA$49),ROW(INDIRECT("1:"&ROWS(AA$29:AA$49)))),ROWS($29:29))),"") ->  | AI29: =IF(AH29="","",VLOOKUP(AH29,$AA$29:$AB$49,2,FALSE)) -> 
D30: 6 | E30: =IF(F30="","","6 Am") ->  | F30: =OFFSET($AC7,COLUMN()-COLUMN($F30),) ->  | G30: =OFFSET($AC7,COLUMN()-COLUMN($F30),) ->  | AA30: =IF(E30="","",2) ->  | AB30: =E30&" "&F30&" "&G30&" "&H30&" "&I30&" "&J30&" "&K30&" "&L30&" "&M30&" "&N30&" "&O30&" "&P30&" "&Q30&" "&R30&" "&S30&" "&T30&" "&U30&" "&V30&" "&W30&" "&X30&" "&Y30 ->  | AH30: =IF(COUNT(AA$29:AA$49)>=ROWS($29:30),INDEX(AA$29:AA$49,SMALL(IF(ISNUMBER(AA$29:AA$49),ROW(INDIRECT("1:"&ROWS(AA$29:AA$49)))),ROWS($29:30))),"") ->  | AI30: =IF(AH30="","",VLOOKUP(AH30,$AA$29:$AB$49,2,FALSE)) -> 
E31: =IF(F31="","","6 Af") ->  | F31: =OFFSET($AD7,COLUMN()-COLUMN($F31),) ->  | G31: =OFFSET($AD7,COLUMN()-COLUMN($F31),) ->  | AA31: =IF(E31="","",3) ->  | AB31: =E31&" "&F31&" "&G31&" "&H31&" "&I31&" "&J31&" "&K31&" "&L31&" "&M31&" "&N31&" "&O31&" "&P31&" "&Q31&" "&R31&" "&S31&" "&T31&" "&U31&" "&V31&" "&W31&" "&X31&" "&Y31 ->  | AH31: =IF(COUNT(AA$29:AA$49)>=ROWS($29:31),INDEX(AA$29:AA$49,SMALL(IF(ISNUMBER(AA$29:AA$49),ROW(INDIRECT("1:"&ROWS(AA$29:AA$49)))),ROWS($29:31))),"") -> 
E32: =IF(F32="","","5 Ah") ->  | F32: =OFFSET($AE7,COLUMN()-COLUMN($F32),) ->  | G32: =OFFSET($AE7,COLUMN()-COLUMN($F32),) ->  | AA32: =IF(E32="","",4) ->  | AH32: =IF(COUNT(AA$29:AA$49)>=ROWS($29:32),INDEX(AA$29:AA$49,SMALL(IF(ISNUMBER(AA$29:AA$49),ROW(INDIRECT("1:"&ROWS(AA$29:AA$49)))),ROWS($29:32))),"") -> 
D33: 5 | E33: =IF(F33="","","5 Am") ->  | F33: =OFFSET($AF7,COLUMN()-COLUMN($F33),) ->  | G33: =OFFSET($AF7,COLUMN()-COLUMN($F33),) ->  | AA33: =IF(E33="","",5) ->  | AH33: =IF(COUNT(AA$29:AA$49)>=ROWS($29:33),INDEX(AA$29:AA$49,SMALL(IF(ISNUMBER(AA$29:AA$49),ROW(INDIRECT("1:"&ROWS(AA$29:AA$49)))),ROWS($29:33))),"") -> 
E34: =IF(F34="","","5 Af") ->  | F34: =OFFSET($AG7,COLUMN()-COLUMN($F34),) ->  | G34: =OFFSET($AG7,COLUMN()-COLUMN($F34),) ->  | AA34: =IF(E34="","",6) ->  | AH34: =IF(COUNT(AA$29:AA$49)>=ROWS($29:34),INDEX(AA$29:AA$49,SMALL(IF(ISNUMBER(AA$29:AA$49),ROW(INDIRECT("1:"&ROWS(AA$29:AA$49)))),ROWS($29:34))),"") -> 
E35: =IF(F35="","","4 Ah") ->  | F35: =OFFSET($AH7,COLUMN()-COLUMN($F35),) ->  | G35: =OFFSET($AH7,COLUMN()-COLUMN($F35),) ->  | AA35: =IF(E35="","",7) ->  | AH35: =IF(COUNT(AA$29:AA$49)>=ROWS($29:35),INDEX(AA$29:AA$49,SMALL(IF(ISNUMBER(AA$29:AA$49),ROW(INDIRECT("1:"&ROWS(AA$29:AA$49)))),ROWS($29:35))),"") -> 
D36: 4 | E36: =IF(F36="","","4 Am") ->  | F36: =OFFSET($AI7,COLUMN()-COLUMN($F36),) ->  | G36: =OFFSET($AI7,COLUMN()-COLUMN($F36),) ->  | AA36: =IF(E36="","",8) ->  | AH36: =IF(COUNT(AA$29:AA$49)>=ROWS($29:36),INDEX(AA$29:AA$49,SMALL(IF(ISNUMBER(AA$29:AA$49),ROW(INDIRECT("1:"&ROWS(AA$29:AA$49)))),ROWS($29:36))),"") -> 
E37: =IF(F37="","","4 Af") ->  | F37: =OFFSET($AJ7,COLUMN()-COLUMN($F37),) ->  | G37: =OFFSET($AJ7,COLUMN()-COLUMN($F37),) ->  | AA37: =IF(E37="","",9) ->  | AH37: =IF(COUNT(AA$29:AA$49)>=ROWS($29:37),INDEX(AA$29:AA$49,SMALL(IF(ISNUMBER(AA$29:AA$49),ROW(INDIRECT("1:"&ROWS(AA$29:AA$49)))),ROWS($29:37))),"") -> 
E38: =IF(F38="","","3 Ah") ->  | F38: =OFFSET($AK7,COLUMN()-COLUMN($F38),) ->  | G38: =OFFSET($AK7,COLUMN()-COLUMN($F38),) ->  | AA38: =IF(E38="","",10) ->  | AH38: =IF(COUNT(AA$29:AA$49)>=ROWS($29:38),INDEX(AA$29:AA$49,SMALL(IF(ISNUMBER(AA$29:AA$49),ROW(INDIRECT("1:"&ROWS(AA$29:AA$49)))),ROWS($29:38))),"") -> 
D39: 3 | E39: =IF(F39="","","3 Am") ->  | F39: =OFFSET($AL7,COLUMN()-COLUMN($F39),) ->  | G39: =OFFSET($AL7,COLUMN()-COLUMN($F39),) ->  | AA39: =IF(E39="","",11) ->  | AH39: =IF(COUNT(AA$29:AA$49)>=ROWS($29:39),INDEX(AA$29:AA$49,SMALL(IF(ISNUMBER(AA$29:AA$49),ROW(INDIRECT("1:"&ROWS(AA$29:AA$49)))),ROWS($29:39))),"") -> 
E40: =IF(F40="","","3 Af") ->  | F40: =OFFSET($AM7,COLUMN()-COLUMN($F40),) ->  | G40: =OFFSET($AM7,COLUMN()-COLUMN($F40),) ->  | AA40: =IF(E40="","",12) ->  | AH40: =IF(COUNT(AA$29:AA$49)>=ROWS($29:40),INDEX(AA$29:AA$49,SMALL(IF(ISNUMBER(AA$29:AA$49),ROW(INDIRECT("1:"&ROWS(AA$29:AA$49)))),ROWS($29:40))),"") -> 
E41: =IF(F41="","","2 Ah") ->  | F41: =OFFSET($AN7,COLUMN()-COLUMN($F41),) ->  | G41: =OFFSET($AN7,COLUMN()-COLUMN($F41),) ->  | AA41: =IF(E41="","",13) ->  | AH41: =IF(COUNT(AA$29:AA$49)>=ROWS($29:41),INDEX(AA$29:AA$49,SMALL(IF(ISNUMBER(AA$29:AA$49),ROW(INDIRECT("1:"&ROWS(AA$29:AA$49)))),ROWS($29:41))),"") -> 
D42: 2 | E42: =IF(F42="","","2 Am") ->  | F42: =OFFSET($AO7,COLUMN()-COLUMN($F42),) ->  | G42: =OFFSET($AO7,COLUMN()-COLUMN($F42),) ->  | AA42: =IF(E42="","",14) ->  | AH42: =IF(COUNT(AA$29:AA$49)>=ROWS($29:42),INDEX(AA$29:AA$49,SMALL(IF(ISNUMBER(AA$29:AA$49),ROW(INDIRECT("1:"&ROWS(AA$29:AA$49)))),ROWS($29:42))),"") -> 
E43: =IF(F43="","","2 Af") ->  | F43: =OFFSET($AP7,COLUMN()-COLUMN($F43),) ->  | G43: =OFFSET($AP7,COLUMN()-COLUMN($F43),) ->  | AA43: =IF(E43="","",15) ->  | AH43: =IF(COUNT(AA$29:AA$49)>=ROWS($29:43),INDEX(AA$29:AA$49,SMALL(IF(ISNUMBER(AA$29:AA$49),ROW(INDIRECT("1:"&ROWS(AA$29:AA$49)))),ROWS($29:43))),"") -> 
E44: =IF(F44="","","1 Ah") ->  | F44: =OFFSET($AQ7,COLUMN()-COLUMN($F44),) ->  | G44: =OFFSET($AQ7,COLUMN()-COLUMN($F44),) ->  | AA44: =IF(E44="","",16) ->  | AH44: =IF(COUNT(AA$29:AA$49)>=ROWS($29:44),INDEX(AA$29:AA$49,SMALL(IF(ISNUMBER(AA$29:AA$49),ROW(INDIRECT("1:"&ROWS(AA$29:AA$49)))),ROWS($29:44))),"") -> 
D45: 1 | E45: =IF(F45="","","1 Am") ->  | F45: =OFFSET($AR7,COLUMN()-COLUMN($F45),) ->  | G45: =OFFSET($AR7,COLUMN()-COLUMN($F45),) ->  | AA45: =IF(E45="","",17) ->  | AH45: =IF(COUNT(AA$29:AA$49)>=ROWS($29:45),INDEX(AA$29:AA$49,SMALL(IF(ISNUMBER(AA$29:AA$49),ROW(INDIRECT("1:"&ROWS(AA$29:AA$49)))),ROWS($29:45))),"") -> 
E46: =IF(F46="","","1 Af") ->  | F46: =OFFSET($AS7,COLUMN()-COLUMN($F46),) ->  | G46: =OFFSET($AS7,COLUMN()-COLUMN($F46),) ->  | AA46: =IF(E46="","",18) ->  | AH46: =IF(COUNT(AA$29:AA$49)>=ROWS($29:46),INDEX(AA$29:AA$49,SMALL(IF(ISNUMBER(AA$29:AA$49),ROW(INDIRECT("1:"&ROWS(AA$29:AA$49)))),ROWS($29:46))),"") -> 
E47: =IF(F47="","","0 Ah") ->  | F47: =OFFSET($AT7,COLUMN()-COLUMN($F47),) ->  | G47: =OFFSET($AT7,COLUMN()-COLUMN($F47),) ->  | AA47: =IF(E47="","",19) ->  | AH47: =IF(COUNT(AA$29:AA$49)>=ROWS($29:47),INDEX(AA$29:AA$49,SMALL(IF(ISNUMBER(AA$29:AA$49),ROW(INDIRECT("1:"&ROWS(AA$29:AA$49)))),ROWS($29:47))),"") -> 
D48: 0 | E48: =IF(F48="","","0 Am") ->  | F48: =OFFSET($AU7,COLUMN()-COLUMN($F48),) ->  | G48: =OFFSET($AU7,COLUMN()-COLUMN($F48),) ->  | AA48: =IF(E48="","",20) ->  | AH48: =IF(COUNT(AA$29:AA$49)>=ROWS($29:48),INDEX(AA$29:AA$49,SMALL(IF(ISNUMBER(AA$29:AA$49),ROW(INDIRECT("1:"&ROWS(AA$29:AA$49)))),ROWS($29:48))),"") -> 
E49: =IF(F49="","","0 Af") ->  | F49: =OFFSET($AV7,COLUMN()-COLUMN($F49),) ->  | G49: =OFFSET($AV7,COLUMN()-COLUMN($F49),) ->  | AA49: =IF(E49="","",21) ->  | AH49: =IF(COUNT(AA$29:AA$49)>=ROWS($29:49),INDEX(AA$29:AA$49,SMALL(IF(ISNUMBER(AA$29:AA$49),ROW(INDIRECT("1:"&ROWS(AA$29:AA$49)))),ROWS($29:49))),"") -> 
E52: =AI29&AI30&AI31&AI32&AI33&AI34&AI35&AI36&AI37&AI38&AI39&AI40 -> 

Sheet eliminer le tiers des partants
B2: Méthode TIERCÉS DE TROT "Éliminez à coup sûr le tiers des partants"
G4: Allocation du jour | I4: 70000
I5: =I4/1000 -> 70
D7: Cotes | G7: Places | H7: Allocations
B8: N° | C8: Cheval | D8: Probable | E8: Probable | F8: Dernière | G8: Moyenne | H8: Dernière | I8: A.J Der. | J8: Total | K8: Class't | L8: Éliminés | M8: Rang | N8: N° | O8: N° | AA8: =IF(B8="","",B8) -> N° | AG8: =IF(B8="","",B8) -> N° | AI8: =IF(AG8="","",AG8) -> N°
B9: =IF(Accueil!B15="","",Accueil!B15) -> 1 | C9: =IF(Accueil!C15="","",Accueil!C15) -> Daika Vikland | D9: 3.7 | E9: =IF(B9="","",IF(D9<5,0,D9/10)) -> 0 | F9: =IF(B9="","",IF(NCV!H6<5,0,NCV!H6/10)) -> 15.4 | G9: =IF(B9="","",AVERAGE(NCV!M6:O6)) -> 10.33333333 | H9: =IF(B9="","",ExtNum(NCV!W6)/1000) -> 100 | I9: =IF(B9="","",($I$5-H9)/5) -> -6 | J9: =IF(B9="","",E9+F9+G9+I9) -> 19.73333333 | K9: =IFERROR(IF(B9="","",RANK(J9,$J$9:$J$28,0)+COUNTIF($J$9:J9,J9)-1),"") -> 3 | L9: =IF(B9="","",IF(AND(K9>=1,K9<=6),"EL"," ")) -> EL | M9: =IFERROR(IF(B9="","",RANK(AO9,$AO$9:$AO$27,1)+COUNTIF($AO$9:AO9,AO9)-1),"") -> 12 | N9: =IF(B9="","",IF(AND(M9>=1,M9<=6),B9," ")) ->  | O9: =IFERROR(VALUE(N9),"") ->  | AA9: =IF(B9="","",B9) -> 1 | AB9: =IF(K9="","",K9) -> 3 | AC9: =IF(AB9<=6,AA9,"") -> 1 | AD9: 1 | AE9: =VLOOKUP(AD9,$AB$9:$AC$27,2,0) -> 4 | AG9: =IF(B9="","",B9) -> 1 | AH9: =IF(M9="","",M9) -> 12 | AI9: =IF(AG9="","",AG9) -> 1 | AJ9: 1 | AK9: =VLOOKUP(AJ9,$AH$9:$AI$27,2,0) -> 10 | AL9: =IF(B9="","",IF(NCV!M6="Dai",NCV!N6,NCV!M6)) -> 14 | AM9: =IF(B9="","",IF(NCV!N6="Dai",NCV!O6,NCV!N6)) -> 10 | AO9: =IF(J9<0,"",J9) -> 19.73333333
B10: =IF(Accueil!B16="","",Accueil!B16) -> 2 | C10: =IF(Accueil!C16="","",Accueil!C16) -> Dalhium de Grez | D10: 41 | E10: =IF(B10="","",IF(D10<5,0,D10/10)) -> 4.1 | F10: =IF(B10="","",IF(NCV!H7<5,0,NCV!H7/10)) -> 10.6 | G10: =IF(B10="","",AVERAGE(NCV!M7:O7)) -> 5.666666667 | H10: =IF(B10="","",ExtNum(NCV!W7)/1000) -> 90 | I10: =IF(B10="","",($I$5-H10)/5) -> -4 | J10: =IF(B10="","",E10+F10+G10+I10) -> 16.36666667 | K10: =IFERROR(IF(B10="","",RANK(J10,$J$9:$J$28,0)+COUNTIF($J$9:J10,J10)-1),"") -> 7 | L10: =IF(B10="","",IF(AND(K10>=1,K10<=6),"EL"," ")) ->  | M10: =IFERROR(IF(B10="","",RANK(AO10,$AO$9:$AO$27,1)+COUNTIF($AO$9:AO10,AO10)-1),"") -> 8 | N10: =IF(B10="","",IF(AND(M10>=1,M10<=6),B10," ")) ->  | O10: =IFERROR(VALUE(N10),"") ->  | AA10: 2 | AB10: =IF(K10="","",K10) -> 7 | AC10: =IF(AB10<=6,AA10,"") ->  | AD10: 2 | AE10: =VLOOKUP(AD10,$AB$9:$AC$27,2,0) -> 14 | AG10: 2 | AH10: =IF(M10="","",M10) -> 8 | AI10: 2 | AJ10: 2 | AK10: =VLOOKUP(AJ10,$AH$9:$AI$27,2,0) -> 7 | AL10: =IF(B10="","",IF(NCV!M7="Dai",NCV!N7,NCV!M7)) -> 11 | AM10: =IF(B10="","",IF(NCV!N7="Dai",NCV!O7,NCV!N7)) -> 2 | AO10: =IF(J10<0,"",J10) -> 16.36666667
B11: =IF(Accueil!B17="","",Accueil!B17) -> 3 | C11: =IF(Accueil!C17="","",Accueil!C17) -> Espion Volsin | D11: 7.3 | E11: 0.73 | F11: =IF(B11="","",IF(NCV!H8<5,0,NCV!H8/10)) -> 2.5 | G11: =IF(B11="","",AVERAGE(NCV!M8:O8)) -> 12.33333333 | H11: =IF(B11="","",ExtNum(NCV!W8)/1000) -> 80 | I11: -2 | J11: 13.56333333 | K11: =IFERROR(IF(B11="","",RANK(J11,$J$9:$J$28,0)+COUNTIF($J$9:J11,J11)-1),"") -> 10 | M11: =IFERROR(IF(B11="","",RANK(AO11,$AO$9:$AO$27,1)+COUNTIF($AO$9:AO11,AO11)-1),"") -> 5 | N11: 3 | O11: 3 | AA11: 3 | AB11: 10 | AD11: 3 | AE11: 1 | AG11: 3 | AH11: 5 | AI11: 3 | AJ11: 3 | AK11: 6 | AL11: =IF(B11="","",IF(NCV!M8="Dai",NCV!N8,NCV!M8)) -> 8 | AM11: =IF(B11="","",IF(NCV!N8="Dai",NCV!O8,NCV!N8)) -> 14 | AO11: 13.56333333
B12: =IF(Accueil!B18="","",Accueil!B18) -> 4 | C12: =IF(Accueil!C18="","",Accueil!C18) -> Duchesse Fouteau | D12: 12 | E12: 1.2 | F12: =IF(B12="","",IF(NCV!H9<5,0,NCV!H9/10)) -> 13.1 | G12: =IF(B12="","",AVERAGE(NCV!M9:O9)) -> 8.666666667 | H12: =IF(B12="","",ExtNum(NCV!W9)/1000) -> 49 | I12: 4.2 | J12: 27.16666667 | K12: =IFERROR(IF(B12="","",RANK(J12,$J$9:$J$28,0)+COUNTIF($J$9:J12,J12)-1),"") -> 1 | L12: EL | M12: =IFERROR(IF(B12="","",RANK(AO12,$AO$9:$AO$27,1)+COUNTIF($AO$9:AO12,AO12)-1),"") -> 14 | AA12: 4 | AB12: 1 | AC12: 4 | AD12: 4 | AE12: 9 | AG12: 4 | AH12: 14 | AI12: 4 | AJ12: 4 | AK12: 11 | AL12: =IF(B12="","",IF(NCV!M9="Dai",NCV!N9,NCV!M9)) -> 14 | AM12: =IF(B12="","",IF(NCV!N9="Dai",NCV!O9,NCV!N9)) -> 7 | AO12: 27.16666667
B13: =IF(Accueil!B19="","",Accueil!B19) -> 5 | C13: =IF(Accueil!C19="","",Accueil!C19) -> Chef des Plaines | D13: 87 | E13: 8.7 | F13: =IF(B13="","",IF(NCV!H10<5,0,NCV!H10/10)) -> 2.5 | G13: =IF(B13="","",AVERAGE(NCV!M10:O10)) -> 6.666666667 | H13: =IF(B13="","",ExtNum(NCV!W10)/1000) -> 80 | I13: -2 | J13: 15.86666667 | K13: =IFERROR(IF(B13="","",RANK(J13,$J$9:$J$28,0)+COUNTIF($J$9:J13,J13)-1),"") -> 8 | M13: =IFERROR(IF(B13="","",RANK(AO13,$AO$9:$AO$27,1)+COUNTIF($AO$9:AO13,AO13)-1),"") -> 7 | AA13: 5 | AB13: 8 | AD13: 5 | AE13: 12 | AG13: 5 | AH13: 7 | AI13: 5 | AJ13: 5 | AK13: 3 | AL13: =IF(B13="","",IF(NCV!M10="Dai",NCV!N10,NCV!M10)) -> 5 | AM13: =IF(B13="","",IF(NCV!N10="Dai",NCV!O10,NCV!N10)) -> 8 | AO13: 15.86666667
B14: =IF(Accueil!B20="","",Accueil!B20) -> 6 | C14: =IF(Accueil!C20="","",Accueil!C20) -> Cool Gahn | D14: 5.6 | E14: 0.56 | F14: =IF(B14="","",IF(NCV!H11<5,0,NCV!H11/10)) -> 3.1 | G14: =IF(B14="","",AVERAGE(NCV!M11:O11)) -> 6.666666667 | H14: =IF(B14="","",ExtNum(NCV!W11)/1000) -> 80 | I14: -2 | J14: 8.326666667 | K14: =IFERROR(IF(B14="","",RANK(J14,$J$9:$J$28,0)+COUNTIF($J$9:J14,J14)-1),"") -> 12 | M14: =IFERROR(IF(B14="","",RANK(AO14,$AO$9:$AO$27,1)+COUNTIF($AO$9:AO14,AO14)-1),"") -> 3 | N14: 6 | O14: 6 | AA14: 6 | AB14: 12 | AD14: 6 | AE14: 13 | AG14: 6 | AH14: 3 | AI14: 6 | AJ14: 6 | AK14: 8 | AL14: =IF(B14="","",IF(NCV!M11="Dai",NCV!N11,NCV!M11)) -> 9 | AM14: =IF(B14="","",IF(NCV!N11="Dai",NCV!O11,NCV!N11)) -> 4 | AO14: 8.326666667
B15: =IF(Accueil!B21="","",Accueil!B21) -> 7 | C15: =IF(Accueil!C21="","",Accueil!C21) -> Elton Magic | D15: 3.8 | E15: 0 | F15: =IF(B15="","",IF(NCV!H12<5,0,NCV!H12/10)) -> 0 | G15: =IF(B15="","",AVERAGE(NCV!M12:O12)) -> 4.666666667 | H15: =IF(B15="","",ExtNum(NCV!W12)/1000) -> 53 | I15: 3.4 | J15: 8.066666667 | K15: =IFERROR(IF(B15="","",RANK(J15,$J$9:$J$28,0)+COUNTIF($J$9:J15,J15)-1),"") -> 13 | M15: =IFERROR(IF(B15="","",RANK(AO15,$AO$9:$AO$27,1)+COUNTIF($AO$9:AO15,AO15)-1),"") -> 2 | N15: 7 | O15: 7 | AA15: 7 | AB15: 13 | AG15: 7 | AH15: 2 | AI15: 7 | AL15: =IF(B15="","",IF(NCV!M12="Dai",NCV!N12,NCV!M12)) -> 1 | AM15: =IF(B15="","",IF(NCV!N12="Dai",NCV!O12,NCV!N12)) -> 3 | AO15: 8.066666667
B16: =IF(Accueil!B22="","",Accueil!B22) -> 8 | C16: =IF(Accueil!C22="","",Accueil!C22) -> Charly de Yor | D16: 45 | E16: 4.5 | F16: =IF(B16="","",IF(NCV!H13<5,0,NCV!H13/10)) -> 5.6 | G16: =IF(B16="","",AVERAGE(NCV!M13:O13)) -> 6 | H16: =IF(B16="","",ExtNum(NCV!W13)/1000) -> 80 | I16: -2 | J16: 14.1 | K16: =IFERROR(IF(B16="","",RANK(J16,$J$9:$J$28,0)+COUNTIF($J$9:J16,J16)-1),"") -> 9 | M16: =IFERROR(IF(B16="","",RANK(AO16,$AO$9:$AO$27,1)+COUNTIF($AO$9:AO16,AO16)-1),"") -> 6 | N16: 8 | O16: 8 | AA16: 8 | AB16: 9 | AG16: 8 | AH16: 6 | AI16: 8 | AL16: =IF(B16="","",IF(NCV!M13="Dai",NCV!N13,NCV!M13)) -> 7 | AM16: =IF(B16="","",IF(NCV!N13="Dai",NCV!O13,NCV!N13)) -> 2 | AO16: 14.1
B17: =IF(Accueil!B23="","",Accueil!B23) -> 9 | C17: =IF(Accueil!C23="","",Accueil!C23) -> Chamar d'Ici (E1) | D17: 53 | E17: 5.3 | F17: =IF(B17="","",IF(NCV!H14<5,0,NCV!H14/10)) -> 13.2 | G17: =IF(B17="","",AVERAGE(NCV!M14:O14)) -> 7 | H17: =IF(B17="","",ExtNum(NCV!W14)/1000) -> 100 | I17: -6 | J17: 19.5 | K17: =IFERROR(IF(B17="","",RANK(J17,$J$9:$J$28,0)+COUNTIF($J$9:J17,J17)-1),"") -> 4 | L17: EL | M17: =IFERROR(IF(B17="","",RANK(AO17,$AO$9:$AO$27,1)+COUNTIF($AO$9:AO17,AO17)-1),"") -> 11 | AA17: 9 | AB17: 4 | AC17: 9 | AG17: 9 | AH17: 11 | AI17: 9 | AL17: =IF(B17="","",IF(NCV!M14="Dai",NCV!N14,NCV!M14)) -> 7 | AM17: =IF(B17="","",IF(NCV!N14="Dai",NCV!O14,NCV!N14)) -> 6 | AO17: 19.5
B18: =IF(Accueil!B24="","",Accueil!B24) -> 10 | C18: =IF(Accueil!C24="","",Accueil!C24) -> Conflit (E1) | D18: 17 | E18: 1.7 | F18: =IF(B18="","",IF(NCV!H15<5,0,NCV!H15/10)) -> 2 | G18: =IF(B18="","",AVERAGE(NCV!M15:O15)) -> 5.666666667 | H18: =IF(B18="","",ExtNum(NCV!W15)/1000) -> 90 | I18: -4 | J18: 5.366666667 | K18: =IFERROR(IF(B18="","",RANK(J18,$J$9:$J$28,0)+COUNTIF($J$9:J18,J18)-1),"") -> 14 | M18: =IFERROR(IF(B18="","",RANK(AO18,$AO$9:$AO$27,1)+COUNTIF($AO$9:AO18,AO18)-1),"") -> 1 | N18: 10 | O18: 10 | AA18: 10 | AB18: 14 | AG18: 10 | AH18: 1 | AI18: 10 | AL18: =IF(B18="","",IF(NCV!M15="Dai",NCV!N15,NCV!M15)) -> 6 | AM18: =IF(B18="","",IF(NCV!N15="Dai",NCV!O15,NCV!N15)) -> 6 | AO18: 5.366666667
B19: =IF(Accueil!B25="","",Accueil!B25) -> 11 | C19: =IF(Accueil!C25="","",Accueil!C25) -> Daryl Impey | D19: 32 | E19: 3.2 | F19: =IF(B19="","",IF(NCV!H16<5,0,NCV!H16/10)) -> 6.2 | G19: =IF(B19="","",AVERAGE(NCV!M16:O16)) -> 3.5 | H19: =IF(B19="","",ExtNum(NCV!W16)/1000) -> 90 | I19: -4 | J19: 8.9 | K19: =IFERROR(IF(B19="","",RANK(J19,$J$9:$J$28,0)+COUNTIF($J$9:J19,J19)-1),"") -> 11 | M19: =IFERROR(IF(B19="","",RANK(AO19,$AO$9:$AO$27,1)+COUNTIF($AO$9:AO19,AO19)-1),"") -> 4 | N19: 11 | O19: 11 | AA19: 11 | AB19: 11 | AG19: 11 | AH19: 4 | AI19: 11 | AL19: =IF(B19="","",IF(NCV!M16="Dai",NCV!N16,NCV!M16)) -> 4 | AM19: =IF(B19="","",IF(NCV!N16="Dai",NCV!O16,NCV!N16)) -> 3 | AO19: 8.9
B20: =IF(Accueil!B26="","",Accueil!B26) -> 12 | C20: =IF(Accueil!C26="","",Accueil!C26) -> Carla de Flosaille | D20: 13 | E20: 1.3 | F20: =IF(B20="","",IF(NCV!H17<5,0,NCV!H17/10)) -> 0.91 | G20: =IF(B20="","",AVERAGE(NCV!M17:O17)) -> 9 | H20: =IF(B20="","",ExtNum(NCV!W17)/1000) -> 36 | I20: 6.8 | J20: 18.01 | K20: =IFERROR(IF(B20="","",RANK(J20,$J$9:$J$28,0)+COUNTIF($J$9:J20,J20)-1),"") -> 5 | L20: EL | M20: =IFERROR(IF(B20="","",RANK(AO20,$AO$9:$AO$27,1)+COUNTIF($AO$9:AO20,AO20)-1),"") -> 10 | AA20: 12 | AB20: 5 | AC20: 12 | AG20: 12 | AH20: 10 | AI20: 12 | AL20: =IF(B20="","",IF(NCV!M17="Dai",NCV!N17,NCV!M17)) -> 13 | AM20: =IF(B20="","",IF(NCV!N17="Dai",NCV!O17,NCV!N17)) -> 8 | AO20: 18.01
B21: =IF(Accueil!B27="","",Accueil!B27) -> 13 | C21: =IF(Accueil!C27="","",Accueil!C27) -> Elverina Devavian | D21: 55 | E21: 5.5 | F21: =IF(B21="","",IF(NCV!H18<5,0,NCV!H18/10)) -> 1 | G21: =IF(B21="","",AVERAGE(NCV!M18:O18)) -> 6.666666667 | H21: =IF(B21="","",ExtNum(NCV!W18)/1000) -> 53 | I21: 3.4 | J21: 16.56666667 | K21: =IFERROR(IF(B21="","",RANK(J21,$J$9:$J$28,0)+COUNTIF($J$9:J21,J21)-1),"") -> 6 | L21: EL | M21: =IFERROR(IF(B21="","",RANK(AO21,$AO$9:$AO$27,1)+COUNTIF($AO$9:AO21,AO21)-1),"") -> 9 | AA21: 13 | AB21: 6 | AC21: 13 | AG21: 13 | AH21: 9 | AI21: 13 | AL21: =IF(B21="","",IF(NCV!M18="Dai",NCV!N18,NCV!M18)) -> 3 | AM21: =IF(B21="","",IF(NCV!N18="Dai",NCV!O18,NCV!N18)) -> 12 | AO21: 16.56666667
B22: =IF(Accueil!B28="","",Accueil!B28) -> 14 | C22: =IF(Accueil!C28="","",Accueil!C28) -> Cisa du Mouchel | E22: 0 | F22: =IF(B22="","",IF(NCV!H19<5,0,NCV!H19/10)) -> 9.8 | G22: =IF(B22="","",AVERAGE(NCV!M19:O19)) -> 10.33333333 | H22: =IF(B22="","",ExtNum(NCV!W19)/1000) -> 67 | I22: 0.6 | J22: 20.73333333 | K22: =IFERROR(IF(B22="","",RANK(J22,$J$9:$J$28,0)+COUNTIF($J$9:J22,J22)-1),"") -> 2 | L22: EL | M22: =IFERROR(IF(B22="","",RANK(AO22,$AO$9:$AO$27,1)+COUNTIF($AO$9:AO22,AO22)-1),"") -> 13 | AA22: 14 | AB22: 2 | AC22: 14 | AG22: 14 | AH22: 13 | AI22: 14 | AL22: =IF(B22="","",IF(NCV!M19="Dai",NCV!N19,NCV!M19)) -> 10 | AM22: =IF(B22="","",IF(NCV!N19="Dai",NCV!O19,NCV!N19)) -> 10 | AO22: 20.73333333
B23: =IF(Accueil!B29="","",Accueil!B29) ->  | C23: =IF(Accueil!C29="","",Accueil!C29) ->  | F23: =IF(B23="","",IF(NCV!H20<5,0,NCV!H20/10)) ->  | G23: =IF(B23="","",AVERAGE(NCV!M20:O20)) ->  | H23: =IF(B23="","",ExtNum(NCV!W20)/1000) ->  | K23: =IFERROR(IF(B23="","",RANK(J23,$J$9:$J$28,0)+COUNTIF($J$9:J23,J23)-1),"") ->  | M23: =IFERROR(IF(B23="","",RANK(AO23,$AO$9:$AO$27,1)+COUNTIF($AO$9:AO23,AO23)-1),"") ->  | AL23: =IF(B23="","",IF(NCV!M20="Dai",NCV!N20,NCV!M20)) ->  | AM23: =IF(B23="","",IF(NCV!N20="Dai",NCV!O20,NCV!N20)) -> 
B24: =IF(Accueil!B30="","",Accueil!B30) ->  | C24: =IF(Accueil!C30="","",Accueil!C30) ->  | F24: =IF(B24="","",IF(NCV!H21<5,0,NCV!H21/10)) ->  | G24: =IF(B24="","",AVERAGE(NCV!M21:O21)) ->  | H24: =IF(B24="","",ExtNum(NCV!W21)/1000) ->  | K24: =IFERROR(IF(B24="","",RANK(J24,$J$9:$J$28,0)+COUNTIF($J$9:J24,J24)-1),"") ->  | M24: =IFERROR(IF(B24="","",RANK(AO24,$AO$9:$AO$27,1)+COUNTIF($AO$9:AO24,AO24)-1),"") ->  | AL24: =IF(B24="","",IF(NCV!M21="Dai",NCV!N21,NCV!M21)) ->  | AM24: =IF(B24="","",IF(NCV!N21="Dai",NCV!O21,NCV!N21)) -> 
B25: =IF(Accueil!B31="","",Accueil!B31) ->  | C25: =IF(Accueil!C31="","",Accueil!C31) ->  | F25: =IF(B25="","",IF(NCV!H22<5,0,NCV!H22/10)) ->  | G25: =IF(B25="","",AVERAGE(NCV!M22:O22)) ->  | H25: =IF(B25="","",ExtNum(NCV!W22)/1000) ->  | K25: =IFERROR(IF(B25="","",RANK(J25,$J$9:$J$28,0)+COUNTIF($J$9:J25,J25)-1),"") ->  | M25: =IFERROR(IF(B25="","",RANK(AO25,$AO$9:$AO$27,1)+COUNTIF($AO$9:AO25,AO25)-1),"") ->  | AL25: =IF(B25="","",IF(NCV!M22="Dai",NCV!N22,NCV!M22)) ->  | AM25: =IF(B25="","",IF(NCV!N22="Dai",NCV!O22,NCV!N22)) -> 
B26: =IF(Accueil!B32="","",Accueil!B32) ->  | C26: =IF(Accueil!C32="","",Accueil!C32) ->  | F26: =IF(B26="","",IF(NCV!H23<5,0,NCV!H23/10)) ->  | G26: =IF(B26="","",AVERAGE(NCV!M23:O23)) ->  | H26: =IF(B26="","",ExtNum(NCV!W23)/1000) ->  | K26: =IFERROR(IF(B26="","",RANK(J26,$J$9:$J$28,0)+COUNTIF($J$9:J26,J26)-1),"") ->  | M26: =IFERROR(IF(B26="","",RANK(AO26,$AO$9:$AO$27,1)+COUNTIF($AO$9:AO26,AO26)-1),"") ->  | AL26: =IF(B26="","",IF(NCV!M23="Dai",NCV!N23,NCV!M23)) ->  | AM26: =IF(B26="","",IF(NCV!N23="Dai",NCV!O23,NCV!N23)) -> 
B27: =IF(Accueil!B33="","",Accueil!B33) ->  | C27: =IF(Accueil!C33="","",Accueil!C33) ->  | F27: =IF(B27="","",IF(NCV!H24<5,0,NCV!H24/10)) ->  | G27: =IF(B27="","",AVERAGE(NCV!M24:O24)) ->  | H27: =IF(B27="","",ExtNum(NCV!W24)/1000) ->  | K27: =IFERROR(IF(B27="","",RANK(J27,$J$9:$J$28,0)+COUNTIF($J$9:J27,J27)-1),"") ->  | M27: =IFERROR(IF(B27="","",RANK(AO27,$AO$9:$AO$27,1)+COUNTIF($AO$9:AO27,AO27)-1),"") ->  | AL27: =IF(B27="","",IF(NCV!M24="Dai",NCV!N24,NCV!M24)) ->  | AM27: =IF(B27="","",IF(NCV!N24="Dai",NCV!O24,NCV!N24)) -> 
B28: =IF(Accueil!B34="","",Accueil!B34) ->  | C28: =IF(Accueil!C34="","",Accueil!C34) ->  | F28: =IF(B28="","",IF(NCV!H25<5,0,NCV!H25/10)) ->  | G28: =IF(B28="","",AVERAGE(NCV!M25:O25)) ->  | H28: =IF(B28="","",ExtNum(NCV!W25)/1000) ->  | K28: =IFERROR(IF(B28="","",RANK(J28,$J$9:$J$28,0)+COUNTIF($J$9:J28,J28)-1),"") ->  | M28: =IFERROR(IF(B28="","",RANK(AO28,$AO$9:$AO$27,1)+COUNTIF($AO$9:AO28,AO28)-1),"") -> 
A30: Éliminés | C30: =AE9&"-"&AE10&"-"&AE11&"-"&AE12&"-"&AE13&"-"&AE14 -> 4-14-1-9-12-13 | F30: Sélection | H30: =AK9&"-"&AK10&"-"&AK11&"-"&AK12&"-"&AK13&"-"&AK14 -> 10-7-6-11-3-8
